Organisation Name,Organisation Code,Unique Ref No,Effective Date,Directorate where expenditure incurred,Supplier Name,Payment Date,Net Amount,Purpose of Spend,Procurement Classification (Higher Level),Procurement Classification (Lower Level),Capital/Revenue
Walsall Council,http://opendatacommunities.org/id/metropolitan-district-council/walsall,WC114-01,31/03/2020,Childrens,247 CARS (WILLENHALL) LIMITED,27/03/2020,-474.60,52000-WITH DRIVER-HIRE OF VEHICLES,HOME TO SCHOOL TRANSPORT,Transport,Revenue
Walsall Council,http://opendatacommunities.org/id/metropolitan-district-council/walsall,WC114-02,31/03/2020,Childrens,247 CARS (WILLENHALL) LIMITED,27/03/2020,292.40,52000-WITH DRIVER-HIRE OF VEHICLES,HOME TO SCHOOL TRANSPORT,Transport,Revenue
Walsall Council,http://opendatacommunities.org/id/metropolitan-district-council/walsall,WC114-03,31/03/2020,Childrens,247 CARS (WILLENHALL) LIMITED,27/03/2020,633.20,52000-WITH DRIVER-HIRE OF VEHICLES,HOME TO SCHOOL TRANSPORT,Transport,Revenue
Walsall Council,http://opendatacommunities.org/id/metropolitan-district-council/walsall,WC114-04,31/03/2020,Childrens,247 CARS (WILLENHALL) LIMITED,27/03/2020,633.20,52000-WITH DRIVER-HIRE OF VEHICLES,HOME TO SCHOOL TRANSPORT,Transport,Revenue
Walsall Council,http://opendatacommunities.org/id/metropolitan-district-council/walsall,WC114-05,31/03/2020,Childrens,247 CARS (WILLENHALL) LIMITED,27/03/2020,633.20,52000-WITH DRIVER-HIRE OF VEHICLES,HOME TO SCHOOL TRANSPORT,Transport,Revenue
Walsall Council,http://opendatacommunities.org/id/metropolitan-district-council/walsall,WC114-06,31/03/2020,Childrens,247 CARS (WILLENHALL) LIMITED,27/03/2020,803.80,52000-WITH DRIVER-HIRE OF VEHICLES,HOME TO SCHOOL TRANSPORT,Transport,Revenue
Walsall Council,http://opendatacommunities.org/id/metropolitan-district-council/walsall,WC114-07,31/03/2020,Resources and Transformation,2HILLS CONSULTANCY,18/03/2020,"1,107.60",63102-CONSULTANTS FEES - CORPORATE,COMMUNITY SAFETY 2012/2013,Supplies & Services,Revenue
Walsall Council,http://opendatacommunities.org/id/metropolitan-district-council/walsall,WC114-08,31/03/2020,Adult Social Care,5 CARE SERVICES LTD,27/03/2020,257.94,73507-DOMICILIARY CARE,PHYSICAL SUPPORT,Third Party Payments,Revenue
Walsall Council,http://opendatacommunities.org/id/metropolitan-district-council/walsall,WC114-09,31/03/2020,Adult Social Care,5 CARE SERVICES LTD,27/03/2020,280.93,73507-DOMICILIARY CARE,PHYSICAL SUPPORT,Third Party Payments,Revenue
Walsall Council,http://opendatacommunities.org/id/metropolitan-district-council/walsall,WC114-10,31/03/2020,Adult Social Care,5 CARE SERVICES LTD,27/03/2020,283.04,73507-DOMICILIARY CARE,PHYSICAL SUPPORT,Third Party Payments,Revenue
Walsall Council,http://opendatacommunities.org/id/metropolitan-district-council/walsall,WC114-11,31/03/2020,Adult Social Care,5 CARE SERVICES LTD,27/03/2020,314.03,73507-DOMICILIARY CARE,SOCIAL SUPPORT,Third Party Payments,Revenue
Walsall Council,http://opendatacommunities.org/id/metropolitan-district-council/walsall,WC114-12,31/03/2020,Adult Social Care,5 CARE SERVICES LTD,27/03/2020,325.72,73507-DOMICILIARY CARE,MENTAL HEALTH SUPPORT,Third Party Payments,Revenue
Walsall Council,http://opendatacommunities.org/id/metropolitan-district-council/walsall,WC114-13,31/03/2020,Adult Social Care,5 CARE SERVICES LTD,27/03/2020,329.25,73507-DOMICILIARY CARE,PHYSICAL SUPPORT,Third Party Payments,Revenue
Walsall Council,http://opendatacommunities.org/id/metropolitan-district-council/walsall,WC114-14,31/03/2020,Adult Social Care,5 CARE SERVICES LTD,10/03/2020,356.05,73025-PROFESSIONAL SERVICES-PRIV CONTRACTOR & OTHER AGENCIES,INTERMEDIATE CARE SERVICE,Third Party Payments,Revenue
Walsall Council,http://opendatacommunities.org/id/metropolitan-district-council/walsall,WC114-15,31/03/2020,Adult Social Care,5 CARE SERVICES LTD,27/03/2020,359.73,73507-DOMICILIARY CARE,SENSORY SUPPORT,Third Party Payments,Revenue
Walsall Council,http://opendatacommunities.org/id/metropolitan-district-council/walsall,WC114-16,31/03/2020,Adult Social Care,5 CARE SERVICES LTD,27/03/2020,373.82,73507-DOMICILIARY CARE,PHYSICAL SUPPORT,Third Party Payments,Revenue
Walsall Council,http://opendatacommunities.org/id/metropolitan-district-council/walsall,WC114-17,31/03/2020,Adult Social Care,5 CARE SERVICES LTD,27/03/2020,374.04,73507-DOMICILIARY CARE,LEARNING DISABILITY SUPPORT,Third Party Payments,Revenue
Walsall Council,http://opendatacommunities.org/id/metropolitan-district-council/walsall,WC114-18,31/03/2020,Adult Social Care,5 CARE SERVICES LTD,27/03/2020,383.17,73507-DOMICILIARY CARE,PHYSICAL SUPPORT,Third Party Payments,Revenue
Walsall Council,http://opendatacommunities.org/id/metropolitan-district-council/walsall,WC114-19,31/03/2020,Adult Social Care,5 CARE SERVICES LTD,19/03/2020,387.11,73025-PROFESSIONAL SERVICES-PRIV CONTRACTOR & OTHER AGENCIES,INTERMEDIATE CARE SERVICE,Third Party Payments,Revenue
Walsall Council,http://opendatacommunities.org/id/metropolitan-district-council/walsall,WC114-20,31/03/2020,Adult Social Care,5 CARE SERVICES LTD,27/03/2020,393.25,73507-DOMICILIARY CARE,PHYSICAL SUPPORT,Third Party Payments,Revenue
Walsall Council,http://opendatacommunities.org/id/metropolitan-district-council/walsall,WC114-21,31/03/2020,Adult Social Care,5 CARE SERVICES LTD,27/03/2020,399.95,73507-DOMICILIARY CARE,PHYSICAL SUPPORT,Third Party Payments,Revenue
Walsall Council,http://opendatacommunities.org/id/metropolitan-district-council/walsall,WC114-22,31/03/2020,Adult Social Care,5 CARE SERVICES LTD,27/03/2020,430.41,73507-DOMICILIARY CARE,PHYSICAL SUPPORT,Third Party Payments,Revenue
Walsall Council,http://opendatacommunities.org/id/metropolitan-district-council/walsall,WC114-23,31/03/2020,Adult Social Care,5 CARE SERVICES LTD,27/03/2020,446.45,73507-DOMICILIARY CARE,PHYSICAL SUPPORT,Third Party Payments,Revenue
Walsall Council,http://opendatacommunities.org/id/metropolitan-district-council/walsall,WC114-24,31/03/2020,Adult Social Care,5 CARE SERVICES LTD,27/03/2020,487.62,73507-DOMICILIARY CARE,SENSORY SUPPORT,Third Party Payments,Revenue
Walsall Council,http://opendatacommunities.org/id/metropolitan-district-council/walsall,WC114-25,31/03/2020,Adult Social Care,5 CARE SERVICES LTD,27/03/2020,517.34,73507-DOMICILIARY CARE,PHYSICAL SUPPORT,Third Party Payments,Revenue
Walsall Council,http://opendatacommunities.org/id/metropolitan-district-council/walsall,WC114-26,31/03/2020,Adult Social Care,5 CARE SERVICES LTD,27/03/2020,579.40,73507-DOMICILIARY CARE,PHYSICAL SUPPORT,Third Party Payments,Revenue
Walsall Council,http://opendatacommunities.org/id/metropolitan-district-council/walsall,WC114-27,31/03/2020,Adult Social Care,5 CARE SERVICES LTD,27/03/2020,597.22,73507-DOMICILIARY CARE,PHYSICAL SUPPORT,Third Party Payments,Revenue
Walsall Council,http://opendatacommunities.org/id/metropolitan-district-council/walsall,WC114-28,31/03/2020,Adult Social Care,5 CARE SERVICES LTD,27/03/2020,604.31,73507-DOMICILIARY CARE,PHYSICAL SUPPORT,Third Party Payments,Revenue
Walsall Council,http://opendatacommunities.org/id/metropolitan-district-council/walsall,WC114-29,31/03/2020,Adult Social Care,5 CARE SERVICES LTD,27/03/2020,610.06,73507-DOMICILIARY CARE,PHYSICAL SUPPORT,Third Party Payments,Revenue
Walsall Council,http://opendatacommunities.org/id/metropolitan-district-council/walsall,WC114-30,31/03/2020,Adult Social Care,5 CARE SERVICES LTD,27/03/2020,624.80,73507-DOMICILIARY CARE,PHYSICAL SUPPORT,Third Party Payments,Revenue
Walsall Council,http://opendatacommunities.org/id/metropolitan-district-council/walsall,WC114-31,31/03/2020,Adult Social Care,5 CARE SERVICES LTD,27/03/2020,661.48,73507-DOMICILIARY CARE,PHYSICAL SUPPORT,Third Party Payments,Revenue
Walsall Council,http://opendatacommunities.org/id/metropolitan-district-council/walsall,WC114-32,31/03/2020,Adult Social Care,5 CARE SERVICES LTD,27/03/2020,704.51,73507-DOMICILIARY CARE,PHYSICAL SUPPORT,Third Party Payments,Revenue
Walsall Council,http://opendatacommunities.org/id/metropolitan-district-council/walsall,WC114-33,31/03/2020,Adult Social Care,5 CARE SERVICES LTD,27/03/2020,750.01,73507-DOMICILIARY CARE,LEARNING DISABILITY SUPPORT,Third Party Payments,Revenue
Walsall Council,http://opendatacommunities.org/id/metropolitan-district-council/walsall,WC114-34,31/03/2020,Adult Social Care,5 CARE SERVICES LTD,27/03/2020,764.67,73507-DOMICILIARY CARE,SENSORY SUPPORT,Third Party Payments,Revenue
Walsall Council,http://opendatacommunities.org/id/metropolitan-district-council/walsall,WC114-35,31/03/2020,Adult Social Care,5 CARE SERVICES LTD,27/03/2020,780.55,73507-DOMICILIARY CARE,PHYSICAL SUPPORT,Third Party Payments,Revenue
Walsall Council,http://opendatacommunities.org/id/metropolitan-district-council/walsall,WC114-36,31/03/2020,Adult Social Care,5 CARE SERVICES LTD,27/03/2020,794.03,73507-DOMICILIARY CARE,PHYSICAL SUPPORT,Third Party Payments,Revenue
Walsall Council,http://opendatacommunities.org/id/metropolitan-district-council/walsall,WC114-37,31/03/2020,Adult Social Care,5 CARE SERVICES LTD,27/03/2020,802.01,73507-DOMICILIARY CARE,LEARNING DISABILITY SUPPORT,Third Party Payments,Revenue
Walsall Council,http://opendatacommunities.org/id/metropolitan-district-council/walsall,WC114-38,31/03/2020,Adult Social Care,5 CARE SERVICES LTD,27/03/2020,810.38,73507-DOMICILIARY CARE,PHYSICAL SUPPORT,Third Party Payments,Revenue
Walsall Council,http://opendatacommunities.org/id/metropolitan-district-council/walsall,WC114-39,31/03/2020,Adult Social Care,5 CARE SERVICES LTD,27/03/2020,820.35,73507-DOMICILIARY CARE,PHYSICAL SUPPORT,Third Party Payments,Revenue
Walsall Council,http://opendatacommunities.org/id/metropolitan-district-council/walsall,WC114-40,31/03/2020,Adult Social Care,5 CARE SERVICES LTD,27/03/2020,876.44,73507-DOMICILIARY CARE,PHYSICAL SUPPORT,Third Party Payments,Revenue
Walsall Council,http://opendatacommunities.org/id/metropolitan-district-council/walsall,WC114-41,31/03/2020,Adult Social Care,5 CARE SERVICES LTD,27/03/2020,883.40,73507-DOMICILIARY CARE,PHYSICAL SUPPORT,Third Party Payments,Revenue
Walsall Council,http://opendatacommunities.org/id/metropolitan-district-council/walsall,WC114-42,31/03/2020,Adult Social Care,5 CARE SERVICES LTD,27/03/2020,884.85,73507-DOMICILIARY CARE,PHYSICAL SUPPORT,Third Party Payments,Revenue
Walsall Council,http://opendatacommunities.org/id/metropolitan-district-council/walsall,WC114-43,31/03/2020,Adult Social Care,5 CARE SERVICES LTD,27/03/2020,896.65,73507-DOMICILIARY CARE,SENSORY SUPPORT,Third Party Payments,Revenue
Walsall Council,http://opendatacommunities.org/id/metropolitan-district-council/walsall,WC114-44,31/03/2020,Adult Social Care,5 CARE SERVICES LTD,27/03/2020,"1,061.90",73507-DOMICILIARY CARE,MENTAL HEALTH SUPPORT,Third Party Payments,Revenue
Walsall Council,http://opendatacommunities.org/id/metropolitan-district-council/walsall,WC114-45,31/03/2020,Adult Social Care,5 CARE SERVICES LTD,27/03/2020,"1,064.79",73507-DOMICILIARY CARE,PHYSICAL SUPPORT,Third Party Payments,Revenue
Walsall Council,http://opendatacommunities.org/id/metropolitan-district-council/walsall,WC114-46,31/03/2020,Adult Social Care,5 CARE SERVICES LTD,27/03/2020,"1,082.43",73507-DOMICILIARY CARE,LEARNING DISABILITY SUPPORT,Third Party Payments,Revenue
Walsall Council,http://opendatacommunities.org/id/metropolitan-district-council/walsall,WC114-47,31/03/2020,Adult Social Care,5 CARE SERVICES LTD,27/03/2020,"1,106.43",73507-DOMICILIARY CARE,PHYSICAL SUPPORT,Third Party Payments,Revenue
Walsall Council,http://opendatacommunities.org/id/metropolitan-district-council/walsall,WC114-48,31/03/2020,Adult Social Care,5 CARE SERVICES LTD,27/03/2020,"1,126.34",73507-DOMICILIARY CARE,PHYSICAL SUPPORT,Third Party Payments,Revenue
Walsall Council,http://opendatacommunities.org/id/metropolitan-district-council/walsall,WC114-49,31/03/2020,Adult Social Care,5 CARE SERVICES LTD,19/03/2020,"1,139.29",73025-PROFESSIONAL SERVICES-PRIV CONTRACTOR & OTHER AGENCIES,INTERMEDIATE CARE SERVICE,Third Party Payments,Revenue
Walsall Council,http://opendatacommunities.org/id/metropolitan-district-council/walsall,WC114-50,31/03/2020,Adult Social Care,5 CARE SERVICES LTD,27/03/2020,"1,142.39",73507-DOMICILIARY CARE,PHYSICAL SUPPORT,Third Party Payments,Revenue
Walsall Council,http://opendatacommunities.org/id/metropolitan-district-council/walsall,WC114-51,31/03/2020,Adult Social Care,5 CARE SERVICES LTD,27/03/2020,"1,255.10",73507-DOMICILIARY CARE,PHYSICAL SUPPORT,Third Party Payments,Revenue
Walsall Council,http://opendatacommunities.org/id/metropolitan-district-council/walsall,WC114-52,31/03/2020,Adult Social Care,5 CARE SERVICES LTD,27/03/2020,"1,450.21",73507-DOMICILIARY CARE,PHYSICAL SUPPORT,Third Party Payments,Revenue
Walsall Council,http://opendatacommunities.org/id/metropolitan-district-council/walsall,WC114-53,31/03/2020,Adult Social Care,5 CARE SERVICES LTD,27/03/2020,"1,489.27",73507-DOMICILIARY CARE,PHYSICAL SUPPORT,Third Party Payments,Revenue
Walsall Council,http://opendatacommunities.org/id/metropolitan-district-council/walsall,WC114-54,31/03/2020,Adult Social Care,5 CARE SERVICES LTD,27/03/2020,"1,568.06",73507-DOMICILIARY CARE,PHYSICAL SUPPORT,Third Party Payments,Revenue
Walsall Council,http://opendatacommunities.org/id/metropolitan-district-council/walsall,WC114-55,31/03/2020,Adult Social Care,5 CARE SERVICES LTD,27/03/2020,"1,580.39",73507-DOMICILIARY CARE,PHYSICAL SUPPORT,Third Party Payments,Revenue
Walsall Council,http://opendatacommunities.org/id/metropolitan-district-council/walsall,WC114-56,31/03/2020,Adult Social Care,5 CARE SERVICES LTD,27/03/2020,"1,603.80",73507-DOMICILIARY CARE,PHYSICAL SUPPORT,Third Party Payments,Revenue
Walsall Council,http://opendatacommunities.org/id/metropolitan-district-council/walsall,WC114-57,31/03/2020,Adult Social Care,5 CARE SERVICES LTD,27/03/2020,"1,752.76",73507-DOMICILIARY CARE,PHYSICAL SUPPORT,Third Party Payments,Revenue
Walsall Council,http://opendatacommunities.org/id/metropolitan-district-council/walsall,WC114-58,31/03/2020,Adult Social Care,5 CARE SERVICES LTD,27/03/2020,"1,807.80",73507-DOMICILIARY CARE,MENTAL HEALTH SUPPORT,Third Party Payments,Revenue
Walsall Council,http://opendatacommunities.org/id/metropolitan-district-council/walsall,WC114-59,31/03/2020,Adult Social Care,5 CARE SERVICES LTD,27/03/2020,"1,859.89",73507-DOMICILIARY CARE,PHYSICAL SUPPORT,Third Party Payments,Revenue
Walsall Council,http://opendatacommunities.org/id/metropolitan-district-council/walsall,WC114-60,31/03/2020,Adult Social Care,5 CARE SERVICES LTD,27/03/2020,"1,988.32",73507-DOMICILIARY CARE,PHYSICAL SUPPORT,Third Party Payments,Revenue
Walsall Council,http://opendatacommunities.org/id/metropolitan-district-council/walsall,WC114-61,31/03/2020,Adult Social Care,5 CARE SERVICES LTD,27/03/2020,"2,069.20",73507-DOMICILIARY CARE,PHYSICAL SUPPORT,Third Party Payments,Revenue
Walsall Council,http://opendatacommunities.org/id/metropolitan-district-council/walsall,WC114-62,31/03/2020,Adult Social Care,5 CARE SERVICES LTD,27/03/2020,"2,336.29",73507-DOMICILIARY CARE,PHYSICAL SUPPORT,Third Party Payments,Revenue
Walsall Council,http://opendatacommunities.org/id/metropolitan-district-council/walsall,WC114-63,31/03/2020,Adult Social Care,5 CARE SERVICES LTD,27/03/2020,"3,166.93",73507-DOMICILIARY CARE,PHYSICAL SUPPORT,Third Party Payments,Revenue
Walsall Council,http://opendatacommunities.org/id/metropolitan-district-council/walsall,WC114-64,31/03/2020,Adult Social Care,5 CARE SERVICES LTD,27/03/2020,"4,309.89",73507-DOMICILIARY CARE,PHYSICAL SUPPORT,Third Party Payments,Revenue
Walsall Council,http://opendatacommunities.org/id/metropolitan-district-council/walsall,WC114-65,31/03/2020,Resources and Transformation,A D T FIRE AND SECURITY PLC,09/03/2020,293.19,73002-SECURITY-PRIV CONTRACTOR FEES,CENTRALISED MAINTENANCE,Third Party Payments,Revenue
Walsall Council,http://opendatacommunities.org/id/metropolitan-district-council/walsall,WC114-66,31/03/2020,Resources and Transformation,A D T FIRE AND SECURITY PLC,18/03/2020,"1,308.25",73002-SECURITY-PRIV CONTRACTOR FEES,CENTRALISED MAINTENANCE,Third Party Payments,Revenue
Walsall Council,http://opendatacommunities.org/id/metropolitan-district-council/walsall,WC114-67,31/03/2020,Economy & Environment,A F BLAKEMORE & SON LTD,09/03/2020,354.28,61000-FOOD & DRINK SUPPLIES,OAK PARK,Supplies & Services,Revenue
Walsall Council,http://opendatacommunities.org/id/metropolitan-district-council/walsall,WC114-68,31/03/2020,Economy & Environment,A F BLAKEMORE & SON LTD,04/03/2020,362.57,61000-FOOD & DRINK SUPPLIES,BLOXWICH LEISURE CENTRE,Supplies & Services,Revenue
Walsall Council,http://opendatacommunities.org/id/metropolitan-district-council/walsall,WC114-69,31/03/2020,Economy & Environment,A F BLAKEMORE & SON LTD,26/03/2020,426.37,61000-FOOD & DRINK SUPPLIES,OAK PARK,Supplies & Services,Revenue
Walsall Council,http://opendatacommunities.org/id/metropolitan-district-council/walsall,WC114-70,31/03/2020,Adult Social Care,A F BLAKEMORE & SON LTD,11/03/2020,432.51,61016-FOOD AND BEVERAGES-PROVISIONS,GOSCOTE,Supplies & Services,Revenue
Walsall Council,http://opendatacommunities.org/id/metropolitan-district-council/walsall,WC114-71,31/03/2020,Economy & Environment,A F BLAKEMORE & SON LTD,11/03/2020,443.33,61000-FOOD & DRINK SUPPLIES,OAK PARK,Supplies & Services,Revenue
Walsall Council,http://opendatacommunities.org/id/metropolitan-district-council/walsall,WC114-72,31/03/2020,Economy & Environment,A F BLAKEMORE & SON LTD,12/03/2020,553.69,61000-FOOD & DRINK SUPPLIES,OAK PARK,Supplies & Services,Revenue
Walsall Council,http://opendatacommunities.org/id/metropolitan-district-council/walsall,WC114-73,31/03/2020,Adult Social Care,A F BLAKEMORE & SON LTD,19/03/2020,620.04,61016-FOOD AND BEVERAGES-PROVISIONS,GOSCOTE,Supplies & Services,Revenue
Walsall Council,http://opendatacommunities.org/id/metropolitan-district-council/walsall,WC114-74,31/03/2020,Economy & Environment,A F BLAKEMORE & SON LTD,01/03/2020,642.60,61000-FOOD & DRINK SUPPLIES,BLOXWICH LEISURE CENTRE,Supplies & Services,Revenue
Walsall Council,http://opendatacommunities.org/id/metropolitan-district-council/walsall,WC114-75,31/03/2020,Economy & Environment,A F BLAKEMORE & SON LTD,04/03/2020,705.55,61000-FOOD & DRINK SUPPLIES,BLOXWICH LEISURE CENTRE,Supplies & Services,Revenue
Walsall Council,http://opendatacommunities.org/id/metropolitan-district-council/walsall,WC114-76,31/03/2020,Economy & Environment,A F BLAKEMORE & SON LTD,16/03/2020,782.84,61000-FOOD & DRINK SUPPLIES,OAK PARK,Supplies & Services,Revenue
Walsall Council,http://opendatacommunities.org/id/metropolitan-district-council/walsall,WC114-77,31/03/2020,Economy & Environment,A F BLAKEMORE & SON LTD,09/03/2020,852.47,61000-FOOD & DRINK SUPPLIES,OAK PARK,Supplies & Services,Revenue
Walsall Council,http://opendatacommunities.org/id/metropolitan-district-council/walsall,WC114-78,31/03/2020,Economy & Environment,A F BLAKEMORE & SON LTD,20/03/2020,989.95,61000-FOOD & DRINK SUPPLIES,BLOXWICH LEISURE CENTRE,Supplies & Services,Revenue
Walsall Council,http://opendatacommunities.org/id/metropolitan-district-council/walsall,WC114-79,31/03/2020,Resources and Transformation,AAINA COMMUNITY HUB,23/03/2020,"5,160.00",64002-OTHER EXPENSES-EXPENSES,PREVENT GRANT,Supplies & Services,Revenue
Walsall Council,http://opendatacommunities.org/id/metropolitan-district-council/walsall,WC114-80,31/03/2020,Childrens,REDACTED,10/03/2020,890.15,73506-DIRECT PAYMENT,FAMILY SUPPORT - DIRECT PAYMENTS,Third Party Payments,Revenue
Walsall Council,http://opendatacommunities.org/id/metropolitan-district-council/walsall,WC114-81,31/03/2020,Adult Social Care,ABBEY COURT NURSING & RESIDEN,26/03/2020,"1,814.96",73500-RESIDENTIAL,PHYSICAL SUPPORT,Third Party Payments,Revenue
Walsall Council,http://opendatacommunities.org/id/metropolitan-district-council/walsall,WC114-82,31/03/2020,Adult Social Care,ABBEY COURT NURSING & RESIDEN,26/03/2020,"1,972.24",73501-RESIDENTIAL EMI,PHYSICAL SUPPORT,Third Party Payments,Revenue
Walsall Council,http://opendatacommunities.org/id/metropolitan-district-council/walsall,WC114-83,31/03/2020,Adult Social Care,ABBEY COURT NURSING & RESIDEN,26/03/2020,"1,972.24",73501-RESIDENTIAL EMI,SUPPORT WITH MEMORY & COGNITION,Third Party Payments,Revenue
Walsall Council,http://opendatacommunities.org/id/metropolitan-district-council/walsall,WC114-84,31/03/2020,Adult Social Care,ABBEY COURT NURSING & RESIDEN,26/03/2020,"1,972.24",73501-RESIDENTIAL EMI,PHYSICAL SUPPORT,Third Party Payments,Revenue
Walsall Council,http://opendatacommunities.org/id/metropolitan-district-council/walsall,WC114-85,31/03/2020,Adult Social Care,ABBEY COURT NURSING & RESIDEN,26/03/2020,"2,358.08",73503-NURSING EMI,MENTAL HEALTH SUPPORT,Third Party Payments,Revenue
Walsall Council,http://opendatacommunities.org/id/metropolitan-district-council/walsall,WC114-86,31/03/2020,Adult Social Care,ABBEY COURT NURSING & RESIDEN,26/03/2020,"2,383.72",73502-NURSING,SUPPORT WITH MEMORY & COGNITION,Third Party Payments,Revenue
Walsall Council,http://opendatacommunities.org/id/metropolitan-district-council/walsall,WC114-87,31/03/2020,Adult Social Care,ABBEY HEALTHCARE HOMES LTD,26/03/2020,"2,317.04",73500-RESIDENTIAL,PHYSICAL SUPPORT,Third Party Payments,Revenue
Walsall Council,http://opendatacommunities.org/id/metropolitan-district-council/walsall,WC114-88,31/03/2020,Adult Social Care,ABBEY HEALTHCARE HOMES LTD,26/03/2020,"3,030.00",73500-RESIDENTIAL,LEARNING DISABILITY SUPPORT,Third Party Payments,Revenue
Walsall Council,http://opendatacommunities.org/id/metropolitan-district-council/walsall,WC114-89,31/03/2020,Adult Social Care,ABBEY HEALTHCARE HOMES LTD,26/03/2020,"3,030.00",73500-RESIDENTIAL,PHYSICAL SUPPORT,Third Party Payments,Revenue
Walsall Council,http://opendatacommunities.org/id/metropolitan-district-council/walsall,WC114-90,31/03/2020,Adult Social Care,ABBEY HEALTHCARE HOMES LTD,26/03/2020,"3,434.00",73500-RESIDENTIAL,LEARNING DISABILITY SUPPORT,Third Party Payments,Revenue
Walsall Council,http://opendatacommunities.org/id/metropolitan-district-council/walsall,WC114-91,31/03/2020,Adult Social Care,ABBEY HEALTHCARE HOMES LTD,26/03/2020,"3,514.44",73503-NURSING EMI,PHYSICAL SUPPORT,Third Party Payments,Revenue
Walsall Council,http://opendatacommunities.org/id/metropolitan-district-council/walsall,WC114-92,31/03/2020,Resources and Transformation,ABEL ALARM CO LTD,18/03/2020,404.00,73002-SECURITY-PRIV CONTRACTOR FEES,REDUNDANT BUILDINGS,Third Party Payments,Revenue
Walsall Council,http://opendatacommunities.org/id/metropolitan-district-council/walsall,WC114-93,31/03/2020,Adult Social Care,REDACTED,11/03/2020,"2,499.00",73506-DIRECT PAYMENT,LEARNING DISABILITY SUPPORT,Third Party Payments,Revenue
Walsall Council,http://opendatacommunities.org/id/metropolitan-district-council/walsall,WC114-94,31/03/2020,Childrens,ABLEWELL CARS,27/03/2020,-316.75,52000-WITH DRIVER-HIRE OF VEHICLES,HOME TO SCHOOL TRANSPORT,Transport,Revenue
Walsall Council,http://opendatacommunities.org/id/metropolitan-district-council/walsall,WC114-95,31/03/2020,Childrens,ABLEWELL CARS,27/03/2020,-264.00,52000-WITH DRIVER-HIRE OF VEHICLES,HOME TO SCHOOL TRANSPORT,Transport,Revenue
Walsall Council,http://opendatacommunities.org/id/metropolitan-district-council/walsall,WC114-96,31/03/2020,Childrens,ABLEWELL CARS,27/03/2020,328.00,52000-WITH DRIVER-HIRE OF VEHICLES,HOME TO SCHOOL TRANSPORT,Transport,Revenue
Walsall Council,http://opendatacommunities.org/id/metropolitan-district-council/walsall,WC114-97,31/03/2020,Childrens,ABLEWELL CARS,27/03/2020,528.00,52000-WITH DRIVER-HIRE OF VEHICLES,HOME TO SCHOOL TRANSPORT,Transport,Revenue
Walsall Council,http://opendatacommunities.org/id/metropolitan-district-council/walsall,WC114-98,31/03/2020,Childrens,ABLEWELL CARS,27/03/2020,528.00,52000-WITH DRIVER-HIRE OF VEHICLES,HOME TO SCHOOL TRANSPORT,Transport,Revenue
Walsall Council,http://opendatacommunities.org/id/metropolitan-district-council/walsall,WC114-99,31/03/2020,Childrens,ABLEWELL CARS,27/03/2020,656.00,52000-WITH DRIVER-HIRE OF VEHICLES,HOME TO SCHOOL TRANSPORT,Transport,Revenue
Walsall Council,http://opendatacommunities.org/id/metropolitan-district-council/walsall,WC114-100,31/03/2020,Childrens,ABLEWELL CARS,27/03/2020,"1,266.40",52000-WITH DRIVER-HIRE OF VEHICLES,HOME TO SCHOOL TRANSPORT,Transport,Revenue
Walsall Council,http://opendatacommunities.org/id/metropolitan-district-council/walsall,WC114-101,31/03/2020,Childrens,ABS TAXIS (ALDRIDGE),27/03/2020,378.00,52000-WITH DRIVER-HIRE OF VEHICLES,HOME TO SCHOOL TRANSPORT,Transport,Revenue
Walsall Council,http://opendatacommunities.org/id/metropolitan-district-council/walsall,WC114-102,31/03/2020,Childrens,ABS TAXIS (ALDRIDGE),27/03/2020,378.00,52000-WITH DRIVER-HIRE OF VEHICLES,HOME TO SCHOOL TRANSPORT,Transport,Revenue
Walsall Council,http://opendatacommunities.org/id/metropolitan-district-council/walsall,WC114-103,31/03/2020,Childrens,ABS TAXIS (ALDRIDGE),27/03/2020,378.00,52000-WITH DRIVER-HIRE OF VEHICLES,HOME TO SCHOOL TRANSPORT,Transport,Revenue
Walsall Council,http://opendatacommunities.org/id/metropolitan-district-council/walsall,WC114-104,31/03/2020,Childrens,ABS TAXIS (ALDRIDGE),27/03/2020,403.60,52000-WITH DRIVER-HIRE OF VEHICLES,HOME TO SCHOOL TRANSPORT,Transport,Revenue
Walsall Council,http://opendatacommunities.org/id/metropolitan-district-council/walsall,WC114-105,31/03/2020,Childrens,ABS TAXIS (ALDRIDGE),27/03/2020,403.60,52000-WITH DRIVER-HIRE OF VEHICLES,HOME TO SCHOOL TRANSPORT,Transport,Revenue
Walsall Council,http://opendatacommunities.org/id/metropolitan-district-council/walsall,WC114-106,31/03/2020,Childrens,ABS TAXIS (ALDRIDGE),27/03/2020,490.00,52000-WITH DRIVER-HIRE OF VEHICLES,HOME TO SCHOOL TRANSPORT,Transport,Revenue
Walsall Council,http://opendatacommunities.org/id/metropolitan-district-council/walsall,WC114-107,31/03/2020,Childrens,ABU BAKR NURSERY,31/03/2020,262.35,77300-ISB-FORMULA ALLOCATION,EARLY YEARS - PUPIL PREMIUM,Transfer Payments,Revenue
Walsall Council,http://opendatacommunities.org/id/metropolitan-district-council/walsall,WC114-108,31/03/2020,Economy & Environment,AC JADE TRADING LIMITED,16/03/2020,330.45,60514-MATERIALS TO STORES,NAG - NEW ART GALLERY SHOP STOCK,Supplies & Services,Revenue
Walsall Council,http://opendatacommunities.org/id/metropolitan-district-council/walsall,WC114-109,31/03/2020,Adult Social Care,ACCORD - AGE MATTERS,11/03/2020,-296.00,76423-DIRECT PAYMENTS SUPPORT,DIRECT PAYMENT SUPPORT ORGANISATIONS,Transfer Payments,Revenue
Walsall Council,http://opendatacommunities.org/id/metropolitan-district-council/walsall,WC114-110,31/03/2020,Adult Social Care,ACCORD - AGE MATTERS,11/03/2020,540.50,76423-DIRECT PAYMENTS SUPPORT,DIRECT PAYMENT SUPPORT ORGANISATIONS,Transfer Payments,Revenue
Walsall Council,http://opendatacommunities.org/id/metropolitan-district-council/walsall,WC114-111,31/03/2020,Adult Social Care,ACCORD HOUSING ASSOCIATION LIMITED - HOBS MEADOW,26/03/2020,"4,550.44",73500-RESIDENTIAL,LEARNING DISABILITY SUPPORT,Third Party Payments,Revenue
Walsall Council,http://opendatacommunities.org/id/metropolitan-district-council/walsall,WC114-112,31/03/2020,Adult Social Care,ACCORD HOUSING ASSOCIATION LIMITED - HOBS MEADOW,26/03/2020,"4,550.44",73500-RESIDENTIAL,LEARNING DISABILITY SUPPORT,Third Party Payments,Revenue
Walsall Council,http://opendatacommunities.org/id/metropolitan-district-council/walsall,WC114-113,31/03/2020,Adult Social Care,ACCORD HOUSING ASSOCIATION LIMITED - HOBS MEADOW,26/03/2020,"4,550.44",73500-RESIDENTIAL,LEARNING DISABILITY SUPPORT,Third Party Payments,Revenue
Walsall Council,http://opendatacommunities.org/id/metropolitan-district-council/walsall,WC114-114,31/03/2020,Adult Social Care,ACCORD HOUSING ASSOCIATION LIMITED - HOBS MEADOW,26/03/2020,"4,550.44",73500-RESIDENTIAL,LEARNING DISABILITY SUPPORT,Third Party Payments,Revenue
Walsall Council,http://opendatacommunities.org/id/metropolitan-district-council/walsall,WC114-115,31/03/2020,Adult Social Care,ACCORD HOUSING ASSOCIATION LTD#135,16/03/2020,-717.80,73508-COMMUNITY SUPPORTED LIVING/SUPPORTED ACCOMMODATION,MENTAL HEALTH SUPPORT,Third Party Payments,Revenue
Walsall Council,http://opendatacommunities.org/id/metropolitan-district-council/walsall,WC114-116,31/03/2020,Adult Social Care,ACCORD HOUSING ASSOCIATION LTD#135,03/03/2020,-105.53,73507-DOMICILIARY CARE,LEARNING DISABILITY SUPPORT,Third Party Payments,Revenue
Walsall Council,http://opendatacommunities.org/id/metropolitan-district-council/walsall,WC114-117,31/03/2020,Adult Social Care,ACCORD HOUSING ASSOCIATION LTD#135,30/03/2020,78.64,73507-DOMICILIARY CARE,MENTAL HEALTH SUPPORT,Third Party Payments,Revenue
Walsall Council,http://opendatacommunities.org/id/metropolitan-district-council/walsall,WC114-118,31/03/2020,Adult Social Care,ACCORD HOUSING ASSOCIATION LTD#135,30/03/2020,188.48,73508-COMMUNITY SUPPORTED LIVING/SUPPORTED ACCOMMODATION,MENTAL HEALTH SUPPORT,Third Party Payments,Revenue
Walsall Council,http://opendatacommunities.org/id/metropolitan-district-council/walsall,WC114-119,31/03/2020,Adult Social Care,ACCORD HOUSING ASSOCIATION LTD#135,03/03/2020,258.00,73507-DOMICILIARY CARE,LEARNING DISABILITY SUPPORT,Third Party Payments,Revenue
Walsall Council,http://opendatacommunities.org/id/metropolitan-district-council/walsall,WC114-120,31/03/2020,Adult Social Care,ACCORD HOUSING ASSOCIATION LTD#135,03/03/2020,267.12,73507-DOMICILIARY CARE,MENTAL HEALTH SUPPORT,Third Party Payments,Revenue
Walsall Council,http://opendatacommunities.org/id/metropolitan-district-council/walsall,WC114-121,31/03/2020,Adult Social Care,ACCORD HOUSING ASSOCIATION LTD#135,03/03/2020,291.33,73507-DOMICILIARY CARE,MENTAL HEALTH SUPPORT,Third Party Payments,Revenue
Walsall Council,http://opendatacommunities.org/id/metropolitan-district-council/walsall,WC114-122,31/03/2020,Adult Social Care,ACCORD HOUSING ASSOCIATION LTD#135,03/03/2020,296.16,73507-DOMICILIARY CARE,PHYSICAL SUPPORT,Third Party Payments,Revenue
Walsall Council,http://opendatacommunities.org/id/metropolitan-district-council/walsall,WC114-123,31/03/2020,Adult Social Care,ACCORD HOUSING ASSOCIATION LTD#135,30/03/2020,296.16,73507-DOMICILIARY CARE,PHYSICAL SUPPORT,Third Party Payments,Revenue
Walsall Council,http://opendatacommunities.org/id/metropolitan-district-council/walsall,WC114-124,31/03/2020,Adult Social Care,ACCORD HOUSING ASSOCIATION LTD#135,03/03/2020,300.72,73507-DOMICILIARY CARE,PHYSICAL SUPPORT,Third Party Payments,Revenue
Walsall Council,http://opendatacommunities.org/id/metropolitan-district-council/walsall,WC114-125,31/03/2020,Adult Social Care,ACCORD HOUSING ASSOCIATION LTD#135,03/03/2020,300.93,73507-DOMICILIARY CARE,MENTAL HEALTH SUPPORT,Third Party Payments,Revenue
Walsall Council,http://opendatacommunities.org/id/metropolitan-district-council/walsall,WC114-126,31/03/2020,Adult Social Care,ACCORD HOUSING ASSOCIATION LTD#135,03/03/2020,334.32,73507-DOMICILIARY CARE,PHYSICAL SUPPORT,Third Party Payments,Revenue
Walsall Council,http://opendatacommunities.org/id/metropolitan-district-council/walsall,WC114-127,31/03/2020,Adult Social Care,ACCORD HOUSING ASSOCIATION LTD#135,30/03/2020,334.32,73507-DOMICILIARY CARE,MENTAL HEALTH SUPPORT,Third Party Payments,Revenue
Walsall Council,http://opendatacommunities.org/id/metropolitan-district-council/walsall,WC114-128,31/03/2020,Adult Social Care,ACCORD HOUSING ASSOCIATION LTD#135,16/03/2020,358.90,73508-COMMUNITY SUPPORTED LIVING/SUPPORTED ACCOMMODATION,MENTAL HEALTH SUPPORT,Third Party Payments,Revenue
Walsall Council,http://opendatacommunities.org/id/metropolitan-district-council/walsall,WC114-129,31/03/2020,Adult Social Care,ACCORD HOUSING ASSOCIATION LTD#135,03/03/2020,391.64,73507-DOMICILIARY CARE,MENTAL HEALTH SUPPORT,Third Party Payments,Revenue
Walsall Council,http://opendatacommunities.org/id/metropolitan-district-council/walsall,WC114-130,31/03/2020,Adult Social Care,ACCORD HOUSING ASSOCIATION LTD#135,30/03/2020,391.64,73507-DOMICILIARY CARE,MENTAL HEALTH SUPPORT,Third Party Payments,Revenue
Walsall Council,http://opendatacommunities.org/id/metropolitan-district-council/walsall,WC114-131,31/03/2020,Adult Social Care,ACCORD HOUSING ASSOCIATION LTD#135,03/03/2020,400.68,73507-DOMICILIARY CARE,PHYSICAL SUPPORT,Third Party Payments,Revenue
Walsall Council,http://opendatacommunities.org/id/metropolitan-district-council/walsall,WC114-132,31/03/2020,Adult Social Care,ACCORD HOUSING ASSOCIATION LTD#135,03/03/2020,400.68,73507-DOMICILIARY CARE,MENTAL HEALTH SUPPORT,Third Party Payments,Revenue
Walsall Council,http://opendatacommunities.org/id/metropolitan-district-council/walsall,WC114-133,31/03/2020,Adult Social Care,ACCORD HOUSING ASSOCIATION LTD#135,03/03/2020,400.68,73507-DOMICILIARY CARE,PHYSICAL SUPPORT,Third Party Payments,Revenue
Walsall Council,http://opendatacommunities.org/id/metropolitan-district-council/walsall,WC114-134,31/03/2020,Adult Social Care,ACCORD HOUSING ASSOCIATION LTD#135,03/03/2020,411.20,73508-COMMUNITY SUPPORTED LIVING/SUPPORTED ACCOMMODATION,LEARNING DISABILITY SUPPORT,Third Party Payments,Revenue
Walsall Council,http://opendatacommunities.org/id/metropolitan-district-council/walsall,WC114-135,31/03/2020,Adult Social Care,ACCORD HOUSING ASSOCIATION LTD#135,03/03/2020,415.13,73507-DOMICILIARY CARE,LEARNING DISABILITY SUPPORT,Third Party Payments,Revenue
Walsall Council,http://opendatacommunities.org/id/metropolitan-district-council/walsall,WC114-136,31/03/2020,Adult Social Care,ACCORD HOUSING ASSOCIATION LTD#135,03/03/2020,458.04,73507-DOMICILIARY CARE,MENTAL HEALTH SUPPORT,Third Party Payments,Revenue
Walsall Council,http://opendatacommunities.org/id/metropolitan-district-council/walsall,WC114-137,31/03/2020,Adult Social Care,ACCORD HOUSING ASSOCIATION LTD#135,03/03/2020,467.88,73507-DOMICILIARY CARE,PHYSICAL SUPPORT,Third Party Payments,Revenue
Walsall Council,http://opendatacommunities.org/id/metropolitan-district-council/walsall,WC114-138,31/03/2020,Adult Social Care,ACCORD HOUSING ASSOCIATION LTD#135,03/03/2020,477.99,73507-DOMICILIARY CARE,LEARNING DISABILITY SUPPORT,Third Party Payments,Revenue
Walsall Council,http://opendatacommunities.org/id/metropolitan-district-council/walsall,WC114-139,31/03/2020,Adult Social Care,ACCORD HOUSING ASSOCIATION LTD#135,03/03/2020,486.68,73507-DOMICILIARY CARE,LEARNING DISABILITY SUPPORT,Third Party Payments,Revenue
Walsall Council,http://opendatacommunities.org/id/metropolitan-district-council/walsall,WC114-140,31/03/2020,Adult Social Care,ACCORD HOUSING ASSOCIATION LTD#135,03/03/2020,487.56,73507-DOMICILIARY CARE,LEARNING DISABILITY SUPPORT,Third Party Payments,Revenue
Walsall Council,http://opendatacommunities.org/id/metropolitan-district-council/walsall,WC114-141,31/03/2020,Adult Social Care,ACCORD HOUSING ASSOCIATION LTD#135,03/03/2020,501.76,73507-DOMICILIARY CARE,MENTAL HEALTH SUPPORT,Third Party Payments,Revenue
Walsall Council,http://opendatacommunities.org/id/metropolitan-district-council/walsall,WC114-142,31/03/2020,Adult Social Care,ACCORD HOUSING ASSOCIATION LTD#135,03/03/2020,535.08,73507-DOMICILIARY CARE,PHYSICAL SUPPORT,Third Party Payments,Revenue
Walsall Council,http://opendatacommunities.org/id/metropolitan-district-council/walsall,WC114-143,31/03/2020,Adult Social Care,ACCORD HOUSING ASSOCIATION LTD#135,03/03/2020,563.72,73507-DOMICILIARY CARE,PHYSICAL SUPPORT,Third Party Payments,Revenue
Walsall Council,http://opendatacommunities.org/id/metropolitan-district-council/walsall,WC114-144,31/03/2020,Adult Social Care,ACCORD HOUSING ASSOCIATION LTD#135,30/03/2020,563.72,73507-DOMICILIARY CARE,PHYSICAL SUPPORT,Third Party Payments,Revenue
Walsall Council,http://opendatacommunities.org/id/metropolitan-district-council/walsall,WC114-145,31/03/2020,Adult Social Care,ACCORD HOUSING ASSOCIATION LTD#135,03/03/2020,602.28,73507-DOMICILIARY CARE,SENSORY SUPPORT,Third Party Payments,Revenue
Walsall Council,http://opendatacommunities.org/id/metropolitan-district-council/walsall,WC114-146,31/03/2020,Adult Social Care,ACCORD HOUSING ASSOCIATION LTD#135,03/03/2020,604.48,73508-COMMUNITY SUPPORTED LIVING/SUPPORTED ACCOMMODATION,MENTAL HEALTH SUPPORT,Third Party Payments,Revenue
Walsall Council,http://opendatacommunities.org/id/metropolitan-district-council/walsall,WC114-147,31/03/2020,Adult Social Care,ACCORD HOUSING ASSOCIATION LTD#135,30/03/2020,604.48,73508-COMMUNITY SUPPORTED LIVING/SUPPORTED ACCOMMODATION,MENTAL HEALTH SUPPORT,Third Party Payments,Revenue
Walsall Council,http://opendatacommunities.org/id/metropolitan-district-council/walsall,WC114-148,31/03/2020,Adult Social Care,ACCORD HOUSING ASSOCIATION LTD#135,03/03/2020,615.48,73507-DOMICILIARY CARE,SUPPORT WITH MEMORY & COGNITION,Third Party Payments,Revenue
Walsall Council,http://opendatacommunities.org/id/metropolitan-district-council/walsall,WC114-149,31/03/2020,Adult Social Care,ACCORD HOUSING ASSOCIATION LTD#135,03/03/2020,642.24,73508-COMMUNITY SUPPORTED LIVING/SUPPORTED ACCOMMODATION,MENTAL HEALTH SUPPORT,Third Party Payments,Revenue
Walsall Council,http://opendatacommunities.org/id/metropolitan-district-council/walsall,WC114-150,31/03/2020,Adult Social Care,ACCORD HOUSING ASSOCIATION LTD#135,30/03/2020,642.24,73508-COMMUNITY SUPPORTED LIVING/SUPPORTED ACCOMMODATION,MENTAL HEALTH SUPPORT,Third Party Payments,Revenue
Walsall Council,http://opendatacommunities.org/id/metropolitan-district-council/walsall,WC114-151,31/03/2020,Adult Social Care,ACCORD HOUSING ASSOCIATION LTD#135,03/03/2020,644.43,73507-DOMICILIARY CARE,PHYSICAL SUPPORT,Third Party Payments,Revenue
Walsall Council,http://opendatacommunities.org/id/metropolitan-district-council/walsall,WC114-152,31/03/2020,Adult Social Care,ACCORD HOUSING ASSOCIATION LTD#135,03/03/2020,661.12,73508-COMMUNITY SUPPORTED LIVING/SUPPORTED ACCOMMODATION,MENTAL HEALTH SUPPORT,Third Party Payments,Revenue
Walsall Council,http://opendatacommunities.org/id/metropolitan-district-council/walsall,WC114-153,31/03/2020,Adult Social Care,ACCORD HOUSING ASSOCIATION LTD#135,16/03/2020,661.12,73508-COMMUNITY SUPPORTED LIVING/SUPPORTED ACCOMMODATION,MENTAL HEALTH SUPPORT,Third Party Payments,Revenue
Walsall Council,http://opendatacommunities.org/id/metropolitan-district-council/walsall,WC114-154,31/03/2020,Adult Social Care,ACCORD HOUSING ASSOCIATION LTD#135,16/03/2020,661.12,73508-COMMUNITY SUPPORTED LIVING/SUPPORTED ACCOMMODATION,MENTAL HEALTH SUPPORT,Third Party Payments,Revenue
Walsall Council,http://opendatacommunities.org/id/metropolitan-district-council/walsall,WC114-155,31/03/2020,Adult Social Care,ACCORD HOUSING ASSOCIATION LTD#135,16/03/2020,661.12,73508-COMMUNITY SUPPORTED LIVING/SUPPORTED ACCOMMODATION,MENTAL HEALTH SUPPORT,Third Party Payments,Revenue
Walsall Council,http://opendatacommunities.org/id/metropolitan-district-council/walsall,WC114-156,31/03/2020,Adult Social Care,ACCORD HOUSING ASSOCIATION LTD#135,30/03/2020,661.12,73508-COMMUNITY SUPPORTED LIVING/SUPPORTED ACCOMMODATION,MENTAL HEALTH SUPPORT,Third Party Payments,Revenue
Walsall Council,http://opendatacommunities.org/id/metropolitan-district-council/walsall,WC114-157,31/03/2020,Adult Social Care,ACCORD HOUSING ASSOCIATION LTD#135,03/03/2020,668.64,73507-DOMICILIARY CARE,MENTAL HEALTH SUPPORT,Third Party Payments,Revenue
Walsall Council,http://opendatacommunities.org/id/metropolitan-district-council/walsall,WC114-158,31/03/2020,Adult Social Care,ACCORD HOUSING ASSOCIATION LTD#135,03/03/2020,668.64,73507-DOMICILIARY CARE,PHYSICAL SUPPORT,Third Party Payments,Revenue
Walsall Council,http://opendatacommunities.org/id/metropolitan-district-council/walsall,WC114-159,31/03/2020,Adult Social Care,ACCORD HOUSING ASSOCIATION LTD#135,03/03/2020,680.04,73508-COMMUNITY SUPPORTED LIVING/SUPPORTED ACCOMMODATION,MENTAL HEALTH SUPPORT,Third Party Payments,Revenue
Walsall Council,http://opendatacommunities.org/id/metropolitan-district-council/walsall,WC114-160,31/03/2020,Adult Social Care,ACCORD HOUSING ASSOCIATION LTD#135,30/03/2020,680.04,73508-COMMUNITY SUPPORTED LIVING/SUPPORTED ACCOMMODATION,MENTAL HEALTH SUPPORT,Third Party Payments,Revenue
Walsall Council,http://opendatacommunities.org/id/metropolitan-district-council/walsall,WC114-161,31/03/2020,Adult Social Care,ACCORD HOUSING ASSOCIATION LTD#135,30/03/2020,680.58,73507-DOMICILIARY CARE,MENTAL HEALTH SUPPORT,Third Party Payments,Revenue
Walsall Council,http://opendatacommunities.org/id/metropolitan-district-council/walsall,WC114-162,31/03/2020,Adult Social Care,ACCORD HOUSING ASSOCIATION LTD#135,03/03/2020,692.52,73507-DOMICILIARY CARE,MENTAL HEALTH SUPPORT,Third Party Payments,Revenue
Walsall Council,http://opendatacommunities.org/id/metropolitan-district-council/walsall,WC114-163,31/03/2020,Adult Social Care,ACCORD HOUSING ASSOCIATION LTD#135,03/03/2020,701.68,73507-DOMICILIARY CARE,PHYSICAL SUPPORT,Third Party Payments,Revenue
Walsall Council,http://opendatacommunities.org/id/metropolitan-district-council/walsall,WC114-164,31/03/2020,Adult Social Care,ACCORD HOUSING ASSOCIATION LTD#135,03/03/2020,717.80,73508-COMMUNITY SUPPORTED LIVING/SUPPORTED ACCOMMODATION,MENTAL HEALTH SUPPORT,Third Party Payments,Revenue
Walsall Council,http://opendatacommunities.org/id/metropolitan-district-council/walsall,WC114-165,31/03/2020,Adult Social Care,ACCORD HOUSING ASSOCIATION LTD#135,03/03/2020,717.80,73508-COMMUNITY SUPPORTED LIVING/SUPPORTED ACCOMMODATION,MENTAL HEALTH SUPPORT,Third Party Payments,Revenue
Walsall Council,http://opendatacommunities.org/id/metropolitan-district-council/walsall,WC114-166,31/03/2020,Adult Social Care,ACCORD HOUSING ASSOCIATION LTD#135,16/03/2020,717.80,73508-COMMUNITY SUPPORTED LIVING/SUPPORTED ACCOMMODATION,MENTAL HEALTH SUPPORT,Third Party Payments,Revenue
Walsall Council,http://opendatacommunities.org/id/metropolitan-district-council/walsall,WC114-167,31/03/2020,Adult Social Care,ACCORD HOUSING ASSOCIATION LTD#135,16/03/2020,717.80,73508-COMMUNITY SUPPORTED LIVING/SUPPORTED ACCOMMODATION,MENTAL HEALTH SUPPORT,Third Party Payments,Revenue
Walsall Council,http://opendatacommunities.org/id/metropolitan-district-council/walsall,WC114-168,31/03/2020,Adult Social Care,ACCORD HOUSING ASSOCIATION LTD#135,16/03/2020,717.80,73508-COMMUNITY SUPPORTED LIVING/SUPPORTED ACCOMMODATION,MENTAL HEALTH SUPPORT,Third Party Payments,Revenue
Walsall Council,http://opendatacommunities.org/id/metropolitan-district-council/walsall,WC114-169,31/03/2020,Adult Social Care,ACCORD HOUSING ASSOCIATION LTD#135,16/03/2020,717.80,73508-COMMUNITY SUPPORTED LIVING/SUPPORTED ACCOMMODATION,MENTAL HEALTH SUPPORT,Third Party Payments,Revenue
Walsall Council,http://opendatacommunities.org/id/metropolitan-district-council/walsall,WC114-170,31/03/2020,Adult Social Care,ACCORD HOUSING ASSOCIATION LTD#135,16/03/2020,717.80,73508-COMMUNITY SUPPORTED LIVING/SUPPORTED ACCOMMODATION,MENTAL HEALTH SUPPORT,Third Party Payments,Revenue
Walsall Council,http://opendatacommunities.org/id/metropolitan-district-council/walsall,WC114-171,31/03/2020,Adult Social Care,ACCORD HOUSING ASSOCIATION LTD#135,16/03/2020,717.80,73508-COMMUNITY SUPPORTED LIVING/SUPPORTED ACCOMMODATION,MENTAL HEALTH SUPPORT,Third Party Payments,Revenue
Walsall Council,http://opendatacommunities.org/id/metropolitan-district-council/walsall,WC114-172,31/03/2020,Adult Social Care,ACCORD HOUSING ASSOCIATION LTD#135,16/03/2020,717.80,73508-COMMUNITY SUPPORTED LIVING/SUPPORTED ACCOMMODATION,MENTAL HEALTH SUPPORT,Third Party Payments,Revenue
Walsall Council,http://opendatacommunities.org/id/metropolitan-district-council/walsall,WC114-173,31/03/2020,Adult Social Care,ACCORD HOUSING ASSOCIATION LTD#135,16/03/2020,717.80,73508-COMMUNITY SUPPORTED LIVING/SUPPORTED ACCOMMODATION,MENTAL HEALTH SUPPORT,Third Party Payments,Revenue
Walsall Council,http://opendatacommunities.org/id/metropolitan-district-council/walsall,WC114-174,31/03/2020,Adult Social Care,ACCORD HOUSING ASSOCIATION LTD#135,30/03/2020,717.80,73508-COMMUNITY SUPPORTED LIVING/SUPPORTED ACCOMMODATION,MENTAL HEALTH SUPPORT,Third Party Payments,Revenue
Walsall Council,http://opendatacommunities.org/id/metropolitan-district-council/walsall,WC114-175,31/03/2020,Adult Social Care,ACCORD HOUSING ASSOCIATION LTD#135,30/03/2020,717.80,73508-COMMUNITY SUPPORTED LIVING/SUPPORTED ACCOMMODATION,MENTAL HEALTH SUPPORT,Third Party Payments,Revenue
Walsall Council,http://opendatacommunities.org/id/metropolitan-district-council/walsall,WC114-176,31/03/2020,Adult Social Care,ACCORD HOUSING ASSOCIATION LTD#135,03/03/2020,755.60,73508-COMMUNITY SUPPORTED LIVING/SUPPORTED ACCOMMODATION,MENTAL HEALTH SUPPORT,Third Party Payments,Revenue
Walsall Council,http://opendatacommunities.org/id/metropolitan-district-council/walsall,WC114-177,31/03/2020,Adult Social Care,ACCORD HOUSING ASSOCIATION LTD#135,30/03/2020,755.60,73508-COMMUNITY SUPPORTED LIVING/SUPPORTED ACCOMMODATION,MENTAL HEALTH SUPPORT,Third Party Payments,Revenue
Walsall Council,http://opendatacommunities.org/id/metropolitan-district-council/walsall,WC114-178,31/03/2020,Adult Social Care,ACCORD HOUSING ASSOCIATION LTD#135,03/03/2020,803.04,73507-DOMICILIARY CARE,PHYSICAL SUPPORT,Third Party Payments,Revenue
Walsall Council,http://opendatacommunities.org/id/metropolitan-district-council/walsall,WC114-179,31/03/2020,Adult Social Care,ACCORD HOUSING ASSOCIATION LTD#135,03/03/2020,836.08,73507-DOMICILIARY CARE,PHYSICAL SUPPORT,Third Party Payments,Revenue
Walsall Council,http://opendatacommunities.org/id/metropolitan-district-council/walsall,WC114-180,31/03/2020,Adult Social Care,ACCORD HOUSING ASSOCIATION LTD#135,03/03/2020,850.04,73508-COMMUNITY SUPPORTED LIVING/SUPPORTED ACCOMMODATION,MENTAL HEALTH SUPPORT,Third Party Payments,Revenue
Walsall Council,http://opendatacommunities.org/id/metropolitan-district-council/walsall,WC114-181,31/03/2020,Adult Social Care,ACCORD HOUSING ASSOCIATION LTD#135,03/03/2020,869.53,73507-DOMICILIARY CARE,PHYSICAL SUPPORT,Third Party Payments,Revenue
Walsall Council,http://opendatacommunities.org/id/metropolitan-district-council/walsall,WC114-182,31/03/2020,Adult Social Care,ACCORD HOUSING ASSOCIATION LTD#135,30/03/2020,869.53,73507-DOMICILIARY CARE,PHYSICAL SUPPORT,Third Party Payments,Revenue
Walsall Council,http://opendatacommunities.org/id/metropolitan-district-council/walsall,WC114-183,31/03/2020,Adult Social Care,ACCORD HOUSING ASSOCIATION LTD#135,16/03/2020,897.25,73508-COMMUNITY SUPPORTED LIVING/SUPPORTED ACCOMMODATION,MENTAL HEALTH SUPPORT,Third Party Payments,Revenue
Walsall Council,http://opendatacommunities.org/id/metropolitan-district-council/walsall,WC114-184,31/03/2020,Adult Social Care,ACCORD HOUSING ASSOCIATION LTD#135,03/03/2020,903.28,73507-DOMICILIARY CARE,PHYSICAL SUPPORT,Third Party Payments,Revenue
Walsall Council,http://opendatacommunities.org/id/metropolitan-district-council/walsall,WC114-185,31/03/2020,Adult Social Care,ACCORD HOUSING ASSOCIATION LTD#135,30/03/2020,903.28,73507-DOMICILIARY CARE,PHYSICAL SUPPORT,Third Party Payments,Revenue
Walsall Council,http://opendatacommunities.org/id/metropolitan-district-council/walsall,WC114-186,31/03/2020,Adult Social Care,ACCORD HOUSING ASSOCIATION LTD#135,03/03/2020,937.48,73507-DOMICILIARY CARE,PHYSICAL SUPPORT,Third Party Payments,Revenue
Walsall Council,http://opendatacommunities.org/id/metropolitan-district-council/walsall,WC114-187,31/03/2020,Adult Social Care,ACCORD HOUSING ASSOCIATION LTD#135,03/03/2020,965.05,73507-DOMICILIARY CARE,SOCIAL SUPPORT,Third Party Payments,Revenue
Walsall Council,http://opendatacommunities.org/id/metropolitan-district-council/walsall,WC114-188,31/03/2020,Adult Social Care,ACCORD HOUSING ASSOCIATION LTD#135,03/03/2020,974.96,73508-COMMUNITY SUPPORTED LIVING/SUPPORTED ACCOMMODATION,LEARNING DISABILITY SUPPORT,Third Party Payments,Revenue
Walsall Council,http://opendatacommunities.org/id/metropolitan-district-council/walsall,WC114-189,31/03/2020,Adult Social Care,ACCORD HOUSING ASSOCIATION LTD#135,03/03/2020,982.28,73508-COMMUNITY SUPPORTED LIVING/SUPPORTED ACCOMMODATION,MENTAL HEALTH SUPPORT,Third Party Payments,Revenue
Walsall Council,http://opendatacommunities.org/id/metropolitan-district-council/walsall,WC114-190,31/03/2020,Adult Social Care,ACCORD HOUSING ASSOCIATION LTD#135,23/03/2020,982.28,73508-COMMUNITY SUPPORTED LIVING/SUPPORTED ACCOMMODATION,MENTAL HEALTH SUPPORT,Third Party Payments,Revenue
Walsall Council,http://opendatacommunities.org/id/metropolitan-district-council/walsall,WC114-191,31/03/2020,Adult Social Care,ACCORD HOUSING ASSOCIATION LTD#135,23/03/2020,982.28,73508-COMMUNITY SUPPORTED LIVING/SUPPORTED ACCOMMODATION,MENTAL HEALTH SUPPORT,Third Party Payments,Revenue
Walsall Council,http://opendatacommunities.org/id/metropolitan-district-council/walsall,WC114-192,31/03/2020,Adult Social Care,ACCORD HOUSING ASSOCIATION LTD#135,23/03/2020,982.28,73508-COMMUNITY SUPPORTED LIVING/SUPPORTED ACCOMMODATION,MENTAL HEALTH SUPPORT,Third Party Payments,Revenue
Walsall Council,http://opendatacommunities.org/id/metropolitan-district-council/walsall,WC114-193,31/03/2020,Adult Social Care,ACCORD HOUSING ASSOCIATION LTD#135,23/03/2020,982.28,73508-COMMUNITY SUPPORTED LIVING/SUPPORTED ACCOMMODATION,MENTAL HEALTH SUPPORT,Third Party Payments,Revenue
Walsall Council,http://opendatacommunities.org/id/metropolitan-district-council/walsall,WC114-194,31/03/2020,Adult Social Care,ACCORD HOUSING ASSOCIATION LTD#135,23/03/2020,982.28,73508-COMMUNITY SUPPORTED LIVING/SUPPORTED ACCOMMODATION,MENTAL HEALTH SUPPORT,Third Party Payments,Revenue
Walsall Council,http://opendatacommunities.org/id/metropolitan-district-council/walsall,WC114-195,31/03/2020,Adult Social Care,ACCORD HOUSING ASSOCIATION LTD#135,23/03/2020,982.28,73508-COMMUNITY SUPPORTED LIVING/SUPPORTED ACCOMMODATION,MENTAL HEALTH SUPPORT,Third Party Payments,Revenue
Walsall Council,http://opendatacommunities.org/id/metropolitan-district-council/walsall,WC114-196,31/03/2020,Adult Social Care,ACCORD HOUSING ASSOCIATION LTD#135,23/03/2020,982.28,73508-COMMUNITY SUPPORTED LIVING/SUPPORTED ACCOMMODATION,MENTAL HEALTH SUPPORT,Third Party Payments,Revenue
Walsall Council,http://opendatacommunities.org/id/metropolitan-district-council/walsall,WC114-197,31/03/2020,Adult Social Care,ACCORD HOUSING ASSOCIATION LTD#135,23/03/2020,982.28,73508-COMMUNITY SUPPORTED LIVING/SUPPORTED ACCOMMODATION,MENTAL HEALTH SUPPORT,Third Party Payments,Revenue
Walsall Council,http://opendatacommunities.org/id/metropolitan-district-council/walsall,WC114-198,31/03/2020,Adult Social Care,ACCORD HOUSING ASSOCIATION LTD#135,23/03/2020,982.28,73508-COMMUNITY SUPPORTED LIVING/SUPPORTED ACCOMMODATION,MENTAL HEALTH SUPPORT,Third Party Payments,Revenue
Walsall Council,http://opendatacommunities.org/id/metropolitan-district-council/walsall,WC114-199,31/03/2020,Adult Social Care,ACCORD HOUSING ASSOCIATION LTD#135,30/03/2020,982.28,73508-COMMUNITY SUPPORTED LIVING/SUPPORTED ACCOMMODATION,MENTAL HEALTH SUPPORT,Third Party Payments,Revenue
Walsall Council,http://opendatacommunities.org/id/metropolitan-district-council/walsall,WC114-200,31/03/2020,Adult Social Care,ACCORD HOUSING ASSOCIATION LTD#135,30/03/2020,982.28,73508-COMMUNITY SUPPORTED LIVING/SUPPORTED ACCOMMODATION,MENTAL HEALTH SUPPORT,Third Party Payments,Revenue
Walsall Council,http://opendatacommunities.org/id/metropolitan-district-council/walsall,WC114-201,31/03/2020,Adult Social Care,ACCORD HOUSING ASSOCIATION LTD#135,03/03/2020,993.12,73507-DOMICILIARY CARE,LEARNING DISABILITY SUPPORT,Third Party Payments,Revenue
Walsall Council,http://opendatacommunities.org/id/metropolitan-district-council/walsall,WC114-202,31/03/2020,Adult Social Care,ACCORD HOUSING ASSOCIATION LTD#135,03/03/2020,"1,002.68",73507-DOMICILIARY CARE,SOCIAL SUPPORT,Third Party Payments,Revenue
Walsall Council,http://opendatacommunities.org/id/metropolitan-district-council/walsall,WC114-203,31/03/2020,Adult Social Care,ACCORD HOUSING ASSOCIATION LTD#135,03/03/2020,"1,017.40",73507-DOMICILIARY CARE,LEARNING DISABILITY SUPPORT,Third Party Payments,Revenue
Walsall Council,http://opendatacommunities.org/id/metropolitan-district-council/walsall,WC114-204,31/03/2020,Adult Social Care,ACCORD HOUSING ASSOCIATION LTD#135,30/03/2020,"1,017.40",73507-DOMICILIARY CARE,LEARNING DISABILITY SUPPORT,Third Party Payments,Revenue
Walsall Council,http://opendatacommunities.org/id/metropolitan-district-council/walsall,WC114-205,31/03/2020,Adult Social Care,ACCORD HOUSING ASSOCIATION LTD#135,30/03/2020,"1,050.44",73507-DOMICILIARY CARE,LEARNING DISABILITY SUPPORT,Third Party Payments,Revenue
Walsall Council,http://opendatacommunities.org/id/metropolitan-district-council/walsall,WC114-206,31/03/2020,Adult Social Care,ACCORD HOUSING ASSOCIATION LTD#135,03/03/2020,"1,122.52",73507-DOMICILIARY CARE,PHYSICAL SUPPORT,Third Party Payments,Revenue
Walsall Council,http://opendatacommunities.org/id/metropolitan-district-council/walsall,WC114-207,31/03/2020,Adult Social Care,ACCORD HOUSING ASSOCIATION LTD#135,30/03/2020,"1,122.52",73507-DOMICILIARY CARE,PHYSICAL SUPPORT,Third Party Payments,Revenue
Walsall Council,http://opendatacommunities.org/id/metropolitan-district-council/walsall,WC114-208,31/03/2020,Adult Social Care,ACCORD HOUSING ASSOCIATION LTD#135,03/03/2020,"1,127.42",73507-DOMICILIARY CARE,PHYSICAL SUPPORT,Third Party Payments,Revenue
Walsall Council,http://opendatacommunities.org/id/metropolitan-district-council/walsall,WC114-209,31/03/2020,Adult Social Care,ACCORD HOUSING ASSOCIATION LTD#135,03/03/2020,"1,337.28",73507-DOMICILIARY CARE,PHYSICAL SUPPORT,Third Party Payments,Revenue
Walsall Council,http://opendatacommunities.org/id/metropolitan-district-council/walsall,WC114-210,31/03/2020,Adult Social Care,ACCORD HOUSING ASSOCIATION LTD#135,30/03/2020,"1,358.19",73507-DOMICILIARY CARE,PHYSICAL SUPPORT,Third Party Payments,Revenue
Walsall Council,http://opendatacommunities.org/id/metropolitan-district-council/walsall,WC114-211,31/03/2020,Adult Social Care,ACCORD HOUSING ASSOCIATION LTD#135,30/03/2020,"1,361.84",73507-DOMICILIARY CARE,SOCIAL SUPPORT,Third Party Payments,Revenue
Walsall Council,http://opendatacommunities.org/id/metropolitan-district-council/walsall,WC114-212,31/03/2020,Adult Social Care,ACCORD HOUSING ASSOCIATION LTD#135,03/03/2020,"1,393.68",73507-DOMICILIARY CARE,PHYSICAL SUPPORT,Third Party Payments,Revenue
Walsall Council,http://opendatacommunities.org/id/metropolitan-district-council/walsall,WC114-213,31/03/2020,Adult Social Care,ACCORD HOUSING ASSOCIATION LTD#135,03/03/2020,"1,470.56",73507-DOMICILIARY CARE,MENTAL HEALTH SUPPORT,Third Party Payments,Revenue
Walsall Council,http://opendatacommunities.org/id/metropolitan-district-council/walsall,WC114-214,31/03/2020,Adult Social Care,ACCORD HOUSING ASSOCIATION LTD#135,30/03/2020,"1,470.56",73507-DOMICILIARY CARE,MENTAL HEALTH SUPPORT,Third Party Payments,Revenue
Walsall Council,http://opendatacommunities.org/id/metropolitan-district-council/walsall,WC114-215,31/03/2020,Adult Social Care,ACCORD HOUSING ASSOCIATION LTD#135,16/03/2020,"1,567.84",73508-COMMUNITY SUPPORTED LIVING/SUPPORTED ACCOMMODATION,MENTAL HEALTH SUPPORT,Third Party Payments,Revenue
Walsall Council,http://opendatacommunities.org/id/metropolitan-district-council/walsall,WC114-216,31/03/2020,Adult Social Care,ACCORD HOUSING ASSOCIATION LTD#135,16/03/2020,"1,567.84",73508-COMMUNITY SUPPORTED LIVING/SUPPORTED ACCOMMODATION,MENTAL HEALTH SUPPORT,Third Party Payments,Revenue
Walsall Council,http://opendatacommunities.org/id/metropolitan-district-council/walsall,WC114-217,31/03/2020,Adult Social Care,ACCORD HOUSING ASSOCIATION LTD#135,16/03/2020,"1,567.84",73508-COMMUNITY SUPPORTED LIVING/SUPPORTED ACCOMMODATION,MENTAL HEALTH SUPPORT,Third Party Payments,Revenue
Walsall Council,http://opendatacommunities.org/id/metropolitan-district-council/walsall,WC114-218,31/03/2020,Adult Social Care,ACCORD HOUSING ASSOCIATION LTD#135,16/03/2020,"1,567.84",73508-COMMUNITY SUPPORTED LIVING/SUPPORTED ACCOMMODATION,MENTAL HEALTH SUPPORT,Third Party Payments,Revenue
Walsall Council,http://opendatacommunities.org/id/metropolitan-district-council/walsall,WC114-219,31/03/2020,Adult Social Care,ACCORD HOUSING ASSOCIATION LTD#135,16/03/2020,"1,567.84",73508-COMMUNITY SUPPORTED LIVING/SUPPORTED ACCOMMODATION,MENTAL HEALTH SUPPORT,Third Party Payments,Revenue
Walsall Council,http://opendatacommunities.org/id/metropolitan-district-council/walsall,WC114-220,31/03/2020,Adult Social Care,ACCORD HOUSING ASSOCIATION LTD#135,16/03/2020,"1,567.84",73508-COMMUNITY SUPPORTED LIVING/SUPPORTED ACCOMMODATION,MENTAL HEALTH SUPPORT,Third Party Payments,Revenue
Walsall Council,http://opendatacommunities.org/id/metropolitan-district-council/walsall,WC114-221,31/03/2020,Adult Social Care,ACCORD HOUSING ASSOCIATION LTD#135,16/03/2020,"1,567.84",73508-COMMUNITY SUPPORTED LIVING/SUPPORTED ACCOMMODATION,MENTAL HEALTH SUPPORT,Third Party Payments,Revenue
Walsall Council,http://opendatacommunities.org/id/metropolitan-district-council/walsall,WC114-222,31/03/2020,Adult Social Care,ACCORD HOUSING ASSOCIATION LTD#135,16/03/2020,"1,567.84",73508-COMMUNITY SUPPORTED LIVING/SUPPORTED ACCOMMODATION,MENTAL HEALTH SUPPORT,Third Party Payments,Revenue
Walsall Council,http://opendatacommunities.org/id/metropolitan-district-council/walsall,WC114-223,31/03/2020,Adult Social Care,ACCORD HOUSING ASSOCIATION LTD#135,16/03/2020,"1,567.84",73508-COMMUNITY SUPPORTED LIVING/SUPPORTED ACCOMMODATION,MENTAL HEALTH SUPPORT,Third Party Payments,Revenue
Walsall Council,http://opendatacommunities.org/id/metropolitan-district-council/walsall,WC114-224,31/03/2020,Adult Social Care,ACCORD HOUSING ASSOCIATION LTD#135,16/03/2020,"1,567.84",73508-COMMUNITY SUPPORTED LIVING/SUPPORTED ACCOMMODATION,MENTAL HEALTH SUPPORT,Third Party Payments,Revenue
Walsall Council,http://opendatacommunities.org/id/metropolitan-district-council/walsall,WC114-225,31/03/2020,Adult Social Care,ACCORD HOUSING ASSOCIATION LTD#135,30/03/2020,"1,567.84",73508-COMMUNITY SUPPORTED LIVING/SUPPORTED ACCOMMODATION,MENTAL HEALTH SUPPORT,Third Party Payments,Revenue
Walsall Council,http://opendatacommunities.org/id/metropolitan-district-council/walsall,WC114-226,31/03/2020,Adult Social Care,ACCORD HOUSING ASSOCIATION LTD#135,03/03/2020,"1,605.52",73507-DOMICILIARY CARE,PHYSICAL SUPPORT,Third Party Payments,Revenue
Walsall Council,http://opendatacommunities.org/id/metropolitan-district-council/walsall,WC114-227,31/03/2020,Adult Social Care,ACCORD HOUSING ASSOCIATION LTD#135,30/03/2020,"1,641.20",73507-DOMICILIARY CARE,PHYSICAL SUPPORT,Third Party Payments,Revenue
Walsall Council,http://opendatacommunities.org/id/metropolitan-district-council/walsall,WC114-228,31/03/2020,Adult Social Care,ACCORD HOUSING ASSOCIATION LTD#135,03/03/2020,"1,646.97",73507-DOMICILIARY CARE,PHYSICAL SUPPORT,Third Party Payments,Revenue
Walsall Council,http://opendatacommunities.org/id/metropolitan-district-council/walsall,WC114-229,31/03/2020,Adult Social Care,ACCORD HOUSING ASSOCIATION LTD#135,03/03/2020,"1,672.16",73507-DOMICILIARY CARE,PHYSICAL SUPPORT,Third Party Payments,Revenue
Walsall Council,http://opendatacommunities.org/id/metropolitan-district-council/walsall,WC114-230,31/03/2020,Adult Social Care,ACCORD HOUSING ASSOCIATION LTD#135,03/03/2020,"1,720.72",73507-DOMICILIARY CARE,SOCIAL SUPPORT,Third Party Payments,Revenue
Walsall Council,http://opendatacommunities.org/id/metropolitan-district-council/walsall,WC114-231,31/03/2020,Adult Social Care,ACCORD HOUSING ASSOCIATION LTD#135,03/03/2020,"1,770.16",73507-DOMICILIARY CARE,PHYSICAL SUPPORT,Third Party Payments,Revenue
Walsall Council,http://opendatacommunities.org/id/metropolitan-district-council/walsall,WC114-232,31/03/2020,Adult Social Care,ACCORD HOUSING ASSOCIATION LTD#135,30/03/2020,"1,847.07",73507-DOMICILIARY CARE,LEARNING DISABILITY SUPPORT,Third Party Payments,Revenue
Walsall Council,http://opendatacommunities.org/id/metropolitan-district-council/walsall,WC114-233,31/03/2020,Adult Social Care,ACCORD HOUSING ASSOCIATION LTD#135,03/03/2020,"1,850.63",73507-DOMICILIARY CARE,LEARNING DISABILITY SUPPORT,Third Party Payments,Revenue
Walsall Council,http://opendatacommunities.org/id/metropolitan-district-council/walsall,WC114-234,31/03/2020,Adult Social Care,ACCORD HOUSING ASSOCIATION LTD#135,03/03/2020,"2,264.04",73508-COMMUNITY SUPPORTED LIVING/SUPPORTED ACCOMMODATION,LEARNING DISABILITY SUPPORT,Third Party Payments,Revenue
Walsall Council,http://opendatacommunities.org/id/metropolitan-district-council/walsall,WC114-235,31/03/2020,Adult Social Care,ACCORD HOUSING ASSOCIATION LTD#135,30/03/2020,"2,264.04",73508-COMMUNITY SUPPORTED LIVING/SUPPORTED ACCOMMODATION,LEARNING DISABILITY SUPPORT,Third Party Payments,Revenue
Walsall Council,http://opendatacommunities.org/id/metropolitan-district-council/walsall,WC114-236,31/03/2020,Resources and Transformation,ACCORD HOUSING ASSOCIATION LTD#135,06/03/2020,"2,500.00",66500-GRANTS TO OTHER ORGS,LET'S TALK ABOUT IT PROJECT,Third Party Payments,Revenue
Walsall Council,http://opendatacommunities.org/id/metropolitan-district-council/walsall,WC114-237,31/03/2020,Adult Social Care,ACCORD HOUSING ASSOCIATION LTD#135,03/03/2020,"3,075.52",73507-DOMICILIARY CARE,SENSORY SUPPORT,Third Party Payments,Revenue
Walsall Council,http://opendatacommunities.org/id/metropolitan-district-council/walsall,WC114-238,31/03/2020,Adult Social Care,ACCORD HOUSING ASSOCIATION LTD#135,11/03/2020,"3,222.99",70000-SOCIAL SERVICES-FEES TO VOLUNTARY BODIES,COMPLEX NEEDS SLA,Third Party Payments,Revenue
Walsall Council,http://opendatacommunities.org/id/metropolitan-district-council/walsall,WC114-239,31/03/2020,Adult Social Care,ACCORD HOUSING ASSOCIATION LTD#135,18/03/2020,"3,612.24",70000-SOCIAL SERVICES-FEES TO VOLUNTARY BODIES,COMPLEX NEEDS SLA,Third Party Payments,Revenue
Walsall Council,http://opendatacommunities.org/id/metropolitan-district-council/walsall,WC114-240,31/03/2020,Adult Social Care,ACCORD HOUSING ASSOCIATION LTD#135,11/03/2020,"3,744.59",70000-SOCIAL SERVICES-FEES TO VOLUNTARY BODIES,COMPLEX NEEDS SLA,Third Party Payments,Revenue
Walsall Council,http://opendatacommunities.org/id/metropolitan-district-council/walsall,WC114-241,31/03/2020,Adult Social Care,ACCORD HOUSING ASSOCIATION LTD#135,26/03/2020,"5,671.44",73500-RESIDENTIAL,LEARNING DISABILITY SUPPORT,Third Party Payments,Revenue
Walsall Council,http://opendatacommunities.org/id/metropolitan-district-council/walsall,WC114-242,31/03/2020,Adult Social Care,ACCORD HOUSING ASSOCIATION LTD#135,11/03/2020,"5,957.86",70000-SOCIAL SERVICES-FEES TO VOLUNTARY BODIES,COMPLEX NEEDS SLA,Third Party Payments,Revenue
Walsall Council,http://opendatacommunities.org/id/metropolitan-district-council/walsall,WC114-243,31/03/2020,Adult Social Care,ACCORD HOUSING ASSOCIATION LTD#135,26/03/2020,"6,350.96",73500-RESIDENTIAL,LEARNING DISABILITY SUPPORT,Third Party Payments,Revenue
Walsall Council,http://opendatacommunities.org/id/metropolitan-district-council/walsall,WC114-244,31/03/2020,Adult Social Care,ACCORD HOUSING ASSOCIATION LTD#135,26/03/2020,"6,350.96",73500-RESIDENTIAL,LEARNING DISABILITY SUPPORT,Third Party Payments,Revenue
Walsall Council,http://opendatacommunities.org/id/metropolitan-district-council/walsall,WC114-245,31/03/2020,Resources and Transformation,ACCORD HOUSING ASSOCIATION LTD#135,11/03/2020,"21,144.92",63000-PROFESSIONAL FEES AND SERVICES,HOUSING FIRST,Supplies & Services,Revenue
Walsall Council,http://opendatacommunities.org/id/metropolitan-district-council/walsall,WC114-246,31/03/2020,Resources and Transformation,ACCORD HOUSING ASSOCIATION LTD#135,11/03/2020,"22,500.00",73365-BLOCK GROSS-SUPPORTING PEOPLE,DOMESTIC VIOLENCE REFUGE,Third Party Payments,Revenue
Walsall Council,http://opendatacommunities.org/id/metropolitan-district-council/walsall,WC114-247,31/03/2020,Childrens,ACE CARS & MINIBUSES LTD,27/03/2020,-937.50,52000-WITH DRIVER-HIRE OF VEHICLES,HOME TO SCHOOL TRANSPORT,Transport,Revenue
Walsall Council,http://opendatacommunities.org/id/metropolitan-district-council/walsall,WC114-248,31/03/2020,Childrens,ACE CARS & MINIBUSES LTD,27/03/2020,-772.90,52000-WITH DRIVER-HIRE OF VEHICLES,HOME TO SCHOOL TRANSPORT,Transport,Revenue
Walsall Council,http://opendatacommunities.org/id/metropolitan-district-council/walsall,WC114-249,31/03/2020,Childrens,ACE CARS & MINIBUSES LTD,27/03/2020,-772.50,52000-WITH DRIVER-HIRE OF VEHICLES,HOME TO SCHOOL TRANSPORT,Transport,Revenue
Walsall Council,http://opendatacommunities.org/id/metropolitan-district-council/walsall,WC114-250,31/03/2020,Childrens,ACE CARS & MINIBUSES LTD,27/03/2020,-747.50,52000-WITH DRIVER-HIRE OF VEHICLES,HOME TO SCHOOL TRANSPORT,Transport,Revenue
Walsall Council,http://opendatacommunities.org/id/metropolitan-district-council/walsall,WC114-251,31/03/2020,Childrens,ACE CARS & MINIBUSES LTD,27/03/2020,-690.00,52000-WITH DRIVER-HIRE OF VEHICLES,HOME TO SCHOOL TRANSPORT,Transport,Revenue
Walsall Council,http://opendatacommunities.org/id/metropolitan-district-council/walsall,WC114-252,31/03/2020,Childrens,ACE CARS & MINIBUSES LTD,27/03/2020,-687.90,52000-WITH DRIVER-HIRE OF VEHICLES,HOME TO SCHOOL TRANSPORT,Transport,Revenue
Walsall Council,http://opendatacommunities.org/id/metropolitan-district-council/walsall,WC114-253,31/03/2020,Childrens,ACE CARS & MINIBUSES LTD,27/03/2020,-641.25,52000-WITH DRIVER-HIRE OF VEHICLES,HOME TO SCHOOL TRANSPORT,Transport,Revenue
Walsall Council,http://opendatacommunities.org/id/metropolitan-district-council/walsall,WC114-254,31/03/2020,Childrens,ACE CARS & MINIBUSES LTD,27/03/2020,-632.90,52000-WITH DRIVER-HIRE OF VEHICLES,HOME TO SCHOOL TRANSPORT,Transport,Revenue
Walsall Council,http://opendatacommunities.org/id/metropolitan-district-council/walsall,WC114-255,31/03/2020,Childrens,ACE CARS & MINIBUSES LTD,27/03/2020,-581.00,52000-WITH DRIVER-HIRE OF VEHICLES,HOME TO SCHOOL TRANSPORT,Transport,Revenue
Walsall Council,http://opendatacommunities.org/id/metropolitan-district-council/walsall,WC114-256,31/03/2020,Childrens,ACE CARS & MINIBUSES LTD,27/03/2020,-550.00,52000-WITH DRIVER-HIRE OF VEHICLES,HOME TO SCHOOL TRANSPORT,Transport,Revenue
Walsall Council,http://opendatacommunities.org/id/metropolitan-district-council/walsall,WC114-257,31/03/2020,Childrens,ACE CARS & MINIBUSES LTD,27/03/2020,-550.00,52000-WITH DRIVER-HIRE OF VEHICLES,HOME TO SCHOOL TRANSPORT,Transport,Revenue
Walsall Council,http://opendatacommunities.org/id/metropolitan-district-council/walsall,WC114-258,31/03/2020,Childrens,ACE CARS & MINIBUSES LTD,27/03/2020,-517.50,52000-WITH DRIVER-HIRE OF VEHICLES,HOME TO SCHOOL TRANSPORT,Transport,Revenue
Walsall Council,http://opendatacommunities.org/id/metropolitan-district-council/walsall,WC114-259,31/03/2020,Childrens,ACE CARS & MINIBUSES LTD,27/03/2020,-517.50,52000-WITH DRIVER-HIRE OF VEHICLES,HOME TO SCHOOL TRANSPORT,Transport,Revenue
Walsall Council,http://opendatacommunities.org/id/metropolitan-district-council/walsall,WC114-260,31/03/2020,Childrens,ACE CARS & MINIBUSES LTD,27/03/2020,-460.00,52000-WITH DRIVER-HIRE OF VEHICLES,HOME TO SCHOOL TRANSPORT,Transport,Revenue
Walsall Council,http://opendatacommunities.org/id/metropolitan-district-council/walsall,WC114-261,31/03/2020,Childrens,ACE CARS & MINIBUSES LTD,27/03/2020,-390.00,52000-WITH DRIVER-HIRE OF VEHICLES,HOME TO SCHOOL TRANSPORT,Transport,Revenue
Walsall Council,http://opendatacommunities.org/id/metropolitan-district-council/walsall,WC114-262,31/03/2020,Childrens,ACE CARS & MINIBUSES LTD,27/03/2020,-385.00,52000-WITH DRIVER-HIRE OF VEHICLES,HOME TO SCHOOL TRANSPORT,Transport,Revenue
Walsall Council,http://opendatacommunities.org/id/metropolitan-district-council/walsall,WC114-263,31/03/2020,Childrens,ACE CARS & MINIBUSES LTD,27/03/2020,-375.00,52000-WITH DRIVER-HIRE OF VEHICLES,HOME TO SCHOOL TRANSPORT,Transport,Revenue
Walsall Council,http://opendatacommunities.org/id/metropolitan-district-council/walsall,WC114-264,31/03/2020,Childrens,ACE CARS & MINIBUSES LTD,27/03/2020,-350.00,52000-WITH DRIVER-HIRE OF VEHICLES,HOME TO SCHOOL TRANSPORT,Transport,Revenue
Walsall Council,http://opendatacommunities.org/id/metropolitan-district-council/walsall,WC114-265,31/03/2020,Childrens,ACE CARS & MINIBUSES LTD,27/03/2020,-325.00,52000-WITH DRIVER-HIRE OF VEHICLES,HOME TO SCHOOL TRANSPORT,Transport,Revenue
Walsall Council,http://opendatacommunities.org/id/metropolitan-district-council/walsall,WC114-266,31/03/2020,Childrens,ACE CARS & MINIBUSES LTD,27/03/2020,-290.00,52000-WITH DRIVER-HIRE OF VEHICLES,HOME TO SCHOOL TRANSPORT,Transport,Revenue
Walsall Council,http://opendatacommunities.org/id/metropolitan-district-council/walsall,WC114-267,31/03/2020,Childrens,ACE CARS & MINIBUSES LTD,27/03/2020,-250.00,52000-WITH DRIVER-HIRE OF VEHICLES,HOME TO SCHOOL TRANSPORT,Transport,Revenue
Walsall Council,http://opendatacommunities.org/id/metropolitan-district-council/walsall,WC114-268,31/03/2020,Childrens,ACE CARS & MINIBUSES LTD,27/03/2020,-243.40,52000-WITH DRIVER-HIRE OF VEHICLES,HOME TO SCHOOL TRANSPORT,Transport,Revenue
Walsall Council,http://opendatacommunities.org/id/metropolitan-district-council/walsall,WC114-269,31/03/2020,Childrens,ACE CARS & MINIBUSES LTD,27/03/2020,-220.00,52000-WITH DRIVER-HIRE OF VEHICLES,HOME TO SCHOOL TRANSPORT,Transport,Revenue
Walsall Council,http://opendatacommunities.org/id/metropolitan-district-council/walsall,WC114-270,31/03/2020,Childrens,ACE CARS & MINIBUSES LTD,27/03/2020,225.00,52000-WITH DRIVER-HIRE OF VEHICLES,HOME TO SCHOOL TRANSPORT,Transport,Revenue
Walsall Council,http://opendatacommunities.org/id/metropolitan-district-council/walsall,WC114-271,31/03/2020,Childrens,ACE CARS & MINIBUSES LTD,27/03/2020,253.00,52000-WITH DRIVER-HIRE OF VEHICLES,HOME TO SCHOOL TRANSPORT,Transport,Revenue
Walsall Council,http://opendatacommunities.org/id/metropolitan-district-council/walsall,WC114-272,31/03/2020,Childrens,ACE CARS & MINIBUSES LTD,27/03/2020,291.72,52000-WITH DRIVER-HIRE OF VEHICLES,HOME TO SCHOOL TRANSPORT,Transport,Revenue
Walsall Council,http://opendatacommunities.org/id/metropolitan-district-council/walsall,WC114-273,31/03/2020,Childrens,ACE CARS & MINIBUSES LTD,27/03/2020,355.00,52000-WITH DRIVER-HIRE OF VEHICLES,HOME TO SCHOOL TRANSPORT,Transport,Revenue
Walsall Council,http://opendatacommunities.org/id/metropolitan-district-council/walsall,WC114-274,31/03/2020,Childrens,ACE CARS & MINIBUSES LTD,27/03/2020,368.00,52000-WITH DRIVER-HIRE OF VEHICLES,HOME TO SCHOOL TRANSPORT,Transport,Revenue
Walsall Council,http://opendatacommunities.org/id/metropolitan-district-council/walsall,WC114-275,31/03/2020,Childrens,ACE CARS & MINIBUSES LTD,27/03/2020,368.00,52000-WITH DRIVER-HIRE OF VEHICLES,HOME TO SCHOOL TRANSPORT,Transport,Revenue
Walsall Council,http://opendatacommunities.org/id/metropolitan-district-council/walsall,WC114-276,31/03/2020,Childrens,ACE CARS & MINIBUSES LTD,27/03/2020,368.00,52000-WITH DRIVER-HIRE OF VEHICLES,HOME TO SCHOOL TRANSPORT,Transport,Revenue
Walsall Council,http://opendatacommunities.org/id/metropolitan-district-council/walsall,WC114-277,31/03/2020,Childrens,ACE CARS & MINIBUSES LTD,27/03/2020,368.00,52000-WITH DRIVER-HIRE OF VEHICLES,HOME TO SCHOOL TRANSPORT,Transport,Revenue
Walsall Council,http://opendatacommunities.org/id/metropolitan-district-council/walsall,WC114-278,31/03/2020,Childrens,ACE CARS & MINIBUSES LTD,27/03/2020,368.00,52000-WITH DRIVER-HIRE OF VEHICLES,HOME TO SCHOOL TRANSPORT,Transport,Revenue
Walsall Council,http://opendatacommunities.org/id/metropolitan-district-council/walsall,WC114-279,31/03/2020,Childrens,ACE CARS & MINIBUSES LTD,27/03/2020,383.60,52000-WITH DRIVER-HIRE OF VEHICLES,HOME TO SCHOOL TRANSPORT,Transport,Revenue
Walsall Council,http://opendatacommunities.org/id/metropolitan-district-council/walsall,WC114-280,31/03/2020,Childrens,ACE CARS & MINIBUSES LTD,27/03/2020,383.60,52000-WITH DRIVER-HIRE OF VEHICLES,HOME TO SCHOOL TRANSPORT,Transport,Revenue
Walsall Council,http://opendatacommunities.org/id/metropolitan-district-council/walsall,WC114-281,31/03/2020,Childrens,ACE CARS & MINIBUSES LTD,27/03/2020,383.60,52000-WITH DRIVER-HIRE OF VEHICLES,HOME TO SCHOOL TRANSPORT,Transport,Revenue
Walsall Council,http://opendatacommunities.org/id/metropolitan-district-council/walsall,WC114-282,31/03/2020,Childrens,ACE CARS & MINIBUSES LTD,27/03/2020,383.60,52000-WITH DRIVER-HIRE OF VEHICLES,HOME TO SCHOOL TRANSPORT,Transport,Revenue
Walsall Council,http://opendatacommunities.org/id/metropolitan-district-council/walsall,WC114-283,31/03/2020,Childrens,ACE CARS & MINIBUSES LTD,27/03/2020,383.60,52000-WITH DRIVER-HIRE OF VEHICLES,HOME TO SCHOOL TRANSPORT,Transport,Revenue
Walsall Council,http://opendatacommunities.org/id/metropolitan-district-council/walsall,WC114-284,31/03/2020,Childrens,ACE CARS & MINIBUSES LTD,27/03/2020,383.60,52000-WITH DRIVER-HIRE OF VEHICLES,HOME TO SCHOOL TRANSPORT,Transport,Revenue
Walsall Council,http://opendatacommunities.org/id/metropolitan-district-council/walsall,WC114-285,31/03/2020,Childrens,ACE CARS & MINIBUSES LTD,27/03/2020,414.00,52000-WITH DRIVER-HIRE OF VEHICLES,HOME TO SCHOOL TRANSPORT,Transport,Revenue
Walsall Council,http://opendatacommunities.org/id/metropolitan-district-council/walsall,WC114-286,31/03/2020,Childrens,ACE CARS & MINIBUSES LTD,27/03/2020,414.00,52000-WITH DRIVER-HIRE OF VEHICLES,HOME TO SCHOOL TRANSPORT,Transport,Revenue
Walsall Council,http://opendatacommunities.org/id/metropolitan-district-council/walsall,WC114-287,31/03/2020,Childrens,ACE CARS & MINIBUSES LTD,27/03/2020,414.00,52000-WITH DRIVER-HIRE OF VEHICLES,HOME TO SCHOOL TRANSPORT,Transport,Revenue
Walsall Council,http://opendatacommunities.org/id/metropolitan-district-council/walsall,WC114-288,31/03/2020,Childrens,ACE CARS & MINIBUSES LTD,27/03/2020,414.00,52000-WITH DRIVER-HIRE OF VEHICLES,HOME TO SCHOOL TRANSPORT,Transport,Revenue
Walsall Council,http://opendatacommunities.org/id/metropolitan-district-council/walsall,WC114-289,31/03/2020,Childrens,ACE CARS & MINIBUSES LTD,27/03/2020,414.00,52000-WITH DRIVER-HIRE OF VEHICLES,HOME TO SCHOOL TRANSPORT,Transport,Revenue
Walsall Council,http://opendatacommunities.org/id/metropolitan-district-council/walsall,WC114-290,31/03/2020,Childrens,ACE CARS & MINIBUSES LTD,27/03/2020,414.00,52000-WITH DRIVER-HIRE OF VEHICLES,HOME TO SCHOOL TRANSPORT,Transport,Revenue
Walsall Council,http://opendatacommunities.org/id/metropolitan-district-council/walsall,WC114-291,31/03/2020,Childrens,ACE CARS & MINIBUSES LTD,27/03/2020,414.00,52000-WITH DRIVER-HIRE OF VEHICLES,HOME TO SCHOOL TRANSPORT,Transport,Revenue
Walsall Council,http://opendatacommunities.org/id/metropolitan-district-council/walsall,WC114-292,31/03/2020,Childrens,ACE CARS & MINIBUSES LTD,27/03/2020,414.00,52000-WITH DRIVER-HIRE OF VEHICLES,HOME TO SCHOOL TRANSPORT,Transport,Revenue
Walsall Council,http://opendatacommunities.org/id/metropolitan-district-council/walsall,WC114-293,31/03/2020,Childrens,ACE CARS & MINIBUSES LTD,27/03/2020,414.00,52000-WITH DRIVER-HIRE OF VEHICLES,HOME TO SCHOOL TRANSPORT,Transport,Revenue
Walsall Council,http://opendatacommunities.org/id/metropolitan-district-council/walsall,WC114-294,31/03/2020,Childrens,ACE CARS & MINIBUSES LTD,27/03/2020,414.00,52000-WITH DRIVER-HIRE OF VEHICLES,HOME TO SCHOOL TRANSPORT,Transport,Revenue
Walsall Council,http://opendatacommunities.org/id/metropolitan-district-council/walsall,WC114-295,31/03/2020,Childrens,ACE CARS & MINIBUSES LTD,27/03/2020,437.20,52000-WITH DRIVER-HIRE OF VEHICLES,HOME TO SCHOOL TRANSPORT,Transport,Revenue
Walsall Council,http://opendatacommunities.org/id/metropolitan-district-council/walsall,WC114-296,31/03/2020,Childrens,ACE CARS & MINIBUSES LTD,27/03/2020,437.20,52000-WITH DRIVER-HIRE OF VEHICLES,HOME TO SCHOOL TRANSPORT,Transport,Revenue
Walsall Council,http://opendatacommunities.org/id/metropolitan-district-council/walsall,WC114-297,31/03/2020,Childrens,ACE CARS & MINIBUSES LTD,27/03/2020,437.20,52000-WITH DRIVER-HIRE OF VEHICLES,HOME TO SCHOOL TRANSPORT,Transport,Revenue
Walsall Council,http://opendatacommunities.org/id/metropolitan-district-council/walsall,WC114-298,31/03/2020,Childrens,ACE CARS & MINIBUSES LTD,27/03/2020,437.20,52000-WITH DRIVER-HIRE OF VEHICLES,HOME TO SCHOOL TRANSPORT,Transport,Revenue
Walsall Council,http://opendatacommunities.org/id/metropolitan-district-council/walsall,WC114-299,31/03/2020,Childrens,ACE CARS & MINIBUSES LTD,27/03/2020,437.20,52000-WITH DRIVER-HIRE OF VEHICLES,HOME TO SCHOOL TRANSPORT,Transport,Revenue
Walsall Council,http://opendatacommunities.org/id/metropolitan-district-council/walsall,WC114-300,31/03/2020,Childrens,ACE CARS & MINIBUSES LTD,27/03/2020,437.20,52000-WITH DRIVER-HIRE OF VEHICLES,HOME TO SCHOOL TRANSPORT,Transport,Revenue
Walsall Council,http://opendatacommunities.org/id/metropolitan-district-council/walsall,WC114-301,31/03/2020,Childrens,ACE CARS & MINIBUSES LTD,27/03/2020,437.20,52000-WITH DRIVER-HIRE OF VEHICLES,HOME TO SCHOOL TRANSPORT,Transport,Revenue
Walsall Council,http://opendatacommunities.org/id/metropolitan-district-council/walsall,WC114-302,31/03/2020,Childrens,ACE CARS & MINIBUSES LTD,27/03/2020,437.20,52000-WITH DRIVER-HIRE OF VEHICLES,HOME TO SCHOOL TRANSPORT,Transport,Revenue
Walsall Council,http://opendatacommunities.org/id/metropolitan-district-council/walsall,WC114-303,31/03/2020,Childrens,ACE CARS & MINIBUSES LTD,27/03/2020,450.00,52000-WITH DRIVER-HIRE OF VEHICLES,HOME TO SCHOOL TRANSPORT,Transport,Revenue
Walsall Council,http://opendatacommunities.org/id/metropolitan-district-council/walsall,WC114-304,31/03/2020,Childrens,ACE CARS & MINIBUSES LTD,27/03/2020,480.00,52000-WITH DRIVER-HIRE OF VEHICLES,HOME TO SCHOOL TRANSPORT,Transport,Revenue
Walsall Council,http://opendatacommunities.org/id/metropolitan-district-council/walsall,WC114-305,31/03/2020,Childrens,ACE CARS & MINIBUSES LTD,27/03/2020,506.00,52000-WITH DRIVER-HIRE OF VEHICLES,HOME TO SCHOOL TRANSPORT,Transport,Revenue
Walsall Council,http://opendatacommunities.org/id/metropolitan-district-council/walsall,WC114-306,31/03/2020,Childrens,ACE CARS & MINIBUSES LTD,27/03/2020,506.00,52000-WITH DRIVER-HIRE OF VEHICLES,HOME TO SCHOOL TRANSPORT,Transport,Revenue
Walsall Council,http://opendatacommunities.org/id/metropolitan-district-council/walsall,WC114-307,31/03/2020,Childrens,ACE CARS & MINIBUSES LTD,27/03/2020,506.00,52000-WITH DRIVER-HIRE OF VEHICLES,HOME TO SCHOOL TRANSPORT,Transport,Revenue
Walsall Council,http://opendatacommunities.org/id/metropolitan-district-council/walsall,WC114-308,31/03/2020,Childrens,ACE CARS & MINIBUSES LTD,27/03/2020,513.20,52000-WITH DRIVER-HIRE OF VEHICLES,HOME TO SCHOOL TRANSPORT,Transport,Revenue
Walsall Council,http://opendatacommunities.org/id/metropolitan-district-council/walsall,WC114-309,31/03/2020,Childrens,ACE CARS & MINIBUSES LTD,27/03/2020,513.20,52000-WITH DRIVER-HIRE OF VEHICLES,HOME TO SCHOOL TRANSPORT,Transport,Revenue
Walsall Council,http://opendatacommunities.org/id/metropolitan-district-council/walsall,WC114-310,31/03/2020,Childrens,ACE CARS & MINIBUSES LTD,27/03/2020,513.20,52000-WITH DRIVER-HIRE OF VEHICLES,HOME TO SCHOOL TRANSPORT,Transport,Revenue
Walsall Council,http://opendatacommunities.org/id/metropolitan-district-council/walsall,WC114-311,31/03/2020,Childrens,ACE CARS & MINIBUSES LTD,27/03/2020,513.20,52000-WITH DRIVER-HIRE OF VEHICLES,HOME TO SCHOOL TRANSPORT,Transport,Revenue
Walsall Council,http://opendatacommunities.org/id/metropolitan-district-council/walsall,WC114-312,31/03/2020,Childrens,ACE CARS & MINIBUSES LTD,27/03/2020,513.20,52000-WITH DRIVER-HIRE OF VEHICLES,HOME TO SCHOOL TRANSPORT,Transport,Revenue
Walsall Council,http://opendatacommunities.org/id/metropolitan-district-council/walsall,WC114-313,31/03/2020,Childrens,ACE CARS & MINIBUSES LTD,27/03/2020,550.00,52000-WITH DRIVER-HIRE OF VEHICLES,HOME TO SCHOOL TRANSPORT,Transport,Revenue
Walsall Council,http://opendatacommunities.org/id/metropolitan-district-council/walsall,WC114-314,31/03/2020,Childrens,ACE CARS & MINIBUSES LTD,27/03/2020,550.00,52000-WITH DRIVER-HIRE OF VEHICLES,HOME TO SCHOOL TRANSPORT,Transport,Revenue
Walsall Council,http://opendatacommunities.org/id/metropolitan-district-council/walsall,WC114-315,31/03/2020,Childrens,ACE CARS & MINIBUSES LTD,27/03/2020,550.00,52000-WITH DRIVER-HIRE OF VEHICLES,HOME TO SCHOOL TRANSPORT,Transport,Revenue
Walsall Council,http://opendatacommunities.org/id/metropolitan-district-council/walsall,WC114-316,31/03/2020,Childrens,ACE CARS & MINIBUSES LTD,27/03/2020,560.00,52000-WITH DRIVER-HIRE OF VEHICLES,HOME TO SCHOOL TRANSPORT,Transport,Revenue
Walsall Council,http://opendatacommunities.org/id/metropolitan-district-council/walsall,WC114-317,31/03/2020,Childrens,ACE CARS & MINIBUSES LTD,27/03/2020,598.00,52000-WITH DRIVER-HIRE OF VEHICLES,HOME TO SCHOOL TRANSPORT,Transport,Revenue
Walsall Council,http://opendatacommunities.org/id/metropolitan-district-council/walsall,WC114-318,31/03/2020,Childrens,ACE CARS & MINIBUSES LTD,27/03/2020,598.00,52000-WITH DRIVER-HIRE OF VEHICLES,HOME TO SCHOOL TRANSPORT,Transport,Revenue
Walsall Council,http://opendatacommunities.org/id/metropolitan-district-council/walsall,WC114-319,31/03/2020,Childrens,ACE CARS & MINIBUSES LTD,27/03/2020,598.00,52000-WITH DRIVER-HIRE OF VEHICLES,HOME TO SCHOOL TRANSPORT,Transport,Revenue
Walsall Council,http://opendatacommunities.org/id/metropolitan-district-council/walsall,WC114-320,31/03/2020,Childrens,ACE CARS & MINIBUSES LTD,27/03/2020,598.00,52000-WITH DRIVER-HIRE OF VEHICLES,HOME TO SCHOOL TRANSPORT,Transport,Revenue
Walsall Council,http://opendatacommunities.org/id/metropolitan-district-council/walsall,WC114-321,31/03/2020,Childrens,ACE CARS & MINIBUSES LTD,27/03/2020,598.00,52000-WITH DRIVER-HIRE OF VEHICLES,HOME TO SCHOOL TRANSPORT,Transport,Revenue
Walsall Council,http://opendatacommunities.org/id/metropolitan-district-council/walsall,WC114-322,31/03/2020,Childrens,ACE CARS & MINIBUSES LTD,27/03/2020,618.00,52000-WITH DRIVER-HIRE OF VEHICLES,HOME TO SCHOOL TRANSPORT,Transport,Revenue
Walsall Council,http://opendatacommunities.org/id/metropolitan-district-council/walsall,WC114-323,31/03/2020,Childrens,ACE CARS & MINIBUSES LTD,27/03/2020,618.00,52000-WITH DRIVER-HIRE OF VEHICLES,HOME TO SCHOOL TRANSPORT,Transport,Revenue
Walsall Council,http://opendatacommunities.org/id/metropolitan-district-council/walsall,WC114-324,31/03/2020,Childrens,ACE CARS & MINIBUSES LTD,27/03/2020,618.00,52000-WITH DRIVER-HIRE OF VEHICLES,HOME TO SCHOOL TRANSPORT,Transport,Revenue
Walsall Council,http://opendatacommunities.org/id/metropolitan-district-council/walsall,WC114-325,31/03/2020,Childrens,ACE CARS & MINIBUSES LTD,27/03/2020,618.00,52000-WITH DRIVER-HIRE OF VEHICLES,HOME TO SCHOOL TRANSPORT,Transport,Revenue
Walsall Council,http://opendatacommunities.org/id/metropolitan-district-council/walsall,WC114-326,31/03/2020,Childrens,ACE CARS & MINIBUSES LTD,27/03/2020,618.00,52000-WITH DRIVER-HIRE OF VEHICLES,HOME TO SCHOOL TRANSPORT,Transport,Revenue
Walsall Council,http://opendatacommunities.org/id/metropolitan-district-council/walsall,WC114-327,31/03/2020,Childrens,ACE CARS & MINIBUSES LTD,27/03/2020,618.00,52000-WITH DRIVER-HIRE OF VEHICLES,HOME TO SCHOOL TRANSPORT,Transport,Revenue
Walsall Council,http://opendatacommunities.org/id/metropolitan-district-council/walsall,WC114-328,31/03/2020,Childrens,ACE CARS & MINIBUSES LTD,27/03/2020,618.00,52000-WITH DRIVER-HIRE OF VEHICLES,HOME TO SCHOOL TRANSPORT,Transport,Revenue
Walsall Council,http://opendatacommunities.org/id/metropolitan-district-council/walsall,WC114-329,31/03/2020,Childrens,ACE CARS & MINIBUSES LTD,27/03/2020,618.00,52000-WITH DRIVER-HIRE OF VEHICLES,HOME TO SCHOOL TRANSPORT,Transport,Revenue
Walsall Council,http://opendatacommunities.org/id/metropolitan-district-council/walsall,WC114-330,31/03/2020,Childrens,ACE CARS & MINIBUSES LTD,27/03/2020,618.00,52000-WITH DRIVER-HIRE OF VEHICLES,HOME TO SCHOOL TRANSPORT,Transport,Revenue
Walsall Council,http://opendatacommunities.org/id/metropolitan-district-council/walsall,WC114-331,31/03/2020,Childrens,ACE CARS & MINIBUSES LTD,27/03/2020,632.40,52000-WITH DRIVER-HIRE OF VEHICLES,HOME TO SCHOOL TRANSPORT,Transport,Revenue
Walsall Council,http://opendatacommunities.org/id/metropolitan-district-council/walsall,WC114-332,31/03/2020,Childrens,ACE CARS & MINIBUSES LTD,27/03/2020,632.40,52000-WITH DRIVER-HIRE OF VEHICLES,HOME TO SCHOOL TRANSPORT,Transport,Revenue
Walsall Council,http://opendatacommunities.org/id/metropolitan-district-council/walsall,WC114-333,31/03/2020,Childrens,ACE CARS & MINIBUSES LTD,27/03/2020,632.40,52000-WITH DRIVER-HIRE OF VEHICLES,HOME TO SCHOOL TRANSPORT,Transport,Revenue
Walsall Council,http://opendatacommunities.org/id/metropolitan-district-council/walsall,WC114-334,31/03/2020,Childrens,ACE CARS & MINIBUSES LTD,27/03/2020,632.40,52000-WITH DRIVER-HIRE OF VEHICLES,HOME TO SCHOOL TRANSPORT,Transport,Revenue
Walsall Council,http://opendatacommunities.org/id/metropolitan-district-council/walsall,WC114-335,31/03/2020,Childrens,ACE CARS & MINIBUSES LTD,27/03/2020,639.00,52000-WITH DRIVER-HIRE OF VEHICLES,HOME TO SCHOOL TRANSPORT,Transport,Revenue
Walsall Council,http://opendatacommunities.org/id/metropolitan-district-council/walsall,WC114-336,31/03/2020,Childrens,ACE CARS & MINIBUSES LTD,27/03/2020,687.60,52000-WITH DRIVER-HIRE OF VEHICLES,HOME TO SCHOOL TRANSPORT,Transport,Revenue
Walsall Council,http://opendatacommunities.org/id/metropolitan-district-council/walsall,WC114-337,31/03/2020,Childrens,ACE CARS & MINIBUSES LTD,27/03/2020,687.60,52000-WITH DRIVER-HIRE OF VEHICLES,HOME TO SCHOOL TRANSPORT,Transport,Revenue
Walsall Council,http://opendatacommunities.org/id/metropolitan-district-council/walsall,WC114-338,31/03/2020,Childrens,ACE CARS & MINIBUSES LTD,27/03/2020,687.60,52000-WITH DRIVER-HIRE OF VEHICLES,HOME TO SCHOOL TRANSPORT,Transport,Revenue
Walsall Council,http://opendatacommunities.org/id/metropolitan-district-council/walsall,WC114-339,31/03/2020,Childrens,ACE CARS & MINIBUSES LTD,27/03/2020,687.60,52000-WITH DRIVER-HIRE OF VEHICLES,HOME TO SCHOOL TRANSPORT,Transport,Revenue
Walsall Council,http://opendatacommunities.org/id/metropolitan-district-council/walsall,WC114-340,31/03/2020,Childrens,ACE CARS & MINIBUSES LTD,27/03/2020,690.00,52000-WITH DRIVER-HIRE OF VEHICLES,HOME TO SCHOOL TRANSPORT,Transport,Revenue
Walsall Council,http://opendatacommunities.org/id/metropolitan-district-council/walsall,WC114-341,31/03/2020,Childrens,ACE CARS & MINIBUSES LTD,27/03/2020,690.00,52000-WITH DRIVER-HIRE OF VEHICLES,HOME TO SCHOOL TRANSPORT,Transport,Revenue
Walsall Council,http://opendatacommunities.org/id/metropolitan-district-council/walsall,WC114-342,31/03/2020,Childrens,ACE CARS & MINIBUSES LTD,27/03/2020,690.00,52000-WITH DRIVER-HIRE OF VEHICLES,HOME TO SCHOOL TRANSPORT,Transport,Revenue
Walsall Council,http://opendatacommunities.org/id/metropolitan-district-council/walsall,WC114-343,31/03/2020,Childrens,ACE CARS & MINIBUSES LTD,27/03/2020,690.00,52000-WITH DRIVER-HIRE OF VEHICLES,HOME TO SCHOOL TRANSPORT,Transport,Revenue
Walsall Council,http://opendatacommunities.org/id/metropolitan-district-council/walsall,WC114-344,31/03/2020,Childrens,ACE CARS & MINIBUSES LTD,27/03/2020,710.00,52000-WITH DRIVER-HIRE OF VEHICLES,HOME TO SCHOOL TRANSPORT,Transport,Revenue
Walsall Council,http://opendatacommunities.org/id/metropolitan-district-council/walsall,WC114-345,31/03/2020,Childrens,ACE CARS & MINIBUSES LTD,27/03/2020,772.40,52000-WITH DRIVER-HIRE OF VEHICLES,HOME TO SCHOOL TRANSPORT,Transport,Revenue
Walsall Council,http://opendatacommunities.org/id/metropolitan-district-council/walsall,WC114-346,31/03/2020,Childrens,ACE CARS & MINIBUSES LTD,27/03/2020,772.40,52000-WITH DRIVER-HIRE OF VEHICLES,HOME TO SCHOOL TRANSPORT,Transport,Revenue
Walsall Council,http://opendatacommunities.org/id/metropolitan-district-council/walsall,WC114-347,31/03/2020,Childrens,ACE CARS & MINIBUSES LTD,27/03/2020,772.40,52000-WITH DRIVER-HIRE OF VEHICLES,HOME TO SCHOOL TRANSPORT,Transport,Revenue
Walsall Council,http://opendatacommunities.org/id/metropolitan-district-council/walsall,WC114-348,31/03/2020,Childrens,ACE CARS & MINIBUSES LTD,27/03/2020,772.40,52000-WITH DRIVER-HIRE OF VEHICLES,HOME TO SCHOOL TRANSPORT,Transport,Revenue
Walsall Council,http://opendatacommunities.org/id/metropolitan-district-council/walsall,WC114-349,31/03/2020,Childrens,ACE CARS & MINIBUSES LTD,27/03/2020,800.00,52000-WITH DRIVER-HIRE OF VEHICLES,HOME TO SCHOOL TRANSPORT,Transport,Revenue
Walsall Council,http://opendatacommunities.org/id/metropolitan-district-council/walsall,WC114-350,31/03/2020,Childrens,ACE CARS & MINIBUSES LTD,27/03/2020,800.00,52000-WITH DRIVER-HIRE OF VEHICLES,HOME TO SCHOOL TRANSPORT,Transport,Revenue
Walsall Council,http://opendatacommunities.org/id/metropolitan-district-council/walsall,WC114-351,31/03/2020,Childrens,ACE CARS & MINIBUSES LTD,27/03/2020,880.00,52000-WITH DRIVER-HIRE OF VEHICLES,HOME TO SCHOOL TRANSPORT,Transport,Revenue
Walsall Council,http://opendatacommunities.org/id/metropolitan-district-council/walsall,WC114-352,31/03/2020,Childrens,ACE CARS & MINIBUSES LTD,27/03/2020,972.40,52000-WITH DRIVER-HIRE OF VEHICLES,HOME TO SCHOOL TRANSPORT,Transport,Revenue
Walsall Council,http://opendatacommunities.org/id/metropolitan-district-council/walsall,WC114-353,31/03/2020,Childrens,ACE CARS & MINIBUSES LTD,27/03/2020,972.40,52000-WITH DRIVER-HIRE OF VEHICLES,HOME TO SCHOOL TRANSPORT,Transport,Revenue
Walsall Council,http://opendatacommunities.org/id/metropolitan-district-council/walsall,WC114-354,31/03/2020,Childrens,ACE CARS & MINIBUSES LTD,27/03/2020,972.40,52000-WITH DRIVER-HIRE OF VEHICLES,HOME TO SCHOOL TRANSPORT,Transport,Revenue
Walsall Council,http://opendatacommunities.org/id/metropolitan-district-council/walsall,WC114-355,31/03/2020,Childrens,ACE CARS & MINIBUSES LTD,27/03/2020,"1,000.00",52000-WITH DRIVER-HIRE OF VEHICLES,HOME TO SCHOOL TRANSPORT,Transport,Revenue
Walsall Council,http://opendatacommunities.org/id/metropolitan-district-council/walsall,WC114-356,31/03/2020,Childrens,ACE CARS & MINIBUSES LTD,27/03/2020,"1,100.00",52000-WITH DRIVER-HIRE OF VEHICLES,HOME TO SCHOOL TRANSPORT,Transport,Revenue
Walsall Council,http://opendatacommunities.org/id/metropolitan-district-council/walsall,WC114-357,31/03/2020,Childrens,ACE CARS & MINIBUSES LTD,27/03/2020,"1,100.00",52000-WITH DRIVER-HIRE OF VEHICLES,HOME TO SCHOOL TRANSPORT,Transport,Revenue
Walsall Council,http://opendatacommunities.org/id/metropolitan-district-council/walsall,WC114-358,31/03/2020,Childrens,ACE CARS & MINIBUSES LTD,27/03/2020,"1,160.00",52000-WITH DRIVER-HIRE OF VEHICLES,HOME TO SCHOOL TRANSPORT,Transport,Revenue
Walsall Council,http://opendatacommunities.org/id/metropolitan-district-council/walsall,WC114-359,31/03/2020,Childrens,ACE CARS & MINIBUSES LTD,27/03/2020,"1,250.00",52000-WITH DRIVER-HIRE OF VEHICLES,HOME TO SCHOOL TRANSPORT,Transport,Revenue
Walsall Council,http://opendatacommunities.org/id/metropolitan-district-council/walsall,WC114-360,31/03/2020,Childrens,ACE CARS & MINIBUSES LTD,27/03/2020,"1,250.00",52000-WITH DRIVER-HIRE OF VEHICLES,HOME TO SCHOOL TRANSPORT,Transport,Revenue
Walsall Council,http://opendatacommunities.org/id/metropolitan-district-council/walsall,WC114-361,31/03/2020,Childrens,ACE CARS & MINIBUSES LTD,27/03/2020,"1,250.00",52000-WITH DRIVER-HIRE OF VEHICLES,HOME TO SCHOOL TRANSPORT,Transport,Revenue
Walsall Council,http://opendatacommunities.org/id/metropolitan-district-council/walsall,WC114-362,31/03/2020,Childrens,ACE CARS & MINIBUSES LTD,27/03/2020,"1,300.00",52000-WITH DRIVER-HIRE OF VEHICLES,HOME TO SCHOOL TRANSPORT,Transport,Revenue
Walsall Council,http://opendatacommunities.org/id/metropolitan-district-council/walsall,WC114-363,31/03/2020,Childrens,ACE CARS & MINIBUSES LTD,27/03/2020,"1,400.00",52000-WITH DRIVER-HIRE OF VEHICLES,HOME TO SCHOOL TRANSPORT,Transport,Revenue
Walsall Council,http://opendatacommunities.org/id/metropolitan-district-council/walsall,WC114-364,31/03/2020,Childrens,ACE CARS & MINIBUSES LTD,27/03/2020,"1,400.00",52000-WITH DRIVER-HIRE OF VEHICLES,HOME TO SCHOOL TRANSPORT,Transport,Revenue
Walsall Council,http://opendatacommunities.org/id/metropolitan-district-council/walsall,WC114-365,31/03/2020,Childrens,ACE CARS & MINIBUSES LTD,27/03/2020,"1,500.00",52000-WITH DRIVER-HIRE OF VEHICLES,HOME TO SCHOOL TRANSPORT,Transport,Revenue
Walsall Council,http://opendatacommunities.org/id/metropolitan-district-council/walsall,WC114-366,31/03/2020,Childrens,ACE CARS & MINIBUSES LTD,27/03/2020,"1,540.00",52000-WITH DRIVER-HIRE OF VEHICLES,HOME TO SCHOOL TRANSPORT,Transport,Revenue
Walsall Council,http://opendatacommunities.org/id/metropolitan-district-council/walsall,WC114-367,31/03/2020,Childrens,ACE CARS & MINIBUSES LTD,27/03/2020,"1,560.00",52000-WITH DRIVER-HIRE OF VEHICLES,HOME TO SCHOOL TRANSPORT,Transport,Revenue
Walsall Council,http://opendatacommunities.org/id/metropolitan-district-council/walsall,WC114-368,31/03/2020,Adult Social Care,ACEPAY LTD (COTTAGE NUR HOME),26/03/2020,"1,774.96",73500-RESIDENTIAL,PHYSICAL SUPPORT,Third Party Payments,Revenue
Walsall Council,http://opendatacommunities.org/id/metropolitan-district-council/walsall,WC114-369,31/03/2020,Adult Social Care,ACEPAY LTD (COTTAGE NUR HOME),26/03/2020,"1,972.24",73501-RESIDENTIAL EMI,PHYSICAL SUPPORT,Third Party Payments,Revenue
Walsall Council,http://opendatacommunities.org/id/metropolitan-district-council/walsall,WC114-370,31/03/2020,Adult Social Care,ACEPAY LTD (COTTAGE NUR HOME),26/03/2020,"2,143.72",73502-NURSING,PHYSICAL SUPPORT,Third Party Payments,Revenue
Walsall Council,http://opendatacommunities.org/id/metropolitan-district-council/walsall,WC114-371,31/03/2020,Adult Social Care,ACEPAY LTD (COTTAGE NUR HOME),26/03/2020,"2,143.72",73502-NURSING,SUPPORT WITH MEMORY & COGNITION,Third Party Payments,Revenue
Walsall Council,http://opendatacommunities.org/id/metropolitan-district-council/walsall,WC114-372,31/03/2020,Adult Social Care,ACEPAY LTD (COTTAGE NUR HOME),26/03/2020,"2,143.72",73502-NURSING,PHYSICAL SUPPORT,Third Party Payments,Revenue
Walsall Council,http://opendatacommunities.org/id/metropolitan-district-council/walsall,WC114-373,31/03/2020,Adult Social Care,ACEPAY LTD (COTTAGE NUR HOME),26/03/2020,"2,143.72",73502-NURSING,SUPPORT WITH MEMORY & COGNITION,Third Party Payments,Revenue
Walsall Council,http://opendatacommunities.org/id/metropolitan-district-council/walsall,WC114-374,31/03/2020,Adult Social Care,ACEPAY LTD (COTTAGE NUR HOME),26/03/2020,"2,143.72",73502-NURSING,PHYSICAL SUPPORT,Third Party Payments,Revenue
Walsall Council,http://opendatacommunities.org/id/metropolitan-district-council/walsall,WC114-375,31/03/2020,Adult Social Care,ACEPAY LTD (COTTAGE NUR HOME),26/03/2020,"2,143.72",73502-NURSING,PHYSICAL SUPPORT,Third Party Payments,Revenue
Walsall Council,http://opendatacommunities.org/id/metropolitan-district-council/walsall,WC114-376,31/03/2020,Adult Social Care,ACEPAY LTD (COTTAGE NUR HOME),26/03/2020,"2,143.72",73502-NURSING,SOCIAL SUPPORT,Third Party Payments,Revenue
Walsall Council,http://opendatacommunities.org/id/metropolitan-district-council/walsall,WC114-377,31/03/2020,Adult Social Care,ACEPAY LTD (COTTAGE NUR HOME),26/03/2020,"2,143.72",73502-NURSING,PHYSICAL SUPPORT,Third Party Payments,Revenue
Walsall Council,http://opendatacommunities.org/id/metropolitan-district-council/walsall,WC114-378,31/03/2020,Adult Social Care,ACEPAY LTD (COTTAGE NUR HOME),26/03/2020,"2,143.72",73502-NURSING,PHYSICAL SUPPORT,Third Party Payments,Revenue
Walsall Council,http://opendatacommunities.org/id/metropolitan-district-council/walsall,WC114-379,31/03/2020,Adult Social Care,ACEPAY LTD (COTTAGE NUR HOME),26/03/2020,"2,143.72",73502-NURSING,PHYSICAL SUPPORT,Third Party Payments,Revenue
Walsall Council,http://opendatacommunities.org/id/metropolitan-district-council/walsall,WC114-380,31/03/2020,Adult Social Care,ACEPAY LTD (COTTAGE NUR HOME),26/03/2020,"2,143.72",73502-NURSING,SUPPORT WITH MEMORY & COGNITION,Third Party Payments,Revenue
Walsall Council,http://opendatacommunities.org/id/metropolitan-district-council/walsall,WC114-381,31/03/2020,Adult Social Care,ACEPAY LTD (COTTAGE NUR HOME),26/03/2020,"2,343.72",73502-NURSING,PHYSICAL SUPPORT,Third Party Payments,Revenue
Walsall Council,http://opendatacommunities.org/id/metropolitan-district-council/walsall,WC114-382,31/03/2020,Childrens,ACORN CARE & EDUCATION LTD (SALES),18/03/2020,"14,053.33",66502-TOP UP FUNDING -GRANTS TO SCHOOLS,INDEPENDENT PROVIDERS - SPECIAL & AP,Third Party Payments,Revenue
Walsall Council,http://opendatacommunities.org/id/metropolitan-district-council/walsall,WC114-383,31/03/2020,Childrens,ACORN CARE & EDUCATION LTD (SALES),18/03/2020,"14,456.67",66502-TOP UP FUNDING -GRANTS TO SCHOOLS,INDEPENDENT PROVIDERS - SPECIAL & AP,Third Party Payments,Revenue
Walsall Council,http://opendatacommunities.org/id/metropolitan-district-council/walsall,WC114-384,31/03/2020,Childrens,ACORN CARE & EDUCATION LTD (SALES),18/03/2020,"14,456.67",66502-TOP UP FUNDING -GRANTS TO SCHOOLS,INDEPENDENT PROVIDERS - SPECIAL & AP,Third Party Payments,Revenue
Walsall Council,http://opendatacommunities.org/id/metropolitan-district-council/walsall,WC114-385,31/03/2020,Childrens,ACORN CARE & EDUCATION LTD (SALES),18/03/2020,"14,456.67",66502-TOP UP FUNDING -GRANTS TO SCHOOLS,INDEPENDENT PROVIDERS - SPECIAL & AP,Third Party Payments,Revenue
Walsall Council,http://opendatacommunities.org/id/metropolitan-district-council/walsall,WC114-386,31/03/2020,Economy & Environment,ACTION GRAPHICS & DISPLAY LTD,04/03/2020,784.60,62009-OUTWORK-DESIGN,NAG - TEMPORARY EXHIBITIONS,Supplies & Services,Revenue
Walsall Council,http://opendatacommunities.org/id/metropolitan-district-council/walsall,WC114-387,31/03/2020,Adult Social Care,ACTION ON HEARING LOSS,03/03/2020,"1,008.00",73508-COMMUNITY SUPPORTED LIVING/SUPPORTED ACCOMMODATION,MENTAL HEALTH SUPPORT,Third Party Payments,Revenue
Walsall Council,http://opendatacommunities.org/id/metropolitan-district-council/walsall,WC114-388,31/03/2020,Adult Social Care,ACTION ON HEARING LOSS,30/03/2020,"1,008.00",73508-COMMUNITY SUPPORTED LIVING/SUPPORTED ACCOMMODATION,MENTAL HEALTH SUPPORT,Third Party Payments,Revenue
Walsall Council,http://opendatacommunities.org/id/metropolitan-district-council/walsall,WC114-389,31/03/2020,Resources and Transformation,ACTIVATING CREATIVE TALENT CIC,18/03/2020,"2,350.00",73025-PROFESSIONAL SERVICES-PRIV CONTRACTOR & OTHER AGENCIES,EARLY INTERVENTION YOUTH FUND,Third Party Payments,Revenue
Walsall Council,http://opendatacommunities.org/id/metropolitan-district-council/walsall,WC114-390,31/03/2020,Childrens,ACTIVE CARE SOLUTIONS LTD,20/03/2020,"2,662.80",74037-INDEPENDENT FOSTER CARE-OTH AGENCY PROVISION,EXTERNAL FOSTER CARE PROVISION,Third Party Payments,Revenue
Walsall Council,http://opendatacommunities.org/id/metropolitan-district-council/walsall,WC114-391,31/03/2020,Childrens,ACTIVE CARE SOLUTIONS LTD,20/03/2020,"3,220.00",74037-INDEPENDENT FOSTER CARE-OTH AGENCY PROVISION,EXTERNAL FOSTER CARE PROVISION,Third Party Payments,Revenue
Walsall Council,http://opendatacommunities.org/id/metropolitan-district-council/walsall,WC114-392,31/03/2020,Childrens,ACTIVE CARE SOLUTIONS LTD,20/03/2020,"6,542.25",74037-INDEPENDENT FOSTER CARE-OTH AGENCY PROVISION,EXTERNAL FOSTER CARE PROVISION,Third Party Payments,Revenue
Walsall Council,http://opendatacommunities.org/id/metropolitan-district-council/walsall,WC114-393,31/03/2020,Economy & Environment,ACTIVE GYM LIMITED,18/03/2020,270.00,32000-MISC FEES AND EXPENSES,OAK PARK,Employees,Revenue
Walsall Council,http://opendatacommunities.org/id/metropolitan-district-council/walsall,WC114-394,31/03/2020,Resources and Transformation,ADA BUILDERS & JOINERS,04/03/2020,"28,926.00",01045-PRIVATE GRANTS,CFR 1359 DISABLED FACILITIES GRANT,Capital,Capital
Walsall Council,http://opendatacommunities.org/id/metropolitan-district-council/walsall,WC114-395,31/03/2020,Adult Social Care,REDACTED,11/03/2020,553.15,73506-DIRECT PAYMENT,LEARNING DISABILITY SUPPORT,Third Party Payments,Revenue
Walsall Council,http://opendatacommunities.org/id/metropolitan-district-council/walsall,WC114-396,31/03/2020,Childrens,ADCS (ASSOCIATION OF DIRECTORS OF CHILDRENS SERVICES),13/03/2020,"2,633.00",63000-PROFESSIONAL FEES AND SERVICES,CHILDRENS MANAGMENT TEAM,Supplies & Services,Revenue
Walsall Council,http://opendatacommunities.org/id/metropolitan-district-council/walsall,WC114-397,31/03/2020,Childrens,REDACTED,09/03/2020,333.12,74510-RESIDENTS ORDERS,ADOPTION ALLOWANCES,Third Party Payments,Revenue
Walsall Council,http://opendatacommunities.org/id/metropolitan-district-council/walsall,WC114-398,31/03/2020,Childrens,REDACTED,09/03/2020,361.12,74510-RESIDENTS ORDERS,ADOPTION ALLOWANCES,Third Party Payments,Revenue
Walsall Council,http://opendatacommunities.org/id/metropolitan-district-council/walsall,WC114-399,31/03/2020,Adult Social Care,REDACTED,11/03/2020,"2,604.00",73506-DIRECT PAYMENT,LEARNING DISABILITY SUPPORT,Third Party Payments,Revenue
Walsall Council,http://opendatacommunities.org/id/metropolitan-district-council/walsall,WC114-400,31/03/2020,Adult Social Care,ADVANCE HEALTH CARE (UK) LTD,23/03/2020,250.88,73019-PSE'S-PRIV CONTRACTOR FEES,INTERMEDIATE CARE SERVICE,Third Party Payments,Revenue
Walsall Council,http://opendatacommunities.org/id/metropolitan-district-council/walsall,WC114-401,31/03/2020,Adult Social Care,ADVANCE HEALTH CARE (UK) LTD,11/03/2020,257.94,73025-PROFESSIONAL SERVICES-PRIV CONTRACTOR & OTHER AGENCIES,INTERMEDIATE CARE SERVICE,Third Party Payments,Revenue
Walsall Council,http://opendatacommunities.org/id/metropolitan-district-council/walsall,WC114-402,31/03/2020,Adult Social Care,ADVANCE HEALTH CARE (UK) LTD,13/03/2020,262.64,73019-PSE'S-PRIV CONTRACTOR FEES,INTERMEDIATE CARE SERVICE,Third Party Payments,Revenue
Walsall Council,http://opendatacommunities.org/id/metropolitan-district-council/walsall,WC114-403,31/03/2020,Adult Social Care,ADVANCE HEALTH CARE (UK) LTD,16/03/2020,268.69,73025-PROFESSIONAL SERVICES-PRIV CONTRACTOR & OTHER AGENCIES,INTERMEDIATE CARE SERVICE,Third Party Payments,Revenue
Walsall Council,http://opendatacommunities.org/id/metropolitan-district-council/walsall,WC114-404,31/03/2020,Adult Social Care,ADVANCE HEALTH CARE (UK) LTD,13/03/2020,274.40,73019-PSE'S-PRIV CONTRACTOR FEES,INTERMEDIATE CARE SERVICE,Third Party Payments,Revenue
Walsall Council,http://opendatacommunities.org/id/metropolitan-district-council/walsall,WC114-405,31/03/2020,Adult Social Care,ADVANCE HEALTH CARE (UK) LTD,11/03/2020,275.85,73025-PROFESSIONAL SERVICES-PRIV CONTRACTOR & OTHER AGENCIES,INTERMEDIATE CARE SERVICE,Third Party Payments,Revenue
Walsall Council,http://opendatacommunities.org/id/metropolitan-district-council/walsall,WC114-406,31/03/2020,Adult Social Care,ADVANCE HEALTH CARE (UK) LTD,16/03/2020,275.85,73025-PROFESSIONAL SERVICES-PRIV CONTRACTOR & OTHER AGENCIES,INTERMEDIATE CARE SERVICE,Third Party Payments,Revenue
Walsall Council,http://opendatacommunities.org/id/metropolitan-district-council/walsall,WC114-407,31/03/2020,Adult Social Care,ADVANCE HEALTH CARE (UK) LTD,01/03/2020,279.44,73025-PROFESSIONAL SERVICES-PRIV CONTRACTOR & OTHER AGENCIES,INTERMEDIATE CARE SERVICE,Third Party Payments,Revenue
Walsall Council,http://opendatacommunities.org/id/metropolitan-district-council/walsall,WC114-408,31/03/2020,Adult Social Care,ADVANCE HEALTH CARE (UK) LTD,01/03/2020,286.60,73025-PROFESSIONAL SERVICES-PRIV CONTRACTOR & OTHER AGENCIES,INTERMEDIATE CARE SERVICE,Third Party Payments,Revenue
Walsall Council,http://opendatacommunities.org/id/metropolitan-district-council/walsall,WC114-409,31/03/2020,Adult Social Care,ADVANCE HEALTH CARE (UK) LTD,09/03/2020,300.93,73025-PROFESSIONAL SERVICES-PRIV CONTRACTOR & OTHER AGENCIES,INTERMEDIATE CARE SERVICE,Third Party Payments,Revenue
Walsall Council,http://opendatacommunities.org/id/metropolitan-district-council/walsall,WC114-410,31/03/2020,Adult Social Care,ADVANCE HEALTH CARE (UK) LTD,11/03/2020,300.93,73025-PROFESSIONAL SERVICES-PRIV CONTRACTOR & OTHER AGENCIES,INTERMEDIATE CARE SERVICE,Third Party Payments,Revenue
Walsall Council,http://opendatacommunities.org/id/metropolitan-district-council/walsall,WC114-411,31/03/2020,Adult Social Care,ADVANCE HEALTH CARE (UK) LTD,23/03/2020,313.60,73019-PSE'S-PRIV CONTRACTOR FEES,INTERMEDIATE CARE SERVICE,Third Party Payments,Revenue
Walsall Council,http://opendatacommunities.org/id/metropolitan-district-council/walsall,WC114-412,31/03/2020,Adult Social Care,ADVANCE HEALTH CARE (UK) LTD,27/03/2020,318.44,73507-DOMICILIARY CARE,PHYSICAL SUPPORT,Third Party Payments,Revenue
Walsall Council,http://opendatacommunities.org/id/metropolitan-district-council/walsall,WC114-413,31/03/2020,Adult Social Care,ADVANCE HEALTH CARE (UK) LTD,23/03/2020,343.92,73025-PROFESSIONAL SERVICES-PRIV CONTRACTOR & OTHER AGENCIES,INTERMEDIATE CARE SERVICE,Third Party Payments,Revenue
Walsall Council,http://opendatacommunities.org/id/metropolitan-district-council/walsall,WC114-414,31/03/2020,Adult Social Care,ADVANCE HEALTH CARE (UK) LTD,09/03/2020,351.09,73025-PROFESSIONAL SERVICES-PRIV CONTRACTOR & OTHER AGENCIES,INTERMEDIATE CARE SERVICE,Third Party Payments,Revenue
Walsall Council,http://opendatacommunities.org/id/metropolitan-district-council/walsall,WC114-415,31/03/2020,Adult Social Care,ADVANCE HEALTH CARE (UK) LTD,25/03/2020,352.80,73019-PSE'S-PRIV CONTRACTOR FEES,INTERMEDIATE CARE SERVICE,Third Party Payments,Revenue
Walsall Council,http://opendatacommunities.org/id/metropolitan-district-council/walsall,WC114-416,31/03/2020,Adult Social Care,ADVANCE HEALTH CARE (UK) LTD,03/03/2020,356.72,73019-PSE'S-PRIV CONTRACTOR FEES,INTERMEDIATE CARE SERVICE,Third Party Payments,Revenue
Walsall Council,http://opendatacommunities.org/id/metropolitan-district-council/walsall,WC114-417,31/03/2020,Adult Social Care,ADVANCE HEALTH CARE (UK) LTD,13/03/2020,356.72,73019-PSE'S-PRIV CONTRACTOR FEES,INTERMEDIATE CARE SERVICE,Third Party Payments,Revenue
Walsall Council,http://opendatacommunities.org/id/metropolitan-district-council/walsall,WC114-418,31/03/2020,Adult Social Care,ADVANCE HEALTH CARE (UK) LTD,01/03/2020,380.24,73019-PSE'S-PRIV CONTRACTOR FEES,INTERMEDIATE CARE SERVICE,Third Party Payments,Revenue
Walsall Council,http://opendatacommunities.org/id/metropolitan-district-council/walsall,WC114-419,31/03/2020,Adult Social Care,ADVANCE HEALTH CARE (UK) LTD,03/03/2020,384.16,73019-PSE'S-PRIV CONTRACTOR FEES,INTERMEDIATE CARE SERVICE,Third Party Payments,Revenue
Walsall Council,http://opendatacommunities.org/id/metropolitan-district-council/walsall,WC114-420,31/03/2020,Adult Social Care,ADVANCE HEALTH CARE (UK) LTD,16/03/2020,384.16,73019-PSE'S-PRIV CONTRACTOR FEES,INTERMEDIATE CARE SERVICE,Third Party Payments,Revenue
Walsall Council,http://opendatacommunities.org/id/metropolitan-district-council/walsall,WC114-421,31/03/2020,Adult Social Care,ADVANCE HEALTH CARE (UK) LTD,23/03/2020,384.16,73019-PSE'S-PRIV CONTRACTOR FEES,INTERMEDIATE CARE SERVICE,Third Party Payments,Revenue
Walsall Council,http://opendatacommunities.org/id/metropolitan-district-council/walsall,WC114-422,31/03/2020,Adult Social Care,ADVANCE HEALTH CARE (UK) LTD,27/03/2020,407.96,73507-DOMICILIARY CARE,PHYSICAL SUPPORT,Third Party Payments,Revenue
Walsall Council,http://opendatacommunities.org/id/metropolitan-district-council/walsall,WC114-423,31/03/2020,Adult Social Care,ADVANCE HEALTH CARE (UK) LTD,09/03/2020,415.57,73025-PROFESSIONAL SERVICES-PRIV CONTRACTOR & OTHER AGENCIES,INTERMEDIATE CARE SERVICE,Third Party Payments,Revenue
Walsall Council,http://opendatacommunities.org/id/metropolitan-district-council/walsall,WC114-424,31/03/2020,Adult Social Care,ADVANCE HEALTH CARE (UK) LTD,16/03/2020,423.36,73019-PSE'S-PRIV CONTRACTOR FEES,INTERMEDIATE CARE SERVICE,Third Party Payments,Revenue
Walsall Council,http://opendatacommunities.org/id/metropolitan-district-council/walsall,WC114-425,31/03/2020,Adult Social Care,ADVANCE HEALTH CARE (UK) LTD,27/03/2020,437.31,73507-DOMICILIARY CARE,PHYSICAL SUPPORT,Third Party Payments,Revenue
Walsall Council,http://opendatacommunities.org/id/metropolitan-district-council/walsall,WC114-426,31/03/2020,Adult Social Care,ADVANCE HEALTH CARE (UK) LTD,27/03/2020,450.35,73507-DOMICILIARY CARE,PHYSICAL SUPPORT,Third Party Payments,Revenue
Walsall Council,http://opendatacommunities.org/id/metropolitan-district-council/walsall,WC114-427,31/03/2020,Adult Social Care,ADVANCE HEALTH CARE (UK) LTD,01/03/2020,451.40,73025-PROFESSIONAL SERVICES-PRIV CONTRACTOR & OTHER AGENCIES,INTERMEDIATE CARE SERVICE,Third Party Payments,Revenue
Walsall Council,http://opendatacommunities.org/id/metropolitan-district-council/walsall,WC114-428,31/03/2020,Adult Social Care,ADVANCE HEALTH CARE (UK) LTD,01/03/2020,451.40,73025-PROFESSIONAL SERVICES-PRIV CONTRACTOR & OTHER AGENCIES,INTERMEDIATE CARE SERVICE,Third Party Payments,Revenue
Walsall Council,http://opendatacommunities.org/id/metropolitan-district-council/walsall,WC114-429,31/03/2020,Adult Social Care,ADVANCE HEALTH CARE (UK) LTD,09/03/2020,451.40,73025-PROFESSIONAL SERVICES-PRIV CONTRACTOR & OTHER AGENCIES,INTERMEDIATE CARE SERVICE,Third Party Payments,Revenue
Walsall Council,http://opendatacommunities.org/id/metropolitan-district-council/walsall,WC114-430,31/03/2020,Adult Social Care,ADVANCE HEALTH CARE (UK) LTD,09/03/2020,451.40,73025-PROFESSIONAL SERVICES-PRIV CONTRACTOR & OTHER AGENCIES,INTERMEDIATE CARE SERVICE,Third Party Payments,Revenue
Walsall Council,http://opendatacommunities.org/id/metropolitan-district-council/walsall,WC114-431,31/03/2020,Adult Social Care,ADVANCE HEALTH CARE (UK) LTD,10/03/2020,451.40,73025-PROFESSIONAL SERVICES-PRIV CONTRACTOR & OTHER AGENCIES,INTERMEDIATE CARE SERVICE,Third Party Payments,Revenue
Walsall Council,http://opendatacommunities.org/id/metropolitan-district-council/walsall,WC114-432,31/03/2020,Adult Social Care,ADVANCE HEALTH CARE (UK) LTD,11/03/2020,451.40,73025-PROFESSIONAL SERVICES-PRIV CONTRACTOR & OTHER AGENCIES,INTERMEDIATE CARE SERVICE,Third Party Payments,Revenue
Walsall Council,http://opendatacommunities.org/id/metropolitan-district-council/walsall,WC114-433,31/03/2020,Adult Social Care,ADVANCE HEALTH CARE (UK) LTD,11/03/2020,451.40,73025-PROFESSIONAL SERVICES-PRIV CONTRACTOR & OTHER AGENCIES,INTERMEDIATE CARE SERVICE,Third Party Payments,Revenue
Walsall Council,http://opendatacommunities.org/id/metropolitan-district-council/walsall,WC114-434,31/03/2020,Adult Social Care,ADVANCE HEALTH CARE (UK) LTD,16/03/2020,451.40,73025-PROFESSIONAL SERVICES-PRIV CONTRACTOR & OTHER AGENCIES,INTERMEDIATE CARE SERVICE,Third Party Payments,Revenue
Walsall Council,http://opendatacommunities.org/id/metropolitan-district-council/walsall,WC114-435,31/03/2020,Adult Social Care,ADVANCE HEALTH CARE (UK) LTD,16/03/2020,451.40,73025-PROFESSIONAL SERVICES-PRIV CONTRACTOR & OTHER AGENCIES,INTERMEDIATE CARE SERVICE,Third Party Payments,Revenue
Walsall Council,http://opendatacommunities.org/id/metropolitan-district-council/walsall,WC114-436,31/03/2020,Adult Social Care,ADVANCE HEALTH CARE (UK) LTD,16/03/2020,451.40,73025-PROFESSIONAL SERVICES-PRIV CONTRACTOR & OTHER AGENCIES,INTERMEDIATE CARE SERVICE,Third Party Payments,Revenue
Walsall Council,http://opendatacommunities.org/id/metropolitan-district-council/walsall,WC114-437,31/03/2020,Adult Social Care,ADVANCE HEALTH CARE (UK) LTD,16/03/2020,451.40,73025-PROFESSIONAL SERVICES-PRIV CONTRACTOR & OTHER AGENCIES,INTERMEDIATE CARE SERVICE,Third Party Payments,Revenue
Walsall Council,http://opendatacommunities.org/id/metropolitan-district-council/walsall,WC114-438,31/03/2020,Adult Social Care,ADVANCE HEALTH CARE (UK) LTD,23/03/2020,451.40,73025-PROFESSIONAL SERVICES-PRIV CONTRACTOR & OTHER AGENCIES,INTERMEDIATE CARE SERVICE,Third Party Payments,Revenue
Walsall Council,http://opendatacommunities.org/id/metropolitan-district-council/walsall,WC114-439,31/03/2020,Adult Social Care,ADVANCE HEALTH CARE (UK) LTD,01/03/2020,454.72,73019-PSE'S-PRIV CONTRACTOR FEES,INTERMEDIATE CARE SERVICE,Third Party Payments,Revenue
Walsall Council,http://opendatacommunities.org/id/metropolitan-district-council/walsall,WC114-440,31/03/2020,Adult Social Care,ADVANCE HEALTH CARE (UK) LTD,16/03/2020,458.56,73025-PROFESSIONAL SERVICES-PRIV CONTRACTOR & OTHER AGENCIES,INTERMEDIATE CARE SERVICE,Third Party Payments,Revenue
Walsall Council,http://opendatacommunities.org/id/metropolitan-district-council/walsall,WC114-441,31/03/2020,Adult Social Care,ADVANCE HEALTH CARE (UK) LTD,23/03/2020,458.56,73025-PROFESSIONAL SERVICES-PRIV CONTRACTOR & OTHER AGENCIES,INTERMEDIATE CARE SERVICE,Third Party Payments,Revenue
Walsall Council,http://opendatacommunities.org/id/metropolitan-district-council/walsall,WC114-442,31/03/2020,Adult Social Care,ADVANCE HEALTH CARE (UK) LTD,11/03/2020,472.89,73025-PROFESSIONAL SERVICES-PRIV CONTRACTOR & OTHER AGENCIES,INTERMEDIATE CARE SERVICE,Third Party Payments,Revenue
Walsall Council,http://opendatacommunities.org/id/metropolitan-district-council/walsall,WC114-443,31/03/2020,Adult Social Care,ADVANCE HEALTH CARE (UK) LTD,27/03/2020,492.45,73507-DOMICILIARY CARE,PHYSICAL SUPPORT,Third Party Payments,Revenue
Walsall Council,http://opendatacommunities.org/id/metropolitan-district-council/walsall,WC114-444,31/03/2020,Adult Social Care,ADVANCE HEALTH CARE (UK) LTD,01/03/2020,493.92,73019-PSE'S-PRIV CONTRACTOR FEES,INTERMEDIATE CARE SERVICE,Third Party Payments,Revenue
Walsall Council,http://opendatacommunities.org/id/metropolitan-district-council/walsall,WC114-445,31/03/2020,Adult Social Care,ADVANCE HEALTH CARE (UK) LTD,01/03/2020,493.92,73019-PSE'S-PRIV CONTRACTOR FEES,INTERMEDIATE CARE SERVICE,Third Party Payments,Revenue
Walsall Council,http://opendatacommunities.org/id/metropolitan-district-council/walsall,WC114-446,31/03/2020,Adult Social Care,ADVANCE HEALTH CARE (UK) LTD,01/03/2020,493.92,73019-PSE'S-PRIV CONTRACTOR FEES,INTERMEDIATE CARE SERVICE,Third Party Payments,Revenue
Walsall Council,http://opendatacommunities.org/id/metropolitan-district-council/walsall,WC114-447,31/03/2020,Adult Social Care,ADVANCE HEALTH CARE (UK) LTD,03/03/2020,493.92,73019-PSE'S-PRIV CONTRACTOR FEES,INTERMEDIATE CARE SERVICE,Third Party Payments,Revenue
Walsall Council,http://opendatacommunities.org/id/metropolitan-district-council/walsall,WC114-448,31/03/2020,Adult Social Care,ADVANCE HEALTH CARE (UK) LTD,03/03/2020,493.92,73019-PSE'S-PRIV CONTRACTOR FEES,INTERMEDIATE CARE SERVICE,Third Party Payments,Revenue
Walsall Council,http://opendatacommunities.org/id/metropolitan-district-council/walsall,WC114-449,31/03/2020,Adult Social Care,ADVANCE HEALTH CARE (UK) LTD,09/03/2020,493.92,73019-PSE'S-PRIV CONTRACTOR FEES,INTERMEDIATE CARE SERVICE,Third Party Payments,Revenue
Walsall Council,http://opendatacommunities.org/id/metropolitan-district-council/walsall,WC114-450,31/03/2020,Adult Social Care,ADVANCE HEALTH CARE (UK) LTD,13/03/2020,493.92,73019-PSE'S-PRIV CONTRACTOR FEES,INTERMEDIATE CARE SERVICE,Third Party Payments,Revenue
Walsall Council,http://opendatacommunities.org/id/metropolitan-district-council/walsall,WC114-451,31/03/2020,Adult Social Care,ADVANCE HEALTH CARE (UK) LTD,13/03/2020,493.92,73019-PSE'S-PRIV CONTRACTOR FEES,INTERMEDIATE CARE SERVICE,Third Party Payments,Revenue
Walsall Council,http://opendatacommunities.org/id/metropolitan-district-council/walsall,WC114-452,31/03/2020,Adult Social Care,ADVANCE HEALTH CARE (UK) LTD,16/03/2020,493.92,73019-PSE'S-PRIV CONTRACTOR FEES,INTERMEDIATE CARE SERVICE,Third Party Payments,Revenue
Walsall Council,http://opendatacommunities.org/id/metropolitan-district-council/walsall,WC114-453,31/03/2020,Adult Social Care,ADVANCE HEALTH CARE (UK) LTD,16/03/2020,493.92,73019-PSE'S-PRIV CONTRACTOR FEES,INTERMEDIATE CARE SERVICE,Third Party Payments,Revenue
Walsall Council,http://opendatacommunities.org/id/metropolitan-district-council/walsall,WC114-454,31/03/2020,Adult Social Care,ADVANCE HEALTH CARE (UK) LTD,23/03/2020,493.92,73019-PSE'S-PRIV CONTRACTOR FEES,INTERMEDIATE CARE SERVICE,Third Party Payments,Revenue
Walsall Council,http://opendatacommunities.org/id/metropolitan-district-council/walsall,WC114-455,31/03/2020,Adult Social Care,ADVANCE HEALTH CARE (UK) LTD,23/03/2020,493.92,73019-PSE'S-PRIV CONTRACTOR FEES,INTERMEDIATE CARE SERVICE,Third Party Payments,Revenue
Walsall Council,http://opendatacommunities.org/id/metropolitan-district-council/walsall,WC114-456,31/03/2020,Adult Social Care,ADVANCE HEALTH CARE (UK) LTD,23/03/2020,493.92,73019-PSE'S-PRIV CONTRACTOR FEES,INTERMEDIATE CARE SERVICE,Third Party Payments,Revenue
Walsall Council,http://opendatacommunities.org/id/metropolitan-district-council/walsall,WC114-457,31/03/2020,Adult Social Care,ADVANCE HEALTH CARE (UK) LTD,27/03/2020,509.20,73507-DOMICILIARY CARE,PHYSICAL SUPPORT,Third Party Payments,Revenue
Walsall Council,http://opendatacommunities.org/id/metropolitan-district-council/walsall,WC114-458,31/03/2020,Adult Social Care,ADVANCE HEALTH CARE (UK) LTD,27/03/2020,517.41,73507-DOMICILIARY CARE,PHYSICAL SUPPORT,Third Party Payments,Revenue
Walsall Council,http://opendatacommunities.org/id/metropolitan-district-council/walsall,WC114-459,31/03/2020,Adult Social Care,ADVANCE HEALTH CARE (UK) LTD,27/03/2020,647.93,73507-DOMICILIARY CARE,PHYSICAL SUPPORT,Third Party Payments,Revenue
Walsall Council,http://opendatacommunities.org/id/metropolitan-district-council/walsall,WC114-460,31/03/2020,Adult Social Care,ADVANCE HEALTH CARE (UK) LTD,01/03/2020,652.02,73025-PROFESSIONAL SERVICES-PRIV CONTRACTOR & OTHER AGENCIES,INTERMEDIATE CARE SERVICE,Third Party Payments,Revenue
Walsall Council,http://opendatacommunities.org/id/metropolitan-district-council/walsall,WC114-461,31/03/2020,Adult Social Care,ADVANCE HEALTH CARE (UK) LTD,09/03/2020,652.02,73025-PROFESSIONAL SERVICES-PRIV CONTRACTOR & OTHER AGENCIES,INTERMEDIATE CARE SERVICE,Third Party Payments,Revenue
Walsall Council,http://opendatacommunities.org/id/metropolitan-district-council/walsall,WC114-462,31/03/2020,Adult Social Care,ADVANCE HEALTH CARE (UK) LTD,27/03/2020,658.27,73507-DOMICILIARY CARE,PHYSICAL SUPPORT,Third Party Payments,Revenue
Walsall Council,http://opendatacommunities.org/id/metropolitan-district-council/walsall,WC114-463,31/03/2020,Adult Social Care,ADVANCE HEALTH CARE (UK) LTD,01/03/2020,689.11,73025-PROFESSIONAL SERVICES-PRIV CONTRACTOR & OTHER AGENCIES,INTERMEDIATE CARE SERVICE,Third Party Payments,Revenue
Walsall Council,http://opendatacommunities.org/id/metropolitan-district-council/walsall,WC114-464,31/03/2020,Adult Social Care,ADVANCE HEALTH CARE (UK) LTD,10/03/2020,689.11,73025-PROFESSIONAL SERVICES-PRIV CONTRACTOR & OTHER AGENCIES,INTERMEDIATE CARE SERVICE,Third Party Payments,Revenue
Walsall Council,http://opendatacommunities.org/id/metropolitan-district-council/walsall,WC114-465,31/03/2020,Adult Social Care,ADVANCE HEALTH CARE (UK) LTD,11/03/2020,689.11,73025-PROFESSIONAL SERVICES-PRIV CONTRACTOR & OTHER AGENCIES,INTERMEDIATE CARE SERVICE,Third Party Payments,Revenue
Walsall Council,http://opendatacommunities.org/id/metropolitan-district-council/walsall,WC114-466,31/03/2020,Adult Social Care,ADVANCE HEALTH CARE (UK) LTD,27/03/2020,695.27,73507-DOMICILIARY CARE,PHYSICAL SUPPORT,Third Party Payments,Revenue
Walsall Council,http://opendatacommunities.org/id/metropolitan-district-council/walsall,WC114-467,31/03/2020,Adult Social Care,ADVANCE HEALTH CARE (UK) LTD,27/03/2020,760.99,73507-DOMICILIARY CARE,PHYSICAL SUPPORT,Third Party Payments,Revenue
Walsall Council,http://opendatacommunities.org/id/metropolitan-district-council/walsall,WC114-468,31/03/2020,Adult Social Care,ADVANCE HEALTH CARE (UK) LTD,27/03/2020,801.13,73507-DOMICILIARY CARE,PHYSICAL SUPPORT,Third Party Payments,Revenue
Walsall Council,http://opendatacommunities.org/id/metropolitan-district-council/walsall,WC114-469,31/03/2020,Adult Social Care,ADVANCE HEALTH CARE (UK) LTD,27/03/2020,808.06,73507-DOMICILIARY CARE,PHYSICAL SUPPORT,Third Party Payments,Revenue
Walsall Council,http://opendatacommunities.org/id/metropolitan-district-council/walsall,WC114-470,31/03/2020,Adult Social Care,ADVANCE HEALTH CARE (UK) LTD,27/03/2020,819.79,73507-DOMICILIARY CARE,SUPPORT WITH MEMORY & COGNITION,Third Party Payments,Revenue
Walsall Council,http://opendatacommunities.org/id/metropolitan-district-council/walsall,WC114-471,31/03/2020,Adult Social Care,ADVANCE HEALTH CARE (UK) LTD,03/03/2020,902.80,73507-DOMICILIARY CARE,PHYSICAL SUPPORT,Third Party Payments,Revenue
Walsall Council,http://opendatacommunities.org/id/metropolitan-district-council/walsall,WC114-472,31/03/2020,Adult Social Care,ADVANCE HEALTH CARE (UK) LTD,30/03/2020,902.80,73507-DOMICILIARY CARE,PHYSICAL SUPPORT,Third Party Payments,Revenue
Walsall Council,http://opendatacommunities.org/id/metropolitan-district-council/walsall,WC114-473,31/03/2020,Adult Social Care,ADVANCE HEALTH CARE (UK) LTD,27/03/2020,"1,030.90",73507-DOMICILIARY CARE,PHYSICAL SUPPORT,Third Party Payments,Revenue
Walsall Council,http://opendatacommunities.org/id/metropolitan-district-council/walsall,WC114-474,31/03/2020,Adult Social Care,ADVANCE HEALTH CARE (UK) LTD,27/03/2020,"1,115.77",73507-DOMICILIARY CARE,SOCIAL SUPPORT,Third Party Payments,Revenue
Walsall Council,http://opendatacommunities.org/id/metropolitan-district-council/walsall,WC114-475,31/03/2020,Adult Social Care,ADVANCE HEALTH CARE (UK) LTD,27/03/2020,"1,205.07",73507-DOMICILIARY CARE,PHYSICAL SUPPORT,Third Party Payments,Revenue
Walsall Council,http://opendatacommunities.org/id/metropolitan-district-council/walsall,WC114-476,31/03/2020,Adult Social Care,ADVANCE HEALTH CARE (UK) LTD,27/03/2020,"1,308.33",73507-DOMICILIARY CARE,PHYSICAL SUPPORT,Third Party Payments,Revenue
Walsall Council,http://opendatacommunities.org/id/metropolitan-district-council/walsall,WC114-477,31/03/2020,Adult Social Care,ADVANCE HEALTH CARE (UK) LTD,27/03/2020,"1,323.34",73507-DOMICILIARY CARE,PHYSICAL SUPPORT,Third Party Payments,Revenue
Walsall Council,http://opendatacommunities.org/id/metropolitan-district-council/walsall,WC114-478,31/03/2020,Adult Social Care,ADVANCE HEALTH CARE (UK) LTD,27/03/2020,"1,338.10",73507-DOMICILIARY CARE,PHYSICAL SUPPORT,Third Party Payments,Revenue
Walsall Council,http://opendatacommunities.org/id/metropolitan-district-council/walsall,WC114-479,31/03/2020,Adult Social Care,ADVANCE HEALTH CARE (UK) LTD,27/03/2020,"1,414.85",73507-DOMICILIARY CARE,PHYSICAL SUPPORT,Third Party Payments,Revenue
Walsall Council,http://opendatacommunities.org/id/metropolitan-district-council/walsall,WC114-480,31/03/2020,Adult Social Care,ADVANCE HEALTH CARE (UK) LTD,27/03/2020,"1,418.41",73507-DOMICILIARY CARE,PHYSICAL SUPPORT,Third Party Payments,Revenue
Walsall Council,http://opendatacommunities.org/id/metropolitan-district-council/walsall,WC114-481,31/03/2020,Adult Social Care,ADVANCE HEALTH CARE (UK) LTD,27/03/2020,"1,437.92",73507-DOMICILIARY CARE,PHYSICAL SUPPORT,Third Party Payments,Revenue
Walsall Council,http://opendatacommunities.org/id/metropolitan-district-council/walsall,WC114-482,31/03/2020,Adult Social Care,ADVANCE HEALTH CARE (UK) LTD,27/03/2020,"1,438.68",73507-DOMICILIARY CARE,PHYSICAL SUPPORT,Third Party Payments,Revenue
Walsall Council,http://opendatacommunities.org/id/metropolitan-district-council/walsall,WC114-483,31/03/2020,Adult Social Care,ADVANCE HEALTH CARE (UK) LTD,27/03/2020,"1,454.42",73507-DOMICILIARY CARE,PHYSICAL SUPPORT,Third Party Payments,Revenue
Walsall Council,http://opendatacommunities.org/id/metropolitan-district-council/walsall,WC114-484,31/03/2020,Adult Social Care,ADVANCE HEALTH CARE (UK) LTD,27/03/2020,"1,469.44",73507-DOMICILIARY CARE,PHYSICAL SUPPORT,Third Party Payments,Revenue
Walsall Council,http://opendatacommunities.org/id/metropolitan-district-council/walsall,WC114-485,31/03/2020,Adult Social Care,ADVANCE HEALTH CARE (UK) LTD,27/03/2020,"1,487.92",73507-DOMICILIARY CARE,PHYSICAL SUPPORT,Third Party Payments,Revenue
Walsall Council,http://opendatacommunities.org/id/metropolitan-district-council/walsall,WC114-486,31/03/2020,Adult Social Care,ADVANCE HEALTH CARE (UK) LTD,27/03/2020,"1,525.69",73507-DOMICILIARY CARE,PHYSICAL SUPPORT,Third Party Payments,Revenue
Walsall Council,http://opendatacommunities.org/id/metropolitan-district-council/walsall,WC114-487,31/03/2020,Adult Social Care,ADVANCE HEALTH CARE (UK) LTD,27/03/2020,"1,528.79",73507-DOMICILIARY CARE,PHYSICAL SUPPORT,Third Party Payments,Revenue
Walsall Council,http://opendatacommunities.org/id/metropolitan-district-council/walsall,WC114-488,31/03/2020,Adult Social Care,ADVANCE HEALTH CARE (UK) LTD,27/03/2020,"1,532.41",73507-DOMICILIARY CARE,PHYSICAL SUPPORT,Third Party Payments,Revenue
Walsall Council,http://opendatacommunities.org/id/metropolitan-district-council/walsall,WC114-489,31/03/2020,Adult Social Care,ADVANCE HEALTH CARE (UK) LTD,27/03/2020,"1,536.99",73507-DOMICILIARY CARE,PHYSICAL SUPPORT,Third Party Payments,Revenue
Walsall Council,http://opendatacommunities.org/id/metropolitan-district-council/walsall,WC114-490,31/03/2020,Adult Social Care,ADVANCE HEALTH CARE (UK) LTD,27/03/2020,"1,537.30",73507-DOMICILIARY CARE,PHYSICAL SUPPORT,Third Party Payments,Revenue
Walsall Council,http://opendatacommunities.org/id/metropolitan-district-council/walsall,WC114-491,31/03/2020,Adult Social Care,ADVANCE HEALTH CARE (UK) LTD,27/03/2020,"1,565.57",73507-DOMICILIARY CARE,SOCIAL SUPPORT,Third Party Payments,Revenue
Walsall Council,http://opendatacommunities.org/id/metropolitan-district-council/walsall,WC114-492,31/03/2020,Adult Social Care,ADVANCE HEALTH CARE (UK) LTD,27/03/2020,"1,571.92",73507-DOMICILIARY CARE,PHYSICAL SUPPORT,Third Party Payments,Revenue
Walsall Council,http://opendatacommunities.org/id/metropolitan-district-council/walsall,WC114-493,31/03/2020,Adult Social Care,ADVANCE HEALTH CARE (UK) LTD,27/03/2020,"1,589.36",73507-DOMICILIARY CARE,PHYSICAL SUPPORT,Third Party Payments,Revenue
Walsall Council,http://opendatacommunities.org/id/metropolitan-district-council/walsall,WC114-494,31/03/2020,Adult Social Care,ADVANCE HEALTH CARE (UK) LTD,27/03/2020,"1,614.33",73507-DOMICILIARY CARE,PHYSICAL SUPPORT,Third Party Payments,Revenue
Walsall Council,http://opendatacommunities.org/id/metropolitan-district-council/walsall,WC114-495,31/03/2020,Adult Social Care,ADVANCE HEALTH CARE (UK) LTD,27/03/2020,"1,623.53",73507-DOMICILIARY CARE,PHYSICAL SUPPORT,Third Party Payments,Revenue
Walsall Council,http://opendatacommunities.org/id/metropolitan-district-council/walsall,WC114-496,31/03/2020,Adult Social Care,ADVANCE HEALTH CARE (UK) LTD,27/03/2020,"1,689.01",73507-DOMICILIARY CARE,PHYSICAL SUPPORT,Third Party Payments,Revenue
Walsall Council,http://opendatacommunities.org/id/metropolitan-district-council/walsall,WC114-497,31/03/2020,Adult Social Care,ADVANCE HEALTH CARE (UK) LTD,27/03/2020,"1,712.83",73507-DOMICILIARY CARE,PHYSICAL SUPPORT,Third Party Payments,Revenue
Walsall Council,http://opendatacommunities.org/id/metropolitan-district-council/walsall,WC114-498,31/03/2020,Adult Social Care,ADVANCE HEALTH CARE (UK) LTD,27/03/2020,"1,745.60",73507-DOMICILIARY CARE,PHYSICAL SUPPORT,Third Party Payments,Revenue
Walsall Council,http://opendatacommunities.org/id/metropolitan-district-council/walsall,WC114-499,31/03/2020,Adult Social Care,ADVANCE HEALTH CARE (UK) LTD,27/03/2020,"1,788.75",73507-DOMICILIARY CARE,PHYSICAL SUPPORT,Third Party Payments,Revenue
Walsall Council,http://opendatacommunities.org/id/metropolitan-district-council/walsall,WC114-500,31/03/2020,Adult Social Care,ADVANCE HEALTH CARE (UK) LTD,27/03/2020,"1,833.94",73507-DOMICILIARY CARE,SOCIAL SUPPORT,Third Party Payments,Revenue
Walsall Council,http://opendatacommunities.org/id/metropolitan-district-council/walsall,WC114-501,31/03/2020,Adult Social Care,ADVANCE HEALTH CARE (UK) LTD,27/03/2020,"1,964.42",73507-DOMICILIARY CARE,PHYSICAL SUPPORT,Third Party Payments,Revenue
Walsall Council,http://opendatacommunities.org/id/metropolitan-district-council/walsall,WC114-502,31/03/2020,Adult Social Care,ADVANCE HEALTH CARE (UK) LTD,27/03/2020,"2,126.65",73507-DOMICILIARY CARE,PHYSICAL SUPPORT,Third Party Payments,Revenue
Walsall Council,http://opendatacommunities.org/id/metropolitan-district-council/walsall,WC114-503,31/03/2020,Adult Social Care,ADVANCE HEALTH CARE (UK) LTD,27/03/2020,"2,276.24",73507-DOMICILIARY CARE,PHYSICAL SUPPORT,Third Party Payments,Revenue
Walsall Council,http://opendatacommunities.org/id/metropolitan-district-council/walsall,WC114-504,31/03/2020,Adult Social Care,ADVANCE HEALTH CARE (UK) LTD,27/03/2020,"2,674.39",73507-DOMICILIARY CARE,SOCIAL SUPPORT,Third Party Payments,Revenue
Walsall Council,http://opendatacommunities.org/id/metropolitan-district-council/walsall,WC114-505,31/03/2020,Adult Social Care,ADVANCE HEALTH CARE (UK) LTD,27/03/2020,"3,152.99",73507-DOMICILIARY CARE,PHYSICAL SUPPORT,Third Party Payments,Revenue
Walsall Council,http://opendatacommunities.org/id/metropolitan-district-council/walsall,WC114-506,31/03/2020,Economy & Environment,ADVANCE PHARMA LTD T/A PLECK PHARMACY,16/03/2020,574.40,63253-PAYMENT TO CONTRACTOR,SMOKING CESSATION,Third Party Payments,Revenue
Walsall Council,http://opendatacommunities.org/id/metropolitan-district-council/walsall,WC114-507,31/03/2020,Economy & Environment,ADVANCE PHARMA LTD T/A PLECK PHARMACY,16/03/2020,"1,088.20",63253-PAYMENT TO CONTRACTOR,SMOKING CESSATION,Third Party Payments,Revenue
Walsall Council,http://opendatacommunities.org/id/metropolitan-district-council/walsall,WC114-508,31/03/2020,Adult Social Care,ADVANCED HEALTH AND CARE,02/03/2020,"9,352.81",60009-LEASING/HIRE/RENTAL-EQUIPMENT,INTERMEDIATE CARE SERVICE,Supplies & Services,Revenue
Walsall Council,http://opendatacommunities.org/id/metropolitan-district-council/walsall,WC114-509,31/03/2020,Childrens,ADVENTURELAND DAY NURSERY,24/03/2020,717.75,66505-OTHER-GRANTS TO OTHER ORGS,EARLY YEARS - 3 YR OLDS,Third Party Payments,Revenue
Walsall Council,http://opendatacommunities.org/id/metropolitan-district-council/walsall,WC114-510,31/03/2020,Resources and Transformation,AFGHAN COMMUNITY & WELFARE CENTRE,04/03/2020,"1,230.20",66500-GRANTS TO OTHER ORGS,LET'S TALK ABOUT IT PROJECT,Third Party Payments,Revenue
Walsall Council,http://opendatacommunities.org/id/metropolitan-district-council/walsall,WC114-511,31/03/2020,Economy & Environment,AGRIGEM LTD,17/03/2020,"7,389.00",60500-GENERAL MATERIALS,GROUNDS,Supplies & Services,Revenue
Walsall Council,http://opendatacommunities.org/id/metropolitan-district-council/walsall,WC114-512,31/03/2020,Adult Social Care,REDACTED,11/03/2020,"2,907.00",73506-DIRECT PAYMENT,LEARNING DISABILITY SUPPORT,Third Party Payments,Revenue
Walsall Council,http://opendatacommunities.org/id/metropolitan-district-council/walsall,WC114-513,31/03/2020,Resources and Transformation,AIREY CONSULTANCY SERVICES LTD,03/03/2020,650.00,63102-CONSULTANTS FEES - CORPORATE,REVENUES,Supplies & Services,Revenue
Walsall Council,http://opendatacommunities.org/id/metropolitan-district-council/walsall,WC114-514,31/03/2020,Childrens,ALASDAIR CANT & ASSOCIATES LIMITED,01/03/2020,"13,920.00",63000-PROFESSIONAL FEES AND SERVICES,GENERAL MANAGEMENT SUPPORT (INC LEGAL),Supplies & Services,Revenue
Walsall Council,http://opendatacommunities.org/id/metropolitan-district-council/walsall,WC114-515,31/03/2020,Economy & Environment,ALDERBROOK HEALTHCARE LTD,09/03/2020,"4,174.70",63000-PROFESSIONAL FEES AND SERVICES,CORONERS SERVICE,Supplies & Services,Revenue
Walsall Council,http://opendatacommunities.org/id/metropolitan-district-council/walsall,WC114-516,31/03/2020,Adult Social Care,ALDERGROVE MANOR LTD,26/03/2020,"1,972.24",73501-RESIDENTIAL EMI,PHYSICAL SUPPORT,Third Party Payments,Revenue
Walsall Council,http://opendatacommunities.org/id/metropolitan-district-council/walsall,WC114-517,31/03/2020,Adult Social Care,ALDERGROVE MANOR LTD,26/03/2020,"1,972.24",73501-RESIDENTIAL EMI,MENTAL HEALTH SUPPORT,Third Party Payments,Revenue
Walsall Council,http://opendatacommunities.org/id/metropolitan-district-council/walsall,WC114-518,31/03/2020,Adult Social Care,ALDERGROVE MANOR LTD,26/03/2020,"2,143.72",73502-NURSING,PHYSICAL SUPPORT,Third Party Payments,Revenue
Walsall Council,http://opendatacommunities.org/id/metropolitan-district-council/walsall,WC114-519,31/03/2020,Childrens,ALDRIDGE & BARONS LIMITED,27/03/2020,"-1,574.50",52000-WITH DRIVER-HIRE OF VEHICLES,HOME TO SCHOOL TRANSPORT,Transport,Revenue
Walsall Council,http://opendatacommunities.org/id/metropolitan-district-council/walsall,WC114-520,31/03/2020,Childrens,ALDRIDGE & BARONS LIMITED,27/03/2020,-520.38,52000-WITH DRIVER-HIRE OF VEHICLES,HOME TO SCHOOL TRANSPORT,Transport,Revenue
Walsall Council,http://opendatacommunities.org/id/metropolitan-district-council/walsall,WC114-521,31/03/2020,Childrens,ALDRIDGE & BARONS LIMITED,27/03/2020,-478.80,52000-WITH DRIVER-HIRE OF VEHICLES,HOME TO SCHOOL TRANSPORT,Transport,Revenue
Walsall Council,http://opendatacommunities.org/id/metropolitan-district-council/walsall,WC114-522,31/03/2020,Childrens,ALDRIDGE & BARONS LIMITED,27/03/2020,-471.40,52000-WITH DRIVER-HIRE OF VEHICLES,HOME TO SCHOOL TRANSPORT,Transport,Revenue
Walsall Council,http://opendatacommunities.org/id/metropolitan-district-council/walsall,WC114-523,31/03/2020,Childrens,ALDRIDGE & BARONS LIMITED,27/03/2020,-446.50,52000-WITH DRIVER-HIRE OF VEHICLES,HOME TO SCHOOL TRANSPORT,Transport,Revenue
Walsall Council,http://opendatacommunities.org/id/metropolitan-district-council/walsall,WC114-524,31/03/2020,Childrens,ALDRIDGE & BARONS LIMITED,27/03/2020,-445.90,52000-WITH DRIVER-HIRE OF VEHICLES,HOME TO SCHOOL TRANSPORT,Transport,Revenue
Walsall Council,http://opendatacommunities.org/id/metropolitan-district-council/walsall,WC114-525,31/03/2020,Childrens,ALDRIDGE & BARONS LIMITED,27/03/2020,-440.00,52000-WITH DRIVER-HIRE OF VEHICLES,HOME TO SCHOOL TRANSPORT,Transport,Revenue
Walsall Council,http://opendatacommunities.org/id/metropolitan-district-council/walsall,WC114-526,31/03/2020,Childrens,ALDRIDGE & BARONS LIMITED,27/03/2020,-400.80,52000-WITH DRIVER-HIRE OF VEHICLES,HOME TO SCHOOL TRANSPORT,Transport,Revenue
Walsall Council,http://opendatacommunities.org/id/metropolitan-district-council/walsall,WC114-527,31/03/2020,Childrens,ALDRIDGE & BARONS LIMITED,27/03/2020,-386.08,52000-WITH DRIVER-HIRE OF VEHICLES,HOME TO SCHOOL TRANSPORT,Transport,Revenue
Walsall Council,http://opendatacommunities.org/id/metropolitan-district-council/walsall,WC114-528,31/03/2020,Childrens,ALDRIDGE & BARONS LIMITED,27/03/2020,250.20,52000-WITH DRIVER-HIRE OF VEHICLES,HOME TO SCHOOL TRANSPORT,Transport,Revenue
Walsall Council,http://opendatacommunities.org/id/metropolitan-district-council/walsall,WC114-529,31/03/2020,Childrens,ALDRIDGE & BARONS LIMITED,27/03/2020,266.80,52000-WITH DRIVER-HIRE OF VEHICLES,HOME TO SCHOOL TRANSPORT,Transport,Revenue
Walsall Council,http://opendatacommunities.org/id/metropolitan-district-council/walsall,WC114-530,31/03/2020,Childrens,ALDRIDGE & BARONS LIMITED,27/03/2020,266.80,52000-WITH DRIVER-HIRE OF VEHICLES,HOME TO SCHOOL TRANSPORT,Transport,Revenue
Walsall Council,http://opendatacommunities.org/id/metropolitan-district-council/walsall,WC114-531,31/03/2020,Childrens,ALDRIDGE & BARONS LIMITED,27/03/2020,266.80,52000-WITH DRIVER-HIRE OF VEHICLES,HOME TO SCHOOL TRANSPORT,Transport,Revenue
Walsall Council,http://opendatacommunities.org/id/metropolitan-district-council/walsall,WC114-532,31/03/2020,Childrens,ALDRIDGE & BARONS LIMITED,27/03/2020,266.80,52000-WITH DRIVER-HIRE OF VEHICLES,HOME TO SCHOOL TRANSPORT,Transport,Revenue
Walsall Council,http://opendatacommunities.org/id/metropolitan-district-council/walsall,WC114-533,31/03/2020,Childrens,ALDRIDGE & BARONS LIMITED,27/03/2020,266.80,52000-WITH DRIVER-HIRE OF VEHICLES,HOME TO SCHOOL TRANSPORT,Transport,Revenue
Walsall Council,http://opendatacommunities.org/id/metropolitan-district-council/walsall,WC114-534,31/03/2020,Childrens,ALDRIDGE & BARONS LIMITED,27/03/2020,266.80,52000-WITH DRIVER-HIRE OF VEHICLES,HOME TO SCHOOL TRANSPORT,Transport,Revenue
Walsall Council,http://opendatacommunities.org/id/metropolitan-district-council/walsall,WC114-535,31/03/2020,Childrens,ALDRIDGE & BARONS LIMITED,27/03/2020,291.60,52000-WITH DRIVER-HIRE OF VEHICLES,HOME TO SCHOOL TRANSPORT,Transport,Revenue
Walsall Council,http://opendatacommunities.org/id/metropolitan-district-council/walsall,WC114-536,31/03/2020,Childrens,ALDRIDGE & BARONS LIMITED,27/03/2020,297.20,52000-WITH DRIVER-HIRE OF VEHICLES,HOME TO SCHOOL TRANSPORT,Transport,Revenue
Walsall Council,http://opendatacommunities.org/id/metropolitan-district-council/walsall,WC114-537,31/03/2020,Childrens,ALDRIDGE & BARONS LIMITED,27/03/2020,297.20,52000-WITH DRIVER-HIRE OF VEHICLES,HOME TO SCHOOL TRANSPORT,Transport,Revenue
Walsall Council,http://opendatacommunities.org/id/metropolitan-district-council/walsall,WC114-538,31/03/2020,Childrens,ALDRIDGE & BARONS LIMITED,27/03/2020,297.20,52000-WITH DRIVER-HIRE OF VEHICLES,HOME TO SCHOOL TRANSPORT,Transport,Revenue
Walsall Council,http://opendatacommunities.org/id/metropolitan-district-council/walsall,WC114-539,31/03/2020,Childrens,ALDRIDGE & BARONS LIMITED,27/03/2020,297.20,52000-WITH DRIVER-HIRE OF VEHICLES,HOME TO SCHOOL TRANSPORT,Transport,Revenue
Walsall Council,http://opendatacommunities.org/id/metropolitan-district-council/walsall,WC114-540,31/03/2020,Childrens,ALDRIDGE & BARONS LIMITED,27/03/2020,297.20,52000-WITH DRIVER-HIRE OF VEHICLES,HOME TO SCHOOL TRANSPORT,Transport,Revenue
Walsall Council,http://opendatacommunities.org/id/metropolitan-district-council/walsall,WC114-541,31/03/2020,Childrens,ALDRIDGE & BARONS LIMITED,27/03/2020,297.20,52000-WITH DRIVER-HIRE OF VEHICLES,HOME TO SCHOOL TRANSPORT,Transport,Revenue
Walsall Council,http://opendatacommunities.org/id/metropolitan-district-council/walsall,WC114-542,31/03/2020,Childrens,ALDRIDGE & BARONS LIMITED,27/03/2020,297.20,52000-WITH DRIVER-HIRE OF VEHICLES,HOME TO SCHOOL TRANSPORT,Transport,Revenue
Walsall Council,http://opendatacommunities.org/id/metropolitan-district-council/walsall,WC114-543,31/03/2020,Childrens,ALDRIDGE & BARONS LIMITED,27/03/2020,310.80,52000-WITH DRIVER-HIRE OF VEHICLES,HOME TO SCHOOL TRANSPORT,Transport,Revenue
Walsall Council,http://opendatacommunities.org/id/metropolitan-district-council/walsall,WC114-544,31/03/2020,Childrens,ALDRIDGE & BARONS LIMITED,27/03/2020,310.80,52000-WITH DRIVER-HIRE OF VEHICLES,HOME TO SCHOOL TRANSPORT,Transport,Revenue
Walsall Council,http://opendatacommunities.org/id/metropolitan-district-council/walsall,WC114-545,31/03/2020,Childrens,ALDRIDGE & BARONS LIMITED,27/03/2020,310.80,52000-WITH DRIVER-HIRE OF VEHICLES,HOME TO SCHOOL TRANSPORT,Transport,Revenue
Walsall Council,http://opendatacommunities.org/id/metropolitan-district-council/walsall,WC114-546,31/03/2020,Childrens,ALDRIDGE & BARONS LIMITED,27/03/2020,320.00,52000-WITH DRIVER-HIRE OF VEHICLES,HOME TO SCHOOL TRANSPORT,Transport,Revenue
Walsall Council,http://opendatacommunities.org/id/metropolitan-district-council/walsall,WC114-547,31/03/2020,Childrens,ALDRIDGE & BARONS LIMITED,27/03/2020,320.00,52000-WITH DRIVER-HIRE OF VEHICLES,HOME TO SCHOOL TRANSPORT,Transport,Revenue
Walsall Council,http://opendatacommunities.org/id/metropolitan-district-council/walsall,WC114-548,31/03/2020,Childrens,ALDRIDGE & BARONS LIMITED,27/03/2020,320.00,52000-WITH DRIVER-HIRE OF VEHICLES,HOME TO SCHOOL TRANSPORT,Transport,Revenue
Walsall Council,http://opendatacommunities.org/id/metropolitan-district-council/walsall,WC114-549,31/03/2020,Childrens,ALDRIDGE & BARONS LIMITED,27/03/2020,320.00,52000-WITH DRIVER-HIRE OF VEHICLES,HOME TO SCHOOL TRANSPORT,Transport,Revenue
Walsall Council,http://opendatacommunities.org/id/metropolitan-district-council/walsall,WC114-550,31/03/2020,Childrens,ALDRIDGE & BARONS LIMITED,27/03/2020,331.60,52000-WITH DRIVER-HIRE OF VEHICLES,HOME TO SCHOOL TRANSPORT,Transport,Revenue
Walsall Council,http://opendatacommunities.org/id/metropolitan-district-council/walsall,WC114-551,31/03/2020,Childrens,ALDRIDGE & BARONS LIMITED,27/03/2020,331.60,52000-WITH DRIVER-HIRE OF VEHICLES,HOME TO SCHOOL TRANSPORT,Transport,Revenue
Walsall Council,http://opendatacommunities.org/id/metropolitan-district-council/walsall,WC114-552,31/03/2020,Childrens,ALDRIDGE & BARONS LIMITED,27/03/2020,331.60,52000-WITH DRIVER-HIRE OF VEHICLES,HOME TO SCHOOL TRANSPORT,Transport,Revenue
Walsall Council,http://opendatacommunities.org/id/metropolitan-district-council/walsall,WC114-553,31/03/2020,Childrens,ALDRIDGE & BARONS LIMITED,27/03/2020,331.60,52000-WITH DRIVER-HIRE OF VEHICLES,HOME TO SCHOOL TRANSPORT,Transport,Revenue
Walsall Council,http://opendatacommunities.org/id/metropolitan-district-council/walsall,WC114-554,31/03/2020,Childrens,ALDRIDGE & BARONS LIMITED,27/03/2020,344.00,52000-WITH DRIVER-HIRE OF VEHICLES,HOME TO SCHOOL TRANSPORT,Transport,Revenue
Walsall Council,http://opendatacommunities.org/id/metropolitan-district-council/walsall,WC114-555,31/03/2020,Childrens,ALDRIDGE & BARONS LIMITED,27/03/2020,344.00,52000-WITH DRIVER-HIRE OF VEHICLES,HOME TO SCHOOL TRANSPORT,Transport,Revenue
Walsall Council,http://opendatacommunities.org/id/metropolitan-district-council/walsall,WC114-556,31/03/2020,Childrens,ALDRIDGE & BARONS LIMITED,27/03/2020,344.00,52000-WITH DRIVER-HIRE OF VEHICLES,HOME TO SCHOOL TRANSPORT,Transport,Revenue
Walsall Council,http://opendatacommunities.org/id/metropolitan-district-council/walsall,WC114-557,31/03/2020,Childrens,ALDRIDGE & BARONS LIMITED,27/03/2020,344.00,52000-WITH DRIVER-HIRE OF VEHICLES,HOME TO SCHOOL TRANSPORT,Transport,Revenue
Walsall Council,http://opendatacommunities.org/id/metropolitan-district-council/walsall,WC114-558,31/03/2020,Childrens,ALDRIDGE & BARONS LIMITED,27/03/2020,352.80,52000-WITH DRIVER-HIRE OF VEHICLES,HOME TO SCHOOL TRANSPORT,Transport,Revenue
Walsall Council,http://opendatacommunities.org/id/metropolitan-district-council/walsall,WC114-559,31/03/2020,Childrens,ALDRIDGE & BARONS LIMITED,27/03/2020,356.00,52000-WITH DRIVER-HIRE OF VEHICLES,HOME TO SCHOOL TRANSPORT,Transport,Revenue
Walsall Council,http://opendatacommunities.org/id/metropolitan-district-council/walsall,WC114-560,31/03/2020,Childrens,ALDRIDGE & BARONS LIMITED,27/03/2020,356.00,52000-WITH DRIVER-HIRE OF VEHICLES,HOME TO SCHOOL TRANSPORT,Transport,Revenue
Walsall Council,http://opendatacommunities.org/id/metropolitan-district-council/walsall,WC114-561,31/03/2020,Childrens,ALDRIDGE & BARONS LIMITED,27/03/2020,356.00,52000-WITH DRIVER-HIRE OF VEHICLES,HOME TO SCHOOL TRANSPORT,Transport,Revenue
Walsall Council,http://opendatacommunities.org/id/metropolitan-district-council/walsall,WC114-562,31/03/2020,Childrens,ALDRIDGE & BARONS LIMITED,27/03/2020,356.00,52000-WITH DRIVER-HIRE OF VEHICLES,HOME TO SCHOOL TRANSPORT,Transport,Revenue
Walsall Council,http://opendatacommunities.org/id/metropolitan-district-council/walsall,WC114-563,31/03/2020,Childrens,ALDRIDGE & BARONS LIMITED,27/03/2020,372.00,52000-WITH DRIVER-HIRE OF VEHICLES,HOME TO SCHOOL TRANSPORT,Transport,Revenue
Walsall Council,http://opendatacommunities.org/id/metropolitan-district-council/walsall,WC114-564,31/03/2020,Childrens,ALDRIDGE & BARONS LIMITED,27/03/2020,384.00,52000-WITH DRIVER-HIRE OF VEHICLES,HOME TO SCHOOL TRANSPORT,Transport,Revenue
Walsall Council,http://opendatacommunities.org/id/metropolitan-district-council/walsall,WC114-565,31/03/2020,Childrens,ALDRIDGE & BARONS LIMITED,27/03/2020,384.00,52000-WITH DRIVER-HIRE OF VEHICLES,HOME TO SCHOOL TRANSPORT,Transport,Revenue
Walsall Council,http://opendatacommunities.org/id/metropolitan-district-council/walsall,WC114-566,31/03/2020,Childrens,ALDRIDGE & BARONS LIMITED,27/03/2020,384.00,52000-WITH DRIVER-HIRE OF VEHICLES,HOME TO SCHOOL TRANSPORT,Transport,Revenue
Walsall Council,http://opendatacommunities.org/id/metropolitan-district-council/walsall,WC114-567,31/03/2020,Childrens,ALDRIDGE & BARONS LIMITED,27/03/2020,388.80,52000-WITH DRIVER-HIRE OF VEHICLES,HOME TO SCHOOL TRANSPORT,Transport,Revenue
Walsall Council,http://opendatacommunities.org/id/metropolitan-district-council/walsall,WC114-568,31/03/2020,Childrens,ALDRIDGE & BARONS LIMITED,27/03/2020,388.80,52000-WITH DRIVER-HIRE OF VEHICLES,HOME TO SCHOOL TRANSPORT,Transport,Revenue
Walsall Council,http://opendatacommunities.org/id/metropolitan-district-council/walsall,WC114-569,31/03/2020,Childrens,ALDRIDGE & BARONS LIMITED,27/03/2020,388.80,52000-WITH DRIVER-HIRE OF VEHICLES,HOME TO SCHOOL TRANSPORT,Transport,Revenue
Walsall Council,http://opendatacommunities.org/id/metropolitan-district-council/walsall,WC114-570,31/03/2020,Childrens,ALDRIDGE & BARONS LIMITED,27/03/2020,396.00,52000-WITH DRIVER-HIRE OF VEHICLES,HOME TO SCHOOL TRANSPORT,Transport,Revenue
Walsall Council,http://opendatacommunities.org/id/metropolitan-district-council/walsall,WC114-571,31/03/2020,Childrens,ALDRIDGE & BARONS LIMITED,27/03/2020,396.00,52000-WITH DRIVER-HIRE OF VEHICLES,HOME TO SCHOOL TRANSPORT,Transport,Revenue
Walsall Council,http://opendatacommunities.org/id/metropolitan-district-council/walsall,WC114-572,31/03/2020,Childrens,ALDRIDGE & BARONS LIMITED,27/03/2020,396.00,52000-WITH DRIVER-HIRE OF VEHICLES,HOME TO SCHOOL TRANSPORT,Transport,Revenue
Walsall Council,http://opendatacommunities.org/id/metropolitan-district-council/walsall,WC114-573,31/03/2020,Childrens,ALDRIDGE & BARONS LIMITED,27/03/2020,400.00,52000-WITH DRIVER-HIRE OF VEHICLES,HOME TO SCHOOL TRANSPORT,Transport,Revenue
Walsall Council,http://opendatacommunities.org/id/metropolitan-district-council/walsall,WC114-574,31/03/2020,Childrens,ALDRIDGE & BARONS LIMITED,27/03/2020,400.00,52000-WITH DRIVER-HIRE OF VEHICLES,HOME TO SCHOOL TRANSPORT,Transport,Revenue
Walsall Council,http://opendatacommunities.org/id/metropolitan-district-council/walsall,WC114-575,31/03/2020,Childrens,ALDRIDGE & BARONS LIMITED,27/03/2020,422.80,52000-WITH DRIVER-HIRE OF VEHICLES,HOME TO SCHOOL TRANSPORT,Transport,Revenue
Walsall Council,http://opendatacommunities.org/id/metropolitan-district-council/walsall,WC114-576,31/03/2020,Childrens,ALDRIDGE & BARONS LIMITED,27/03/2020,422.80,52000-WITH DRIVER-HIRE OF VEHICLES,HOME TO SCHOOL TRANSPORT,Transport,Revenue
Walsall Council,http://opendatacommunities.org/id/metropolitan-district-council/walsall,WC114-577,31/03/2020,Childrens,ALDRIDGE & BARONS LIMITED,27/03/2020,422.80,52000-WITH DRIVER-HIRE OF VEHICLES,HOME TO SCHOOL TRANSPORT,Transport,Revenue
Walsall Council,http://opendatacommunities.org/id/metropolitan-district-council/walsall,WC114-578,31/03/2020,Childrens,ALDRIDGE & BARONS LIMITED,27/03/2020,436.40,52000-WITH DRIVER-HIRE OF VEHICLES,HOME TO SCHOOL TRANSPORT,Transport,Revenue
Walsall Council,http://opendatacommunities.org/id/metropolitan-district-council/walsall,WC114-579,31/03/2020,Childrens,ALDRIDGE & BARONS LIMITED,27/03/2020,436.40,52000-WITH DRIVER-HIRE OF VEHICLES,HOME TO SCHOOL TRANSPORT,Transport,Revenue
Walsall Council,http://opendatacommunities.org/id/metropolitan-district-council/walsall,WC114-580,31/03/2020,Childrens,ALDRIDGE & BARONS LIMITED,27/03/2020,436.40,52000-WITH DRIVER-HIRE OF VEHICLES,HOME TO SCHOOL TRANSPORT,Transport,Revenue
Walsall Council,http://opendatacommunities.org/id/metropolitan-district-council/walsall,WC114-581,31/03/2020,Childrens,ALDRIDGE & BARONS LIMITED,27/03/2020,436.40,52000-WITH DRIVER-HIRE OF VEHICLES,HOME TO SCHOOL TRANSPORT,Transport,Revenue
Walsall Council,http://opendatacommunities.org/id/metropolitan-district-council/walsall,WC114-582,31/03/2020,Childrens,ALDRIDGE & BARONS LIMITED,27/03/2020,440.00,52000-WITH DRIVER-HIRE OF VEHICLES,HOME TO SCHOOL TRANSPORT,Transport,Revenue
Walsall Council,http://opendatacommunities.org/id/metropolitan-district-council/walsall,WC114-583,31/03/2020,Childrens,ALDRIDGE & BARONS LIMITED,27/03/2020,440.00,52000-WITH DRIVER-HIRE OF VEHICLES,HOME TO SCHOOL TRANSPORT,Transport,Revenue
Walsall Council,http://opendatacommunities.org/id/metropolitan-district-council/walsall,WC114-584,31/03/2020,Childrens,ALDRIDGE & BARONS LIMITED,27/03/2020,440.00,52000-WITH DRIVER-HIRE OF VEHICLES,HOME TO SCHOOL TRANSPORT,Transport,Revenue
Walsall Council,http://opendatacommunities.org/id/metropolitan-district-council/walsall,WC114-585,31/03/2020,Childrens,ALDRIDGE & BARONS LIMITED,27/03/2020,440.00,52000-WITH DRIVER-HIRE OF VEHICLES,HOME TO SCHOOL TRANSPORT,Transport,Revenue
Walsall Council,http://opendatacommunities.org/id/metropolitan-district-council/walsall,WC114-586,31/03/2020,Childrens,ALDRIDGE & BARONS LIMITED,27/03/2020,442.70,52000-WITH DRIVER-HIRE OF VEHICLES,HOME TO SCHOOL TRANSPORT,Transport,Revenue
Walsall Council,http://opendatacommunities.org/id/metropolitan-district-council/walsall,WC114-587,31/03/2020,Childrens,ALDRIDGE & BARONS LIMITED,27/03/2020,465.00,52000-WITH DRIVER-HIRE OF VEHICLES,HOME TO SCHOOL TRANSPORT,Transport,Revenue
Walsall Council,http://opendatacommunities.org/id/metropolitan-district-council/walsall,WC114-588,31/03/2020,Childrens,ALDRIDGE & BARONS LIMITED,27/03/2020,470.00,52000-WITH DRIVER-HIRE OF VEHICLES,HOME TO SCHOOL TRANSPORT,Transport,Revenue
Walsall Council,http://opendatacommunities.org/id/metropolitan-district-council/walsall,WC114-589,31/03/2020,Childrens,ALDRIDGE & BARONS LIMITED,27/03/2020,470.00,52000-WITH DRIVER-HIRE OF VEHICLES,HOME TO SCHOOL TRANSPORT,Transport,Revenue
Walsall Council,http://opendatacommunities.org/id/metropolitan-district-council/walsall,WC114-590,31/03/2020,Childrens,ALDRIDGE & BARONS LIMITED,27/03/2020,470.00,52000-WITH DRIVER-HIRE OF VEHICLES,HOME TO SCHOOL TRANSPORT,Transport,Revenue
Walsall Council,http://opendatacommunities.org/id/metropolitan-district-council/walsall,WC114-591,31/03/2020,Childrens,ALDRIDGE & BARONS LIMITED,27/03/2020,470.40,52000-WITH DRIVER-HIRE OF VEHICLES,HOME TO SCHOOL TRANSPORT,Transport,Revenue
Walsall Council,http://opendatacommunities.org/id/metropolitan-district-council/walsall,WC114-592,31/03/2020,Childrens,ALDRIDGE & BARONS LIMITED,27/03/2020,470.40,52000-WITH DRIVER-HIRE OF VEHICLES,HOME TO SCHOOL TRANSPORT,Transport,Revenue
Walsall Council,http://opendatacommunities.org/id/metropolitan-district-council/walsall,WC114-593,31/03/2020,Childrens,ALDRIDGE & BARONS LIMITED,27/03/2020,470.40,52000-WITH DRIVER-HIRE OF VEHICLES,HOME TO SCHOOL TRANSPORT,Transport,Revenue
Walsall Council,http://opendatacommunities.org/id/metropolitan-district-council/walsall,WC114-594,31/03/2020,Childrens,ALDRIDGE & BARONS LIMITED,27/03/2020,472.64,52000-WITH DRIVER-HIRE OF VEHICLES,HOME TO SCHOOL TRANSPORT,Transport,Revenue
Walsall Council,http://opendatacommunities.org/id/metropolitan-district-council/walsall,WC114-595,31/03/2020,Childrens,ALDRIDGE & BARONS LIMITED,27/03/2020,478.80,52000-WITH DRIVER-HIRE OF VEHICLES,HOME TO SCHOOL TRANSPORT,Transport,Revenue
Walsall Council,http://opendatacommunities.org/id/metropolitan-district-council/walsall,WC114-596,31/03/2020,Childrens,ALDRIDGE & BARONS LIMITED,27/03/2020,478.80,52000-WITH DRIVER-HIRE OF VEHICLES,HOME TO SCHOOL TRANSPORT,Transport,Revenue
Walsall Council,http://opendatacommunities.org/id/metropolitan-district-council/walsall,WC114-597,31/03/2020,Childrens,ALDRIDGE & BARONS LIMITED,27/03/2020,478.80,52000-WITH DRIVER-HIRE OF VEHICLES,HOME TO SCHOOL TRANSPORT,Transport,Revenue
Walsall Council,http://opendatacommunities.org/id/metropolitan-district-council/walsall,WC114-598,31/03/2020,Childrens,ALDRIDGE & BARONS LIMITED,27/03/2020,478.80,52000-WITH DRIVER-HIRE OF VEHICLES,HOME TO SCHOOL TRANSPORT,Transport,Revenue
Walsall Council,http://opendatacommunities.org/id/metropolitan-district-council/walsall,WC114-599,31/03/2020,Childrens,ALDRIDGE & BARONS LIMITED,27/03/2020,533.60,52000-WITH DRIVER-HIRE OF VEHICLES,HOME TO SCHOOL TRANSPORT,Transport,Revenue
Walsall Council,http://opendatacommunities.org/id/metropolitan-district-council/walsall,WC114-600,31/03/2020,Childrens,ALDRIDGE & BARONS LIMITED,27/03/2020,533.60,52000-WITH DRIVER-HIRE OF VEHICLES,HOME TO SCHOOL TRANSPORT,Transport,Revenue
Walsall Council,http://opendatacommunities.org/id/metropolitan-district-council/walsall,WC114-601,31/03/2020,Childrens,ALDRIDGE & BARONS LIMITED,27/03/2020,533.60,52000-WITH DRIVER-HIRE OF VEHICLES,HOME TO SCHOOL TRANSPORT,Transport,Revenue
Walsall Council,http://opendatacommunities.org/id/metropolitan-district-council/walsall,WC114-602,31/03/2020,Childrens,ALDRIDGE & BARONS LIMITED,27/03/2020,533.60,52000-WITH DRIVER-HIRE OF VEHICLES,HOME TO SCHOOL TRANSPORT,Transport,Revenue
Walsall Council,http://opendatacommunities.org/id/metropolitan-district-council/walsall,WC114-603,31/03/2020,Childrens,ALDRIDGE & BARONS LIMITED,27/03/2020,553.56,52000-WITH DRIVER-HIRE OF VEHICLES,HOME TO SCHOOL TRANSPORT,Transport,Revenue
Walsall Council,http://opendatacommunities.org/id/metropolitan-district-council/walsall,WC114-604,31/03/2020,Childrens,ALDRIDGE & BARONS LIMITED,27/03/2020,630.60,52000-WITH DRIVER-HIRE OF VEHICLES,HOME TO SCHOOL TRANSPORT,Transport,Revenue
Walsall Council,http://opendatacommunities.org/id/metropolitan-district-council/walsall,WC114-605,31/03/2020,Childrens,ALDRIDGE & BARONS LIMITED,27/03/2020,632.00,52000-WITH DRIVER-HIRE OF VEHICLES,HOME TO SCHOOL TRANSPORT,Transport,Revenue
Walsall Council,http://opendatacommunities.org/id/metropolitan-district-council/walsall,WC114-606,31/03/2020,Childrens,ALDRIDGE & BARONS LIMITED,27/03/2020,830.96,52000-WITH DRIVER-HIRE OF VEHICLES,HOME TO SCHOOL TRANSPORT,Transport,Revenue
Walsall Council,http://opendatacommunities.org/id/metropolitan-district-council/walsall,WC114-607,31/03/2020,Childrens,ALDRIDGE & BARONS LIMITED,27/03/2020,891.20,52000-WITH DRIVER-HIRE OF VEHICLES,HOME TO SCHOOL TRANSPORT,Transport,Revenue
Walsall Council,http://opendatacommunities.org/id/metropolitan-district-council/walsall,WC114-608,31/03/2020,Childrens,ALDRIDGE & BARONS LIMITED,27/03/2020,891.20,52000-WITH DRIVER-HIRE OF VEHICLES,HOME TO SCHOOL TRANSPORT,Transport,Revenue
Walsall Council,http://opendatacommunities.org/id/metropolitan-district-council/walsall,WC114-609,31/03/2020,Childrens,ALDRIDGE & BARONS LIMITED,27/03/2020,965.20,52000-WITH DRIVER-HIRE OF VEHICLES,HOME TO SCHOOL TRANSPORT,Transport,Revenue
Walsall Council,http://opendatacommunities.org/id/metropolitan-district-council/walsall,WC114-610,31/03/2020,Childrens,ALDRIDGE & BARONS LIMITED,27/03/2020,"1,264.00",52000-WITH DRIVER-HIRE OF VEHICLES,HOME TO SCHOOL TRANSPORT,Transport,Revenue
Walsall Council,http://opendatacommunities.org/id/metropolitan-district-council/walsall,WC114-611,31/03/2020,Childrens,ALDRIDGE & BARONS LIMITED,27/03/2020,"1,328.10",52000-WITH DRIVER-HIRE OF VEHICLES,HOME TO SCHOOL TRANSPORT,Transport,Revenue
Walsall Council,http://opendatacommunities.org/id/metropolitan-district-council/walsall,WC114-612,31/03/2020,Childrens,ALDRIDGE & BARONS LIMITED,27/03/2020,"1,786.00",52000-WITH DRIVER-HIRE OF VEHICLES,HOME TO SCHOOL TRANSPORT,Transport,Revenue
Walsall Council,http://opendatacommunities.org/id/metropolitan-district-council/walsall,WC114-613,31/03/2020,Childrens,ALDRIDGE & BARONS LIMITED,27/03/2020,"1,885.20",52000-WITH DRIVER-HIRE OF VEHICLES,HOME TO SCHOOL TRANSPORT,Transport,Revenue
Walsall Council,http://opendatacommunities.org/id/metropolitan-district-council/walsall,WC114-614,31/03/2020,Economy & Environment,ALDRIDGE SHED,11/03/2020,"1,333.33",63253-PAYMENT TO CONTRACTOR,MENTAL HEALTH,Third Party Payments,Revenue
Walsall Council,http://opendatacommunities.org/id/metropolitan-district-council/walsall,WC114-615,31/03/2020,Adult Social Care,REDACTED,11/03/2020,"1,686.00",73506-DIRECT PAYMENT,PHYSICAL SUPPORT,Third Party Payments,Revenue
Walsall Council,http://opendatacommunities.org/id/metropolitan-district-council/walsall,WC114-616,31/03/2020,Adult Social Care,ALEXANDRA HOUSE CARE SERVICES LTD T/A STONEBRIDGE NURSING HOME,26/03/2020,"7,188.60",73500-RESIDENTIAL,LEARNING DISABILITY SUPPORT,Third Party Payments,Revenue
Walsall Council,http://opendatacommunities.org/id/metropolitan-district-council/walsall,WC114-617,31/03/2020,Adult Social Care,REDACTED,11/03/2020,"2,258.20",73506-DIRECT PAYMENT,PHYSICAL SUPPORT,Third Party Payments,Revenue
Walsall Council,http://opendatacommunities.org/id/metropolitan-district-council/walsall,WC114-618,31/03/2020,Adult Social Care,REDACTED,11/03/2020,"1,122.00",73506-DIRECT PAYMENT,PHYSICAL SUPPORT,Third Party Payments,Revenue
Walsall Council,http://opendatacommunities.org/id/metropolitan-district-council/walsall,WC114-619,31/03/2020,Adult Social Care,REDACTED,11/03/2020,"44,558.63",73506-DIRECT PAYMENT,LEARNING DISABILITY SUPPORT,Third Party Payments,Revenue
Walsall Council,http://opendatacommunities.org/id/metropolitan-district-council/walsall,WC114-620,31/03/2020,Adult Social Care,REDACTED,09/03/2020,"1,627.05",73510-SHARED LIVES,LEARNING DISABILITY SUPPORT,Third Party Payments,Revenue
Walsall Council,http://opendatacommunities.org/id/metropolitan-district-council/walsall,WC114-621,31/03/2020,Childrens,REDACTED,09/03/2020,312.24,74509-SPECIAL GUARDIANSHIP ORDERS,ADOPTION ALLOWANCES,Transfer Payments,Revenue
Walsall Council,http://opendatacommunities.org/id/metropolitan-district-council/walsall,WC114-622,31/03/2020,Adult Social Care,REDACTED,11/03/2020,"2,007.60",73506-DIRECT PAYMENT,SOCIAL SUPPORT,Third Party Payments,Revenue
Walsall Council,http://opendatacommunities.org/id/metropolitan-district-council/walsall,WC114-623,31/03/2020,Economy & Environment,ALLAN HADDOW LTD,16/03/2020,403.00,30030-EXTERNAL TRAINING,FLEET,Employees,Revenue
Walsall Council,http://opendatacommunities.org/id/metropolitan-district-council/walsall,WC114-624,31/03/2020,Economy & Environment,ALLAN HADDOW LTD,16/03/2020,"1,460.00",30030-EXTERNAL TRAINING,FLEET,Employees,Revenue
Walsall Council,http://opendatacommunities.org/id/metropolitan-district-council/walsall,WC114-625,31/03/2020,Adult Social Care,ALLIED PUBLICITY SERVICES (MANCHESTER) LIMITED T/A APS GROUP,13/03/2020,"1,162.57",63000-PROFESSIONAL FEES AND SERVICES,BLUE BADGES,Supplies & Services,Revenue
Walsall Council,http://opendatacommunities.org/id/metropolitan-district-council/walsall,WC114-626,31/03/2020,Adult Social Care,ALLIED PUBLICITY SERVICES (MANCHESTER) LIMITED T/A APS GROUP,13/03/2020,"1,199.50",63000-PROFESSIONAL FEES AND SERVICES,BLUE BADGES,Supplies & Services,Revenue
Walsall Council,http://opendatacommunities.org/id/metropolitan-district-council/walsall,WC114-627,31/03/2020,Adult Social Care,ALLSORTS OFFICE SUPPLIES LTD,31/03/2020,627.20,60000-FURNITURE & EQUIPMENT,"STRATEGY,COMMISSIONING AND DELIVERY SUPPORT",Supplies & Services,Revenue
Walsall Council,http://opendatacommunities.org/id/metropolitan-district-council/walsall,WC114-628,31/03/2020,Resources and Transformation,ALLSORTS OFFICE SUPPLIES LTD,01/03/2020,"1,365.00",63800-COMPUTER EQUIPMENT AND SUPPLIES,RECHARGEABLE EQUIPMENT,Supplies & Services,Revenue
Walsall Council,http://opendatacommunities.org/id/metropolitan-district-council/walsall,WC114-629,31/03/2020,Resources and Transformation,ALLSORTS OFFICE SUPPLIES LTD,19/03/2020,"3,518.50",63800-COMPUTER EQUIPMENT AND SUPPLIES,RECHARGEABLE EQUIPMENT,Supplies & Services,Revenue
Walsall Council,http://opendatacommunities.org/id/metropolitan-district-council/walsall,WC114-630,31/03/2020,Adult Social Care,ALMA COURT,20/03/2020,"4,680.00",73502-NURSING,PHYSICAL SUPPORT,Third Party Payments,Revenue
Walsall Council,http://opendatacommunities.org/id/metropolitan-district-council/walsall,WC114-631,31/03/2020,Adult Social Care,ALMA COURT,26/03/2020,"5,600.00",73500-RESIDENTIAL,PHYSICAL SUPPORT,Third Party Payments,Revenue
Walsall Council,http://opendatacommunities.org/id/metropolitan-district-council/walsall,WC114-632,31/03/2020,Adult Social Care,ALMA COURT,17/03/2020,"5,828.57",73025-PROFESSIONAL SERVICES-PRIV CONTRACTOR & OTHER AGENCIES,INTERMEDIATE CARE SERVICE,Third Party Payments,Revenue
Walsall Council,http://opendatacommunities.org/id/metropolitan-district-council/walsall,WC114-633,31/03/2020,Adult Social Care,ALMA COURT,26/03/2020,"5,939.20",73503-NURSING EMI,PHYSICAL SUPPORT,Third Party Payments,Revenue
Walsall Council,http://opendatacommunities.org/id/metropolitan-district-council/walsall,WC114-634,31/03/2020,Adult Social Care,ALMA COURT,26/03/2020,"6,400.00",73500-RESIDENTIAL,MENTAL HEALTH SUPPORT,Third Party Payments,Revenue
Walsall Council,http://opendatacommunities.org/id/metropolitan-district-council/walsall,WC114-635,31/03/2020,Adult Social Care,ALMA COURT,20/03/2020,"20,200.00",73500-RESIDENTIAL,PHYSICAL SUPPORT,Third Party Payments,Revenue
Walsall Council,http://opendatacommunities.org/id/metropolitan-district-council/walsall,WC114-636,31/03/2020,Childrens,ALMOZENE NURSERY & CHILDRENS CENTRE,31/03/2020,437.25,77300-ISB-FORMULA ALLOCATION,EARLY YEARS - PUPIL PREMIUM,Transfer Payments,Revenue
Walsall Council,http://opendatacommunities.org/id/metropolitan-district-council/walsall,WC114-637,31/03/2020,Adult Social Care,ALPHA HEALTH CARE LTD,26/03/2020,"-6,973.28",73501-RESIDENTIAL EMI,PHYSICAL SUPPORT,Third Party Payments,Revenue
Walsall Council,http://opendatacommunities.org/id/metropolitan-district-council/walsall,WC114-638,31/03/2020,Adult Social Care,ALPHA HEALTH CARE LTD,16/03/2020,750.00,73025-PROFESSIONAL SERVICES-PRIV CONTRACTOR & OTHER AGENCIES,TRANSITIONAL CARE SUPPORT TEAM,Third Party Payments,Revenue
Walsall Council,http://opendatacommunities.org/id/metropolitan-district-council/walsall,WC114-639,31/03/2020,Adult Social Care,ALPHA HEALTH CARE LTD,26/03/2020,"1,774.96",73500-RESIDENTIAL,MENTAL HEALTH SUPPORT,Third Party Payments,Revenue
Walsall Council,http://opendatacommunities.org/id/metropolitan-district-council/walsall,WC114-640,31/03/2020,Adult Social Care,ALPHA HEALTH CARE LTD,26/03/2020,"1,994.40",73501-RESIDENTIAL EMI,PHYSICAL SUPPORT,Third Party Payments,Revenue
Walsall Council,http://opendatacommunities.org/id/metropolitan-district-council/walsall,WC114-641,31/03/2020,Adult Social Care,ALPHA HEALTH CARE LTD,26/03/2020,"2,143.72",73502-NURSING,PHYSICAL SUPPORT,Third Party Payments,Revenue
Walsall Council,http://opendatacommunities.org/id/metropolitan-district-council/walsall,WC114-642,31/03/2020,Adult Social Care,ALPHA HEALTH CARE LTD,26/03/2020,"2,255.72",73501-RESIDENTIAL EMI,SUPPORT WITH MEMORY & COGNITION,Third Party Payments,Revenue
Walsall Council,http://opendatacommunities.org/id/metropolitan-district-council/walsall,WC114-643,31/03/2020,Adult Social Care,ALPHA HEALTH CARE LTD,26/03/2020,"2,358.08",73503-NURSING EMI,MENTAL HEALTH SUPPORT,Third Party Payments,Revenue
Walsall Council,http://opendatacommunities.org/id/metropolitan-district-council/walsall,WC114-644,31/03/2020,Adult Social Care,ALPHA HEALTH CARE LTD,26/03/2020,"2,358.08",73503-NURSING EMI,MENTAL HEALTH SUPPORT,Third Party Payments,Revenue
Walsall Council,http://opendatacommunities.org/id/metropolitan-district-council/walsall,WC114-645,31/03/2020,Adult Social Care,ALPHA HEALTH CARE LTD,26/03/2020,"2,358.08",73503-NURSING EMI,PHYSICAL SUPPORT,Third Party Payments,Revenue
Walsall Council,http://opendatacommunities.org/id/metropolitan-district-council/walsall,WC114-646,31/03/2020,Adult Social Care,ALPHA HEALTH CARE LTD,26/03/2020,"2,495.72",73501-RESIDENTIAL EMI,MENTAL HEALTH SUPPORT,Third Party Payments,Revenue
Walsall Council,http://opendatacommunities.org/id/metropolitan-district-council/walsall,WC114-647,31/03/2020,Adult Social Care,ALPHA HEALTH CARE LTD,26/03/2020,"2,558.08",73503-NURSING EMI,PHYSICAL SUPPORT,Third Party Payments,Revenue
Walsall Council,http://opendatacommunities.org/id/metropolitan-district-council/walsall,WC114-648,31/03/2020,Adult Social Care,ALPHA HEALTH CARE LTD,26/03/2020,"2,837.76",73503-NURSING EMI,SUPPORT WITH MEMORY & COGNITION,Third Party Payments,Revenue
Walsall Council,http://opendatacommunities.org/id/metropolitan-district-council/walsall,WC114-649,31/03/2020,Adult Social Care,ALPHA HEALTH CARE LTD,26/03/2020,"2,881.80",73503-NURSING EMI,MENTAL HEALTH SUPPORT,Third Party Payments,Revenue
Walsall Council,http://opendatacommunities.org/id/metropolitan-district-council/walsall,WC114-650,31/03/2020,Adult Social Care,ALPHA HEALTH CARE LTD,26/03/2020,"2,881.80",73503-NURSING EMI,MENTAL HEALTH SUPPORT,Third Party Payments,Revenue
Walsall Council,http://opendatacommunities.org/id/metropolitan-district-council/walsall,WC114-651,31/03/2020,Adult Social Care,ALPHA HEALTH CARE LTD,26/03/2020,"2,881.80",73503-NURSING EMI,PHYSICAL SUPPORT,Third Party Payments,Revenue
Walsall Council,http://opendatacommunities.org/id/metropolitan-district-council/walsall,WC114-652,31/03/2020,Adult Social Care,ALPHA HEALTH CARE LTD,26/03/2020,"2,881.84",73503-NURSING EMI,PHYSICAL SUPPORT,Third Party Payments,Revenue
Walsall Council,http://opendatacommunities.org/id/metropolitan-district-council/walsall,WC114-653,31/03/2020,Adult Social Care,ALPHA HEALTH CARE LTD,26/03/2020,"2,937.76",73503-NURSING EMI,SOCIAL SUPPORT,Third Party Payments,Revenue
Walsall Council,http://opendatacommunities.org/id/metropolitan-district-council/walsall,WC114-654,31/03/2020,Adult Social Care,ALPHA HEALTH CARE LTD,26/03/2020,"2,937.88",73503-NURSING EMI,PHYSICAL SUPPORT,Third Party Payments,Revenue
Walsall Council,http://opendatacommunities.org/id/metropolitan-district-council/walsall,WC114-655,31/03/2020,Adult Social Care,ALPHA HEALTH CARE LTD,26/03/2020,"3,035.72",73501-RESIDENTIAL EMI,PHYSICAL SUPPORT,Third Party Payments,Revenue
Walsall Council,http://opendatacommunities.org/id/metropolitan-district-council/walsall,WC114-656,31/03/2020,Adult Social Care,ALPHA HEALTH CARE LTD,26/03/2020,"3,290.36",73503-NURSING EMI,PHYSICAL SUPPORT,Third Party Payments,Revenue
Walsall Council,http://opendatacommunities.org/id/metropolitan-district-council/walsall,WC114-657,31/03/2020,Adult Social Care,ALPHA HEALTH CARE LTD,26/03/2020,"3,854.54",73503-NURSING EMI,PHYSICAL SUPPORT,Third Party Payments,Revenue
Walsall Council,http://opendatacommunities.org/id/metropolitan-district-council/walsall,WC114-658,31/03/2020,Childrens,ALPHA TRAINING ACADEMY UK LTD,01/03/2020,"-1,120.00",63000-PROFESSIONAL FEES AND SERVICES,VIRTUAL SCHOOL CENTRAL PUPIL PREMIUM,Supplies & Services,Revenue
Walsall Council,http://opendatacommunities.org/id/metropolitan-district-council/walsall,WC114-659,31/03/2020,Childrens,ALPHA TRAINING ACADEMY UK LTD,04/03/2020,750.00,60500-GENERAL MATERIALS,PUPIL REFERAL UNIT EXCLUSIONS,Supplies & Services,Revenue
Walsall Council,http://opendatacommunities.org/id/metropolitan-district-council/walsall,WC114-660,31/03/2020,Childrens,ALPHA TRAINING ACADEMY UK LTD,04/03/2020,"1,000.00",60500-GENERAL MATERIALS,PUPIL REFERAL UNIT EXCLUSIONS,Supplies & Services,Revenue
Walsall Council,http://opendatacommunities.org/id/metropolitan-district-council/walsall,WC114-661,31/03/2020,Childrens,ALPHA TRAINING ACADEMY UK LTD,02/03/2020,"1,120.00",63000-PROFESSIONAL FEES AND SERVICES,VIRTUAL SCHOOL CENTRAL PUPIL PREMIUM,Supplies & Services,Revenue
Walsall Council,http://opendatacommunities.org/id/metropolitan-district-council/walsall,WC114-662,31/03/2020,Childrens,ALPHABIOLABS,16/03/2020,214.75,73014-LEGAL FEES-PRIV CONTRACTOR FEES,GENERAL MANAGEMENT SUPPORT (INC LEGAL),Third Party Payments,Revenue
Walsall Council,http://opendatacommunities.org/id/metropolitan-district-council/walsall,WC114-663,31/03/2020,Childrens,ALPHABIOLABS,02/03/2020,431.00,73014-LEGAL FEES-PRIV CONTRACTOR FEES,GENERAL MANAGEMENT SUPPORT (INC LEGAL),Third Party Payments,Revenue
Walsall Council,http://opendatacommunities.org/id/metropolitan-district-council/walsall,WC114-664,31/03/2020,Childrens,REDACTED,10/03/2020,255.00,73506-DIRECT PAYMENT,FAMILY SUPPORT - DIRECT PAYMENTS,Third Party Payments,Revenue
Walsall Council,http://opendatacommunities.org/id/metropolitan-district-council/walsall,WC114-665,31/03/2020,Childrens,AMAH NURSERIES LIMITED T/A BANANA MOON WALSALL,31/03/2020,349.80,77300-ISB-FORMULA ALLOCATION,EARLY YEARS - PUPIL PREMIUM,Transfer Payments,Revenue
Walsall Council,http://opendatacommunities.org/id/metropolitan-district-council/walsall,WC114-666,31/03/2020,Childrens,AMAH NURSERIES LIMITED T/A BANANA MOON WALSALL,24/03/2020,717.75,66505-OTHER-GRANTS TO OTHER ORGS,EARLY YEARS - 3 YR OLDS,Third Party Payments,Revenue
Walsall Council,http://opendatacommunities.org/id/metropolitan-district-council/walsall,WC114-667,31/03/2020,Childrens,REDACTED,09/03/2020,318.08,74510-RESIDENTS ORDERS,ADOPTION ALLOWANCES,Third Party Payments,Revenue
Walsall Council,http://opendatacommunities.org/id/metropolitan-district-council/walsall,WC114-668,31/03/2020,Childrens,REDACTED,09/03/2020,370.28,74510-RESIDENTS ORDERS,ADOPTION ALLOWANCES,Third Party Payments,Revenue
Walsall Council,http://opendatacommunities.org/id/metropolitan-district-council/walsall,WC114-669,31/03/2020,Adult Social Care,REDACTED,11/03/2020,"1,893.75",73506-DIRECT PAYMENT,LEARNING DISABILITY SUPPORT,Third Party Payments,Revenue
Walsall Council,http://opendatacommunities.org/id/metropolitan-district-council/walsall,WC114-670,31/03/2020,Childrens,REDACTED,09/03/2020,808.04,74009-ADOPTION ALLOWANCE,ADOPTION ALLOWANCES,Transfer Payments,Revenue
Walsall Council,http://opendatacommunities.org/id/metropolitan-district-council/walsall,WC114-671,31/03/2020,Childrens,REDACTED,20/03/2020,162.73,74506-TRAVEL-FOSTER CARERS,INTERNAL FOSTER CARE PROVISION,Transfer Payments,Revenue
Walsall Council,http://opendatacommunities.org/id/metropolitan-district-council/walsall,WC114-672,31/03/2020,Childrens,REDACTED,20/03/2020,600.00,74501-MAINTENANCE ALLOWANCE-FOSTER CARERS,INTERNAL FOSTER CARE PROVISION,Transfer Payments,Revenue
Walsall Council,http://opendatacommunities.org/id/metropolitan-district-council/walsall,WC114-673,31/03/2020,Childrens,REDACTED,20/03/2020,"1,000.00",74508-INTERNAL FOSTER CARERS-CARER FEES,INTERNAL FOSTER CARE PROVISION,Transfer Payments,Revenue
Walsall Council,http://opendatacommunities.org/id/metropolitan-district-council/walsall,WC114-674,31/03/2020,Resources and Transformation,AMANS TRAVEL LTD,09/03/2020,550.00,52000-WITH DRIVER-HIRE OF VEHICLES,INTEGRATED COMMUNITIES PROGRAMME,Transport,Revenue
Walsall Council,http://opendatacommunities.org/id/metropolitan-district-council/walsall,WC114-675,31/03/2020,Adult Social Care,REDACTED,11/03/2020,"1,268.10",73506-DIRECT PAYMENT,LEARNING DISABILITY SUPPORT,Third Party Payments,Revenue
Walsall Council,http://opendatacommunities.org/id/metropolitan-district-council/walsall,WC114-676,31/03/2020,Economy & Environment,AMEY LG LIMITED,23/03/2020,650.72,01006-SITE WORKS MAIN CONTRACTORS,CFR 1355 HIGHWAY EFFICIENCY MEASURES PROGRAMME,Capital,Capital
Walsall Council,http://opendatacommunities.org/id/metropolitan-district-council/walsall,WC114-677,31/03/2020,Economy & Environment,AMEY LG LIMITED,23/03/2020,855.10,01009-SITE WORKS - OTHER CONTRACTORS,CFR 1355 PROMOTION OF COMMUNITY HEALTH & SAFETY: SAFETY RELATED REQUESTS,Capital,Capital
Walsall Council,http://opendatacommunities.org/id/metropolitan-district-council/walsall,WC114-678,31/03/2020,Resources and Transformation,AMEY LG LIMITED,04/03/2020,"1,052.59",60006-NEW-FURNITURE & EQUIPMENT,CCTV,Supplies & Services,Revenue
Walsall Council,http://opendatacommunities.org/id/metropolitan-district-council/walsall,WC114-679,31/03/2020,Economy & Environment,AMEY LG LIMITED,23/03/2020,"1,424.50",73025-PROFESSIONAL SERVICES-PRIV CONTRACTOR & OTHER AGENCIES,TRAFFIC MANAGEMENT,Third Party Payments,Revenue
Walsall Council,http://opendatacommunities.org/id/metropolitan-district-council/walsall,WC114-680,31/03/2020,Economy & Environment,AMEY LG LIMITED,23/03/2020,"4,090.36",01009-SITE WORKS - OTHER CONTRACTORS,CFR 1281 SAFER ROUTES TO SCHOOL: BENTLEY WEST PHASE 2,Capital,Capital
Walsall Council,http://opendatacommunities.org/id/metropolitan-district-council/walsall,WC114-681,31/03/2020,Economy & Environment,AMEY LG LIMITED,23/03/2020,"7,155.93",01006-SITE WORKS MAIN CONTRACTORS,CFR 1355 HIGHWAY EFFICIENCY MEASURES PROGRAMME,Capital,Capital
Walsall Council,http://opendatacommunities.org/id/metropolitan-district-council/walsall,WC114-682,31/03/2020,Economy & Environment,AMEY LG LIMITED,23/03/2020,"8,251.86",01009-SITE WORKS - OTHER CONTRACTORS,CFR 1281 SAFER ROUTES TO SCHOOL: BENTLEY WEST PHASE 2,Capital,Capital
Walsall Council,http://opendatacommunities.org/id/metropolitan-district-council/walsall,WC114-683,31/03/2020,Economy & Environment,AMEY LG LIMITED,18/03/2020,"8,774.24",01002-PROJECT FEES,CFR 1366 M6 J10 DESIGNATED FUNDS NMU ROUTE,Capital,Capital
Walsall Council,http://opendatacommunities.org/id/metropolitan-district-council/walsall,WC114-684,31/03/2020,Economy & Environment,AMEY LG LIMITED,13/03/2020,"10,464.34",73025-PROFESSIONAL SERVICES-PRIV CONTRACTOR & OTHER AGENCIES,TRAFFIC MANAGEMENT,Third Party Payments,Revenue
Walsall Council,http://opendatacommunities.org/id/metropolitan-district-council/walsall,WC114-685,31/03/2020,Economy & Environment,AMEY LG LIMITED,23/03/2020,"12,754.90",01009-SITE WORKS - OTHER CONTRACTORS,CFR 1355 PROMOTION OF COMMUNITY HEALTH & SAFETY: NETWORK PERFORMANCE MANAGEMENT,Capital,Capital
Walsall Council,http://opendatacommunities.org/id/metropolitan-district-council/walsall,WC114-686,31/03/2020,Economy & Environment,AMEY LG LIMITED,23/03/2020,"17,491.91",73025-PROFESSIONAL SERVICES-PRIV CONTRACTOR & OTHER AGENCIES,TRAFFIC MANAGEMENT,Third Party Payments,Revenue
Walsall Council,http://opendatacommunities.org/id/metropolitan-district-council/walsall,WC114-687,31/03/2020,Economy & Environment,AMEY LG LIMITED,23/03/2020,"18,213.05",01006-SITE WORKS MAIN CONTRACTORS,CFR 1355 MEASURE TO ENCOURAGE WALKING:UPGRADE OF ZEBRA CROSSING,Capital,Capital
Walsall Council,http://opendatacommunities.org/id/metropolitan-district-council/walsall,WC114-688,31/03/2020,Economy & Environment,AMEY LG LIMITED,18/03/2020,"31,811.15",01002-PROJECT FEES,CFR 1366 M6 J10 DESIGNATED FUNDS NMU ROUTE,Capital,Capital
Walsall Council,http://opendatacommunities.org/id/metropolitan-district-council/walsall,WC114-689,31/03/2020,Economy & Environment,AMEY LG LIMITED,23/03/2020,"107,213.66",60500-GENERAL MATERIALS,ROAD SAFETY & SUSTAINABLE TRAVEL,Supplies & Services,Revenue
Walsall Council,http://opendatacommunities.org/id/metropolitan-district-council/walsall,WC114-690,31/03/2020,Childrens,AMG NURSING CARE SERVICES,01/03/2020,"1,480.96",63000-PROFESSIONAL FEES AND SERVICES,DIRECTLY COMMISSIONED NURSING SERVICES,Supplies & Services,Revenue
Walsall Council,http://opendatacommunities.org/id/metropolitan-district-council/walsall,WC114-691,31/03/2020,Childrens,AMG NURSING CARE SERVICES,18/03/2020,"2,270.67",63000-PROFESSIONAL FEES AND SERVICES,DIRECTLY COMMISSIONED NURSING SERVICES,Supplies & Services,Revenue
Walsall Council,http://opendatacommunities.org/id/metropolitan-district-council/walsall,WC114-692,31/03/2020,Adult Social Care,AMG NURSING CARE SERVICES,30/03/2020,"3,640.00",73508-COMMUNITY SUPPORTED LIVING/SUPPORTED ACCOMMODATION,PHYSICAL SUPPORT,Third Party Payments,Revenue
Walsall Council,http://opendatacommunities.org/id/metropolitan-district-council/walsall,WC114-693,31/03/2020,Adult Social Care,AMG NURSING CARE SERVICES,03/03/2020,"10,711.67",73508-COMMUNITY SUPPORTED LIVING/SUPPORTED ACCOMMODATION,PHYSICAL SUPPORT,Third Party Payments,Revenue
Walsall Council,http://opendatacommunities.org/id/metropolitan-district-council/walsall,WC114-694,31/03/2020,Childrens,REDACTED,09/03/2020,360.00,74504-HOLIDAY/CHRISTMAS ALLOWANCE-FOSTER CARERS,FAMILY & FRIENDS FOSTER CARE PROVISION,Transfer Payments,Revenue
Walsall Council,http://opendatacommunities.org/id/metropolitan-district-council/walsall,WC114-695,31/03/2020,Childrens,REDACTED,09/03/2020,720.00,74501-MAINTENANCE ALLOWANCE-FOSTER CARERS,FAMILY & FRIENDS FOSTER CARE PROVISION,Transfer Payments,Revenue
Walsall Council,http://opendatacommunities.org/id/metropolitan-district-council/walsall,WC114-696,31/03/2020,Economy & Environment,AMX SOLUTIONS LIMITED,03/03/2020,"3,600.00",73025-PROFESSIONAL SERVICES-PRIV CONTRACTOR & OTHER AGENCIES,BRIDGE MAINTENANCE,Third Party Payments,Revenue
Walsall Council,http://opendatacommunities.org/id/metropolitan-district-council/walsall,WC114-697,31/03/2020,Childrens,REDACTED,09/03/2020,340.00,74508-INTERNAL FOSTER CARERS-CARER FEES,FAMILY & FRIENDS FOSTER CARE PROVISION,Transfer Payments,Revenue
Walsall Council,http://opendatacommunities.org/id/metropolitan-district-council/walsall,WC114-698,31/03/2020,Childrens,REDACTED,09/03/2020,600.00,74501-MAINTENANCE ALLOWANCE-FOSTER CARERS,FAMILY & FRIENDS FOSTER CARE PROVISION,Transfer Payments,Revenue
Walsall Council,http://opendatacommunities.org/id/metropolitan-district-council/walsall,WC114-699,31/03/2020,Childrens,REDACTED,09/03/2020,425.08,74510-RESIDENTS ORDERS,ADOPTION ALLOWANCES,Third Party Payments,Revenue
Walsall Council,http://opendatacommunities.org/id/metropolitan-district-council/walsall,WC114-700,31/03/2020,Adult Social Care,ANCHOR,26/03/2020,"1,774.96",73500-RESIDENTIAL,PHYSICAL SUPPORT,Third Party Payments,Revenue
Walsall Council,http://opendatacommunities.org/id/metropolitan-district-council/walsall,WC114-701,31/03/2020,Adult Social Care,ANCHOR,26/03/2020,"1,774.96",73500-RESIDENTIAL,PHYSICAL SUPPORT,Third Party Payments,Revenue
Walsall Council,http://opendatacommunities.org/id/metropolitan-district-council/walsall,WC114-702,31/03/2020,Adult Social Care,ANCHOR,26/03/2020,"1,774.96",73500-RESIDENTIAL,SUPPORT WITH MEMORY & COGNITION,Third Party Payments,Revenue
Walsall Council,http://opendatacommunities.org/id/metropolitan-district-council/walsall,WC114-703,31/03/2020,Adult Social Care,ANCHOR,26/03/2020,"1,774.96",73500-RESIDENTIAL,SUPPORT WITH MEMORY & COGNITION,Third Party Payments,Revenue
Walsall Council,http://opendatacommunities.org/id/metropolitan-district-council/walsall,WC114-704,31/03/2020,Adult Social Care,ANCHOR,26/03/2020,"1,832.48",73501-RESIDENTIAL EMI,PHYSICAL SUPPORT,Third Party Payments,Revenue
Walsall Council,http://opendatacommunities.org/id/metropolitan-district-council/walsall,WC114-705,31/03/2020,Adult Social Care,ANCHOR,26/03/2020,"1,926.12",73500-RESIDENTIAL,PHYSICAL SUPPORT,Third Party Payments,Revenue
Walsall Council,http://opendatacommunities.org/id/metropolitan-district-council/walsall,WC114-706,31/03/2020,Adult Social Care,ANCHOR,26/03/2020,"1,934.96",73500-RESIDENTIAL,PHYSICAL SUPPORT,Third Party Payments,Revenue
Walsall Council,http://opendatacommunities.org/id/metropolitan-district-council/walsall,WC114-707,31/03/2020,Adult Social Care,ANCHOR,26/03/2020,"1,935.72",73501-RESIDENTIAL EMI,PHYSICAL SUPPORT,Third Party Payments,Revenue
Walsall Council,http://opendatacommunities.org/id/metropolitan-district-council/walsall,WC114-708,31/03/2020,Adult Social Care,ANCHOR,26/03/2020,"1,972.24",73501-RESIDENTIAL EMI,SUPPORT WITH MEMORY & COGNITION,Third Party Payments,Revenue
Walsall Council,http://opendatacommunities.org/id/metropolitan-district-council/walsall,WC114-709,31/03/2020,Adult Social Care,ANCHOR,26/03/2020,"1,972.24",73501-RESIDENTIAL EMI,MENTAL HEALTH SUPPORT,Third Party Payments,Revenue
Walsall Council,http://opendatacommunities.org/id/metropolitan-district-council/walsall,WC114-710,31/03/2020,Adult Social Care,ANCHOR,26/03/2020,"1,972.24",73501-RESIDENTIAL EMI,PHYSICAL SUPPORT,Third Party Payments,Revenue
Walsall Council,http://opendatacommunities.org/id/metropolitan-district-council/walsall,WC114-711,31/03/2020,Adult Social Care,ANCHOR,26/03/2020,"1,972.24",73501-RESIDENTIAL EMI,MENTAL HEALTH SUPPORT,Third Party Payments,Revenue
Walsall Council,http://opendatacommunities.org/id/metropolitan-district-council/walsall,WC114-712,31/03/2020,Adult Social Care,ANCHOR,26/03/2020,"1,972.24",73501-RESIDENTIAL EMI,MENTAL HEALTH SUPPORT,Third Party Payments,Revenue
Walsall Council,http://opendatacommunities.org/id/metropolitan-district-council/walsall,WC114-713,31/03/2020,Adult Social Care,ANCHOR,26/03/2020,"1,972.24",73501-RESIDENTIAL EMI,MENTAL HEALTH SUPPORT,Third Party Payments,Revenue
Walsall Council,http://opendatacommunities.org/id/metropolitan-district-council/walsall,WC114-714,31/03/2020,Adult Social Care,ANCHOR,26/03/2020,"1,972.24",73501-RESIDENTIAL EMI,PHYSICAL SUPPORT,Third Party Payments,Revenue
Walsall Council,http://opendatacommunities.org/id/metropolitan-district-council/walsall,WC114-715,31/03/2020,Adult Social Care,ANCHOR,26/03/2020,"1,972.24",73501-RESIDENTIAL EMI,PHYSICAL SUPPORT,Third Party Payments,Revenue
Walsall Council,http://opendatacommunities.org/id/metropolitan-district-council/walsall,WC114-716,31/03/2020,Adult Social Care,ANCHOR,26/03/2020,"1,972.24",73501-RESIDENTIAL EMI,MENTAL HEALTH SUPPORT,Third Party Payments,Revenue
Walsall Council,http://opendatacommunities.org/id/metropolitan-district-council/walsall,WC114-717,31/03/2020,Adult Social Care,ANCHOR,26/03/2020,"1,972.24",73501-RESIDENTIAL EMI,PHYSICAL SUPPORT,Third Party Payments,Revenue
Walsall Council,http://opendatacommunities.org/id/metropolitan-district-council/walsall,WC114-718,31/03/2020,Adult Social Care,ANCHOR,26/03/2020,"1,972.24",73501-RESIDENTIAL EMI,PHYSICAL SUPPORT,Third Party Payments,Revenue
Walsall Council,http://opendatacommunities.org/id/metropolitan-district-council/walsall,WC114-719,31/03/2020,Adult Social Care,ANCHOR,26/03/2020,"1,972.24",73501-RESIDENTIAL EMI,PHYSICAL SUPPORT,Third Party Payments,Revenue
Walsall Council,http://opendatacommunities.org/id/metropolitan-district-council/walsall,WC114-720,31/03/2020,Adult Social Care,ANCHOR,26/03/2020,"1,972.24",73501-RESIDENTIAL EMI,PHYSICAL SUPPORT,Third Party Payments,Revenue
Walsall Council,http://opendatacommunities.org/id/metropolitan-district-council/walsall,WC114-721,31/03/2020,Adult Social Care,ANCHOR,26/03/2020,"2,000.00",73501-RESIDENTIAL EMI,PHYSICAL SUPPORT,Third Party Payments,Revenue
Walsall Council,http://opendatacommunities.org/id/metropolitan-district-council/walsall,WC114-722,31/03/2020,Adult Social Care,ANCHOR,26/03/2020,"2,054.96",73500-RESIDENTIAL,SENSORY SUPPORT,Third Party Payments,Revenue
Walsall Council,http://opendatacommunities.org/id/metropolitan-district-council/walsall,WC114-723,31/03/2020,Adult Social Care,ANCHOR,26/03/2020,"2,094.96",73500-RESIDENTIAL,PHYSICAL SUPPORT,Third Party Payments,Revenue
Walsall Council,http://opendatacommunities.org/id/metropolitan-district-council/walsall,WC114-724,31/03/2020,Adult Social Care,ANCHOR,26/03/2020,"2,094.96",73500-RESIDENTIAL,SOCIAL SUPPORT,Third Party Payments,Revenue
Walsall Council,http://opendatacommunities.org/id/metropolitan-district-council/walsall,WC114-725,31/03/2020,Adult Social Care,ANCHOR,26/03/2020,"2,144.56",73501-RESIDENTIAL EMI,SENSORY SUPPORT,Third Party Payments,Revenue
Walsall Council,http://opendatacommunities.org/id/metropolitan-district-council/walsall,WC114-726,31/03/2020,Adult Social Care,ANCHOR,26/03/2020,"2,266.12",73500-RESIDENTIAL,PHYSICAL SUPPORT,Third Party Payments,Revenue
Walsall Council,http://opendatacommunities.org/id/metropolitan-district-council/walsall,WC114-727,31/03/2020,Adult Social Care,ANCHOR,26/03/2020,"2,292.24",73501-RESIDENTIAL EMI,SUPPORT WITH MEMORY & COGNITION,Third Party Payments,Revenue
Walsall Council,http://opendatacommunities.org/id/metropolitan-district-council/walsall,WC114-728,31/03/2020,Adult Social Care,ANCHOR,26/03/2020,"2,312.24",73501-RESIDENTIAL EMI,PHYSICAL SUPPORT,Third Party Payments,Revenue
Walsall Council,http://opendatacommunities.org/id/metropolitan-district-council/walsall,WC114-729,31/03/2020,Adult Social Care,ANCHOR,26/03/2020,"2,312.24",73501-RESIDENTIAL EMI,PHYSICAL SUPPORT,Third Party Payments,Revenue
Walsall Council,http://opendatacommunities.org/id/metropolitan-district-council/walsall,WC114-730,31/03/2020,Adult Social Care,ANCHOR,26/03/2020,"2,312.24",73501-RESIDENTIAL EMI,PHYSICAL SUPPORT,Third Party Payments,Revenue
Walsall Council,http://opendatacommunities.org/id/metropolitan-district-council/walsall,WC114-731,31/03/2020,Adult Social Care,ANCHOR,26/03/2020,"2,332.24",73501-RESIDENTIAL EMI,PHYSICAL SUPPORT,Third Party Payments,Revenue
Walsall Council,http://opendatacommunities.org/id/metropolitan-district-council/walsall,WC114-732,31/03/2020,Adult Social Care,ANCHOR,26/03/2020,"2,332.24",73501-RESIDENTIAL EMI,PHYSICAL SUPPORT,Third Party Payments,Revenue
Walsall Council,http://opendatacommunities.org/id/metropolitan-district-council/walsall,WC114-733,31/03/2020,Adult Social Care,ANCHOR,26/03/2020,"2,332.24",73501-RESIDENTIAL EMI,PHYSICAL SUPPORT,Third Party Payments,Revenue
Walsall Council,http://opendatacommunities.org/id/metropolitan-district-council/walsall,WC114-734,31/03/2020,Adult Social Care,ANCHOR,26/03/2020,"2,332.24",73501-RESIDENTIAL EMI,SOCIAL SUPPORT,Third Party Payments,Revenue
Walsall Council,http://opendatacommunities.org/id/metropolitan-district-council/walsall,WC114-735,31/03/2020,Childrens,REDACTED,09/03/2020,312.24,74509-SPECIAL GUARDIANSHIP ORDERS,ADOPTION ALLOWANCES,Transfer Payments,Revenue
Walsall Council,http://opendatacommunities.org/id/metropolitan-district-council/walsall,WC114-736,31/03/2020,Childrens,REDACTED,20/03/2020,720.00,74501-MAINTENANCE ALLOWANCE-FOSTER CARERS,INTERNAL FOSTER CARE PROVISION,Transfer Payments,Revenue
Walsall Council,http://opendatacommunities.org/id/metropolitan-district-council/walsall,WC114-737,31/03/2020,Childrens,REDACTED,20/03/2020,"2,400.00",74508-INTERNAL FOSTER CARERS-CARER FEES,INTERNAL FOSTER CARE PROVISION,Transfer Payments,Revenue
Walsall Council,http://opendatacommunities.org/id/metropolitan-district-council/walsall,WC114-738,31/03/2020,Adult Social Care,REDACTED,11/03/2020,508.85,73506-DIRECT PAYMENT,LEARNING DISABILITY SUPPORT,Third Party Payments,Revenue
Walsall Council,http://opendatacommunities.org/id/metropolitan-district-council/walsall,WC114-739,31/03/2020,Adult Social Care,REDACTED,11/03/2020,"3,118.00",73506-DIRECT PAYMENT,PHYSICAL SUPPORT,Third Party Payments,Revenue
Walsall Council,http://opendatacommunities.org/id/metropolitan-district-council/walsall,WC114-740,31/03/2020,Childrens,ANDREWS ELECTRICAL LTD,13/03/2020,"1,023.00",01006-SITE WORKS MAIN CONTRACTORS,CFR 1297 OLD CHURCH PRIMARY SCHOOL EXPANSION,Capital,Capital
Walsall Council,http://opendatacommunities.org/id/metropolitan-district-council/walsall,WC114-741,31/03/2020,Childrens,ANDREWS ELECTRICAL LTD,02/03/2020,"5,285.00",01006-SITE WORKS MAIN CONTRACTORS,CFR 1297 CASTLE BUSINESS & ENTERPRISE COLLEGE EXPANSION,Capital,Capital
Walsall Council,http://opendatacommunities.org/id/metropolitan-district-council/walsall,WC114-742,31/03/2020,Childrens,ANDREWS ELECTRICAL LTD,01/03/2020,"10,075.00",01006-SITE WORKS MAIN CONTRACTORS,CFR 1297 SHEPWELL SCHOOL EXPANSION,Capital,Capital
Walsall Council,http://opendatacommunities.org/id/metropolitan-district-council/walsall,WC114-743,31/03/2020,Childrens,ANGEL SOLUTIONS LTD,19/03/2020,"12,236.00",63800-COMPUTER EQUIPMENT AND SUPPLIES,INFORMATION SERVICES,Supplies & Services,Revenue
Walsall Council,http://opendatacommunities.org/id/metropolitan-district-council/walsall,WC114-744,31/03/2020,Childrens,REDACTED,09/03/2020,368.76,74509-SPECIAL GUARDIANSHIP ORDERS,ADOPTION ALLOWANCES,Transfer Payments,Revenue
Walsall Council,http://opendatacommunities.org/id/metropolitan-district-council/walsall,WC114-745,31/03/2020,Childrens,REDACTED,09/03/2020,368.76,74509-SPECIAL GUARDIANSHIP ORDERS,ADOPTION ALLOWANCES,Transfer Payments,Revenue
Walsall Council,http://opendatacommunities.org/id/metropolitan-district-council/walsall,WC114-746,31/03/2020,Childrens,REDACTED,09/03/2020,500.16,74509-SPECIAL GUARDIANSHIP ORDERS,ADOPTION ALLOWANCES,Transfer Payments,Revenue
Walsall Council,http://opendatacommunities.org/id/metropolitan-district-council/walsall,WC114-747,31/03/2020,Childrens,REDACTED,09/03/2020,312.04,74509-SPECIAL GUARDIANSHIP ORDERS,ADOPTION ALLOWANCES,Transfer Payments,Revenue
Walsall Council,http://opendatacommunities.org/id/metropolitan-district-council/walsall,WC114-748,31/03/2020,Adult Social Care,REDACTED,11/03/2020,"1,469.00",73506-DIRECT PAYMENT,PHYSICAL SUPPORT,Third Party Payments,Revenue
Walsall Council,http://opendatacommunities.org/id/metropolitan-district-council/walsall,WC114-749,31/03/2020,Adult Social Care,ANSON COURT RESIDENTIAL HOME,11/03/2020,"-1,008.54",73025-PROFESSIONAL SERVICES-PRIV CONTRACTOR & OTHER AGENCIES,TRANSITIONAL CARE SUPPORT TEAM,Third Party Payments,Revenue
Walsall Council,http://opendatacommunities.org/id/metropolitan-district-council/walsall,WC114-750,31/03/2020,Adult Social Care,ANSON COURT RESIDENTIAL HOME,26/03/2020,775.80,73501-RESIDENTIAL EMI,PHYSICAL SUPPORT,Third Party Payments,Revenue
Walsall Council,http://opendatacommunities.org/id/metropolitan-district-council/walsall,WC114-751,31/03/2020,Adult Social Care,ANSON COURT RESIDENTIAL HOME,26/03/2020,775.88,73504-SHORT STAY RESIDENTIAL,PHYSICAL SUPPORT,Third Party Payments,Revenue
Walsall Council,http://opendatacommunities.org/id/metropolitan-district-council/walsall,WC114-752,31/03/2020,Adult Social Care,ANSON COURT RESIDENTIAL HOME,30/03/2020,844.42,73500-RESIDENTIAL,PHYSICAL SUPPORT,Third Party Payments,Revenue
Walsall Council,http://opendatacommunities.org/id/metropolitan-district-council/walsall,WC114-753,31/03/2020,Adult Social Care,ANSON COURT RESIDENTIAL HOME,26/03/2020,879.80,73504-SHORT STAY RESIDENTIAL,PHYSICAL SUPPORT,Third Party Payments,Revenue
Walsall Council,http://opendatacommunities.org/id/metropolitan-district-council/walsall,WC114-754,31/03/2020,Adult Social Care,ANSON COURT RESIDENTIAL HOME,26/03/2020,"1,784.34",73501-RESIDENTIAL EMI,SOCIAL SUPPORT,Third Party Payments,Revenue
Walsall Council,http://opendatacommunities.org/id/metropolitan-district-council/walsall,WC114-755,31/03/2020,Adult Social Care,ANSON COURT RESIDENTIAL HOME,26/03/2020,"1,901.80",73501-RESIDENTIAL EMI,PHYSICAL SUPPORT,Third Party Payments,Revenue
Walsall Council,http://opendatacommunities.org/id/metropolitan-district-council/walsall,WC114-756,31/03/2020,Adult Social Care,ANSON COURT RESIDENTIAL HOME,19/03/2020,"1,939.50",73025-PROFESSIONAL SERVICES-PRIV CONTRACTOR & OTHER AGENCIES,TRANSITIONAL CARE SUPPORT TEAM,Third Party Payments,Revenue
Walsall Council,http://opendatacommunities.org/id/metropolitan-district-council/walsall,WC114-757,31/03/2020,Adult Social Care,ANSON COURT RESIDENTIAL HOME,26/03/2020,"1,972.24",73501-RESIDENTIAL EMI,SOCIAL SUPPORT,Third Party Payments,Revenue
Walsall Council,http://opendatacommunities.org/id/metropolitan-district-council/walsall,WC114-758,31/03/2020,Adult Social Care,ANSON COURT RESIDENTIAL HOME,26/03/2020,"1,972.24",73501-RESIDENTIAL EMI,PHYSICAL SUPPORT,Third Party Payments,Revenue
Walsall Council,http://opendatacommunities.org/id/metropolitan-district-council/walsall,WC114-759,31/03/2020,Adult Social Care,ANSON COURT RESIDENTIAL HOME,26/03/2020,"1,972.24",73501-RESIDENTIAL EMI,PHYSICAL SUPPORT,Third Party Payments,Revenue
Walsall Council,http://opendatacommunities.org/id/metropolitan-district-council/walsall,WC114-760,31/03/2020,Adult Social Care,ANSON COURT RESIDENTIAL HOME,26/03/2020,"1,972.24",73501-RESIDENTIAL EMI,MENTAL HEALTH SUPPORT,Third Party Payments,Revenue
Walsall Council,http://opendatacommunities.org/id/metropolitan-district-council/walsall,WC114-761,31/03/2020,Adult Social Care,ANSON COURT RESIDENTIAL HOME,26/03/2020,"1,972.24",73501-RESIDENTIAL EMI,MENTAL HEALTH SUPPORT,Third Party Payments,Revenue
Walsall Council,http://opendatacommunities.org/id/metropolitan-district-council/walsall,WC114-762,31/03/2020,Adult Social Care,ANSON COURT RESIDENTIAL HOME,26/03/2020,"1,972.24",73501-RESIDENTIAL EMI,SUPPORT WITH MEMORY & COGNITION,Third Party Payments,Revenue
Walsall Council,http://opendatacommunities.org/id/metropolitan-district-council/walsall,WC114-763,31/03/2020,Adult Social Care,ANSON COURT RESIDENTIAL HOME,26/03/2020,"1,972.24",73501-RESIDENTIAL EMI,SUPPORT WITH MEMORY & COGNITION,Third Party Payments,Revenue
Walsall Council,http://opendatacommunities.org/id/metropolitan-district-council/walsall,WC114-764,31/03/2020,Adult Social Care,ANSON COURT RESIDENTIAL HOME,26/03/2020,"1,972.24",73501-RESIDENTIAL EMI,PHYSICAL SUPPORT,Third Party Payments,Revenue
Walsall Council,http://opendatacommunities.org/id/metropolitan-district-council/walsall,WC114-765,31/03/2020,Adult Social Care,ANSON COURT RESIDENTIAL HOME,26/03/2020,"1,972.24",73501-RESIDENTIAL EMI,SOCIAL SUPPORT,Third Party Payments,Revenue
Walsall Council,http://opendatacommunities.org/id/metropolitan-district-council/walsall,WC114-766,31/03/2020,Adult Social Care,ANSON COURT RESIDENTIAL HOME,26/03/2020,"2,052.24",73501-RESIDENTIAL EMI,MENTAL HEALTH SUPPORT,Third Party Payments,Revenue
Walsall Council,http://opendatacommunities.org/id/metropolitan-district-council/walsall,WC114-767,31/03/2020,Adult Social Care,ANSON COURT RESIDENTIAL HOME,26/03/2020,"2,092.24",73501-RESIDENTIAL EMI,PHYSICAL SUPPORT,Third Party Payments,Revenue
Walsall Council,http://opendatacommunities.org/id/metropolitan-district-council/walsall,WC114-768,31/03/2020,Adult Social Care,ANSON COURT RESIDENTIAL HOME,26/03/2020,"2,092.24",73501-RESIDENTIAL EMI,MENTAL HEALTH SUPPORT,Third Party Payments,Revenue
Walsall Council,http://opendatacommunities.org/id/metropolitan-district-council/walsall,WC114-769,31/03/2020,Adult Social Care,ANSON COURT RESIDENTIAL HOME,26/03/2020,"2,092.24",73501-RESIDENTIAL EMI,MENTAL HEALTH SUPPORT,Third Party Payments,Revenue
Walsall Council,http://opendatacommunities.org/id/metropolitan-district-council/walsall,WC114-770,31/03/2020,Adult Social Care,ANSON COURT RESIDENTIAL HOME,26/03/2020,"2,172.24",73501-RESIDENTIAL EMI,PHYSICAL SUPPORT,Third Party Payments,Revenue
Walsall Council,http://opendatacommunities.org/id/metropolitan-district-council/walsall,WC114-771,31/03/2020,Adult Social Care,ANSON COURT RESIDENTIAL HOME,26/03/2020,"2,172.24",73501-RESIDENTIAL EMI,SOCIAL SUPPORT,Third Party Payments,Revenue
Walsall Council,http://opendatacommunities.org/id/metropolitan-district-council/walsall,WC114-772,31/03/2020,Adult Social Care,ANSON COURT RESIDENTIAL HOME,26/03/2020,"2,172.24",73501-RESIDENTIAL EMI,PHYSICAL SUPPORT,Third Party Payments,Revenue
Walsall Council,http://opendatacommunities.org/id/metropolitan-district-council/walsall,WC114-773,31/03/2020,Adult Social Care,ANSON COURT RESIDENTIAL HOME,26/03/2020,"2,172.24",73500-RESIDENTIAL,SUPPORT WITH MEMORY & COGNITION,Third Party Payments,Revenue
Walsall Council,http://opendatacommunities.org/id/metropolitan-district-council/walsall,WC114-774,31/03/2020,Adult Social Care,ANSON COURT RESIDENTIAL HOME,11/03/2020,"4,111.74",73025-PROFESSIONAL SERVICES-PRIV CONTRACTOR & OTHER AGENCIES,TRANSITIONAL CARE SUPPORT TEAM,Third Party Payments,Revenue
Walsall Council,http://opendatacommunities.org/id/metropolitan-district-council/walsall,WC114-775,31/03/2020,Childrens,REDACTED,09/03/2020,333.12,74509-SPECIAL GUARDIANSHIP ORDERS,ADOPTION ALLOWANCES,Transfer Payments,Revenue
Walsall Council,http://opendatacommunities.org/id/metropolitan-district-council/walsall,WC114-776,31/03/2020,Economy & Environment,APCOA PARKING SERVICES (UK) LTD,09/03/2020,"50,946.27",73025-PROFESSIONAL SERVICES-PRIV CONTRACTOR & OTHER AGENCIES,PARKING SERVICES,Third Party Payments,Revenue
Walsall Council,http://opendatacommunities.org/id/metropolitan-district-council/walsall,WC114-777,31/03/2020,Childrens,APP CARZ,27/03/2020,-250.00,52000-WITH DRIVER-HIRE OF VEHICLES,HOME TO SCHOOL TRANSPORT,Transport,Revenue
Walsall Council,http://opendatacommunities.org/id/metropolitan-district-council/walsall,WC114-778,31/03/2020,Childrens,APP CARZ,27/03/2020,250.00,52000-WITH DRIVER-HIRE OF VEHICLES,HOME TO SCHOOL TRANSPORT,Transport,Revenue
Walsall Council,http://opendatacommunities.org/id/metropolitan-district-council/walsall,WC114-779,31/03/2020,Childrens,APP CARZ,27/03/2020,292.00,52000-WITH DRIVER-HIRE OF VEHICLES,HOME TO SCHOOL TRANSPORT,Transport,Revenue
Walsall Council,http://opendatacommunities.org/id/metropolitan-district-council/walsall,WC114-780,31/03/2020,Childrens,APP CARZ,27/03/2020,330.00,52000-WITH DRIVER-HIRE OF VEHICLES,HOME TO SCHOOL TRANSPORT,Transport,Revenue
Walsall Council,http://opendatacommunities.org/id/metropolitan-district-council/walsall,WC114-781,31/03/2020,Resources and Transformation,APP CARZ,19/03/2020,356.00,52000-WITH DRIVER-HIRE OF VEHICLES,ADVICE & GUIDANCE SERVICE,Transport,Revenue
Walsall Council,http://opendatacommunities.org/id/metropolitan-district-council/walsall,WC114-782,31/03/2020,Childrens,APP CARZ,27/03/2020,357.60,52000-WITH DRIVER-HIRE OF VEHICLES,HOME TO SCHOOL TRANSPORT,Transport,Revenue
Walsall Council,http://opendatacommunities.org/id/metropolitan-district-council/walsall,WC114-783,31/03/2020,Childrens,APP CARZ,27/03/2020,357.60,52000-WITH DRIVER-HIRE OF VEHICLES,HOME TO SCHOOL TRANSPORT,Transport,Revenue
Walsall Council,http://opendatacommunities.org/id/metropolitan-district-council/walsall,WC114-784,31/03/2020,Childrens,APP CARZ,27/03/2020,366.60,52000-WITH DRIVER-HIRE OF VEHICLES,HOME TO SCHOOL TRANSPORT,Transport,Revenue
Walsall Council,http://opendatacommunities.org/id/metropolitan-district-council/walsall,WC114-785,31/03/2020,Childrens,APP CARZ,27/03/2020,373.60,52000-WITH DRIVER-HIRE OF VEHICLES,HOME TO SCHOOL TRANSPORT,Transport,Revenue
Walsall Council,http://opendatacommunities.org/id/metropolitan-district-council/walsall,WC114-786,31/03/2020,Childrens,APP CARZ,27/03/2020,374.00,52000-WITH DRIVER-HIRE OF VEHICLES,HOME TO SCHOOL TRANSPORT,Transport,Revenue
Walsall Council,http://opendatacommunities.org/id/metropolitan-district-council/walsall,WC114-787,31/03/2020,Childrens,APP CARZ,27/03/2020,398.60,52000-WITH DRIVER-HIRE OF VEHICLES,HOME TO SCHOOL TRANSPORT,Transport,Revenue
Walsall Council,http://opendatacommunities.org/id/metropolitan-district-council/walsall,WC114-788,31/03/2020,Childrens,APP CARZ,27/03/2020,450.00,52000-WITH DRIVER-HIRE OF VEHICLES,HOME TO SCHOOL TRANSPORT,Transport,Revenue
Walsall Council,http://opendatacommunities.org/id/metropolitan-district-council/walsall,WC114-789,31/03/2020,Childrens,APP CARZ,27/03/2020,466.40,52000-WITH DRIVER-HIRE OF VEHICLES,HOME TO SCHOOL TRANSPORT,Transport,Revenue
Walsall Council,http://opendatacommunities.org/id/metropolitan-district-council/walsall,WC114-790,31/03/2020,Childrens,APP CARZ,27/03/2020,491.60,52000-WITH DRIVER-HIRE OF VEHICLES,HOME TO SCHOOL TRANSPORT,Transport,Revenue
Walsall Council,http://opendatacommunities.org/id/metropolitan-district-council/walsall,WC114-791,31/03/2020,Childrens,APP CARZ,27/03/2020,744.00,52000-WITH DRIVER-HIRE OF VEHICLES,HOME TO SCHOOL TRANSPORT,Transport,Revenue
Walsall Council,http://opendatacommunities.org/id/metropolitan-district-council/walsall,WC114-792,31/03/2020,Childrens,APP CARZ,27/03/2020,"1,000.00",52000-WITH DRIVER-HIRE OF VEHICLES,HOME TO SCHOOL TRANSPORT,Transport,Revenue
Walsall Council,http://opendatacommunities.org/id/metropolitan-district-council/walsall,WC114-793,31/03/2020,Childrens,APP CARZ,27/03/2020,"1,320.00",52000-WITH DRIVER-HIRE OF VEHICLES,HOME TO SCHOOL TRANSPORT,Transport,Revenue
Walsall Council,http://opendatacommunities.org/id/metropolitan-district-council/walsall,WC114-794,31/03/2020,Childrens,APP CARZ,27/03/2020,"3,290.00",52000-WITH DRIVER-HIRE OF VEHICLES,HOME TO SCHOOL TRANSPORT,Transport,Revenue
Walsall Council,http://opendatacommunities.org/id/metropolitan-district-council/walsall,WC114-795,31/03/2020,Economy & Environment,APSE 001,04/03/2020,447.00,30030-EXTERNAL TRAINING,CEMETERIES CENTRAL ADMINISTRATION,Employees,Revenue
